{"text_format":"1","workbook":"xlsx","n_sheets":66,"sheets":["modList14_1","modProv","Инструкция","Лог обновления","Титульный","Территории","Перечень тарифов","Форма 1.0.1 | Форма 2.13","Форма 2.13","Форма 1.0.1 | Форма 2.14.1","Форма 2.14.1","Форма 1.0.1 | Т-тех","Форма 2.14.2 | Т-тех","Форма 1.0.1 | Т-транс","Форма 2.14.2 | Т-транс","Форма 1.0.1 | Т-подвоз","Форма 2.14.2 | Т-подвоз","Форма 1.0.1 | Т-пит","Форма 2.14.2 | Т-пит","Форма 1.0.1 | Т-подкл(инд)","Форма 2.14.3 | Т-подкл(инд)","Форма 1.0.1 | Т-подкл","Форма 2.14.3 | Т-подкл","Форма 1.0.2","Сведения об изменении","Комментарии","Проверка","modListTempFilter","modCheckCyan","REESTR_LINK","REESTR_DS","modHTTP","modfrmRezimChoose","modSheetMain","REESTR_VT","REESTR_VED","modfrmReestrObj","AllSheetsInThisWorkbook","et_union_vert","modInstruction","modRegion","modReestr","modfrmReestr","modUpdTemplMain","REESTR_ORG","modClassifierValidate","modHyp","modServiceModule","modList00","modList01","modList02","modList03","REESTR_MO_FILTER","REESTR_MO","TEHSHEET","et_union_hor","modInfo","modList05","modList06","modList07","modList13","modfrmDateChoose","modComm","modThisWorkbook","modfrmReestrMR","modfrmCheckUpdates"],"not_rendered":{"charts":0,"images":21,"macros":1,"external_links":0,"defined_names":612,"comments":0,"pivot_tables":0},"unopened":[],"bounds":{"document_bytes":16777216,"sheet_cells":100000,"rows_first":2000,"rows_last":500,"rows_between":2000,"halvings":0,"cell_chars":16384,"cell_head_chars":4096},"cells_cut":0,"cells_raw":0,"read":"whole","date_system":"1900"}

{"sheet":"modList14_1","index":0,"n_rows":0,"n_cols":0,"rows_kept":0,"cut":false,"hidden":true,"merged":[]}

{"sheet":"modProv","index":1,"n_rows":0,"n_cols":0,"rows_kept":0,"cut":false,"hidden":true,"merged":[]}

{"sheet":"Инструкция","index":2,"n_rows":102,"n_cols":27,"rows_kept":102,"cut":false,"hidden":false,"merged":[[59,7,59,23],[81,7,81,23],[45,4,56,23],[69,4,69,19],[59,4,59,6],[58,7,58,23],[58,4,58,6],[70,4,70,19],[60,7,60,23],[101,5,101,23],[99,5,99,18],[81,4,81,6],[97,4,97,23],[80,4,80,20],[83,7,83,23],[1,1,1,6],[2,1,2,2],[6,4,18,23],[22,15,22,22],[57,4,57,20],[4,1,4,24],[40,4,44,23],[20,5,20,12],[20,15,20,23],[21,15,21,23],[34,4,38,23],[21,5,21,12],[39,4,39,23]]}
[null,null,null,null,null,null,null,null,null,null,null,null,null,null,null,null,null,null,null,null,null,null,null,null,null,null," (требуется обновление)"]
[null,{"$f":"\"Код отчёта: \" & GetCode()","v":"Код отчёта: FAS.JKH.OPEN.INFO.REQUEST.HVS"}]
[null,{"$f":"\"Версия \" & GetVersion()","v":"Версия 1.0.2"}]
[]
[null,"Предложение регулируемой организации об установлении тарифов в сфере холодного водоснабжения, информация о способах приобретения, стоимости и объемах товаров, необходимых для производства регулируемых товаров и (или) оказания регулируемых услуг"]
[]
[null,null,null,null,"• На рабочем месте должен быть установлен MS Office 2007 SP3, 2010, 2013, 2016 с полной версией MS Excel\n\n• Макросы во время работы должны быть включены (!)\n\n• Для корректной работы отчёта требуется выбрать низкий уровень безопасности\n(В меню MS Excel 2007/2010/2013/2016: Параметры Excel | Центр управления безопасностью | Параметры центра управления безопасностью | Параметры макросов | Включить все макросы | ОК)\n\n• Если Вы работаете в табличном процессоре MS Excel 2007 и выше, то можете использовать для работы формат XLSB (Двоичная книга Excel). При работе в формате XLSB заметно быстрее происходит сохранение файла, а также уменьшается размер по сравнению с форматами XLS и XLSM\n\n• Не рекомендуется снимать защиту с листов и каким-либо образом модифицировать защищаемые формулы и расчётные поля, в противном случае, отчёт будет отклонён системой\n\n• При сохранении не следует выбирать формат XLSX (Книга Excel), так как в указанном формате макросы, необходимые для работы отчёта, безвозвратно удаляются"]
[]
[]
[]
[]
[]
[]
[]
[]
[]
[]
[]
[]
[]
[null,null,null,null,"A"," - необязательные для заполнения",null,null,null,null,null,null,null,null,"A"," - с формулами и константами"]
[null,null,null,null,"A"," - обязательные для заполнения",null,null,null,null,null,null,null,null,"A"," - с выбором значений по двойному клику"]
[]
[]
[]
[]
[]
[]
[]
[]
[]
[]
[]
[]
[null,null,null,null,"Если в предложенном Вам списке необходимая организация, МР/МО отсутствуют, обновите реестры с помощью кнопок\n\nВ результате синхронизации с базой данных список организаций (МР/МО) будет заменён актуальным (механизм синхронизации требует подключения к сети Интернет и основан на использовании протокола HTTPS (TCP порт 443))\n\nЕсли после обновления Вам не удалось найти необходимую организацию в списке, обратитесь к ответственному за поддержание реестра Вашего региона."]
[]
[]
[]
[]
[]
[]
[]
[]
[]
[]
[null,null,null,null,"• При сохранении шаблона осуществляется проверка корректности данных, в том числе на наличие значений в ячейках, обязательных для заполнения\n\n• Если какая-то ячейка не удовлетворяет условию проверки, на лист «Проверка» добавляется гиперссылка на данную ячейку и указывается причина ошибки\n\n• В колонке «Статус» для каждого сообщения возможны 2 значения: ошибка и предупреждение\n\n• При наличии сообщений со статусом «Ошибка» шаблон будет отклонён системой и не будет загружен в хранилище данных, сообщения со статусом «Предупреждение» носят информационный характер, и такой шаблон будет принят системой"]
[]
[]
[]
[]
[]
[]
[]
[]
[]
[]
[]
[null,null,null,null,"Обратиться за помощью в службу технической поддержки"]
[]
[]
[]
[]
[]
[]
[]
[]
[]
[]
[]
[null,null,null,null,"Инструкция по загрузке сопроводительных материалов"]
[null,null,null,null,"Инструкция по работе с отчетной формой"]
[]
[]
[]
[]
[]
[]
[]
[]
[]
[null,null,null,null,"Обратиться за помощью в службу технической поддержки"]
[]
[]
[]
[]
[]
[]
[]
[]
[]
[]
[]
[]
[]
[]
[]
[]
[null,null,null,null,"При наличии подключения к Интернет, можно автоматически проверять наличие доступных обновлений. Выберите способ оповещения о наличии обновлений для отчёта:"]
[]
[null,null,null,null,null,"проверять доступные обновления (рекомендуется)",null,null,null,null,null,null,null,null,null,null,null,null,null,null,null,null,null,null,null,null,"y"]
[]
[null,null,null,null,null,"никогда не проверять наличие обновлений (не рекомендуется)"]

{"sheet":"Лог обновления","index":3,"n_rows":11,"n_cols":3,"rows_kept":11,"cut":false,"hidden":true,"merged":[]}
["Дата/Время","Сообщение","Статус"]
["2021-06-17T10:19:08","Проверка доступных обновлений...","Информация"]
["2021-06-17T10:19:11","Нет доступных обновлений для отчёта с кодом FAS.JKH.OPEN.INFO.REQUEST.HVS!","Информация"]
["2021-06-17T10:19:25","Проверка доступных обновлений...","Информация"]
["2021-06-17T10:19:27","Нет доступных обновлений для отчёта с кодом FAS.JKH.OPEN.INFO.REQUEST.HVS!","Информация"]
["2021-06-17T10:29:20","Проверка доступных обновлений...","Информация"]
["2021-06-17T10:29:22","Нет доступных обновлений для отчёта с кодом FAS.JKH.OPEN.INFO.REQUEST.HVS!","Информация"]
["2021-06-17T11:03:47","Проверка доступных обновлений...","Информация"]
["2021-06-17T11:03:50","Нет доступных обновлений для отчёта с кодом FAS.JKH.OPEN.INFO.REQUEST.HVS!","Информация"]
["2021-11-01T21:02:19","Проверка доступных обновлений...","Информация"]
["2021-11-01T21:02:20","Нет доступных обновлений для отчёта с кодом FAS.JKH.OPEN.INFO.REQUEST.HVS!","Информация"]

{"sheet":"Титульный","index":4,"n_rows":44,"n_cols":11,"rows_kept":44,"cut":false,"hidden":true,"merged":[[4,4,4,5],[51,4,51,8]]}
[null,null,null,null,null,28016967]
[null,null,null,null,{"$f":"\"Код шаблона: \" & GetCode()","v":"Код шаблона: FAS.JKH.OPEN.INFO.REQUEST.HVS"}]
[null,null,null,null,{"$f":"\"Версия \" & GetVersion()","v":"Версия 1.0.2"}]
[]
[null,null,null,null,"Предложение регулируемой организации об установлении тарифов в сфере холодного водоснабжения, информация о способах приобретения, стоимости и объемах товаров, необходимых для производства регулируемых товаров и (или) оказания регулируемых услуг"]
[]
[null,null,null,null,"Субъект РФ","Ленинградская область"]
[]
[null,null,null,null,"Отсутствует Интернет в границах территории МО, где организация осуществляет регулируемые виды деятельности","нет"]
[]
[null,null,null,null,"Начало периода регулирования","01.01.2022"]
[null,null,null,null,"Окончание периода регулирования","31.12.2022"]
[]
[null,null,null,null,"Тип отчета","первичное раскрытие информации"]
[null,null,null,null,"Дата внесения изменений в информацию, подлежащую раскрытию","17.06.2021"]
[null,null,null,null,"Дата периода регулирования, с которой предлагаются изменения в тарифы"]
[null,null,null,null,null,"Первичное предложение по тарифам"]
[]
[null,null,null,null,"Дата подачи заявления об утверждении тарифов","29.04.2021"]
[null,null,null,null,"Номер подачи заявления об утверждении тарифов","б/н"]
[]
[null,null,null,null,null,"Изменение тарифов"]
[]
[null,null,null,null,"Дата подачи заявления об изменении тарифов"]
[null,null,null,null,"Номер заявления об изменении тарифов"]
[]
[]
[null,null,null,null,"Является ли данное юридическое лицо подразделением (филиалом) другой организации","нет"]
[null,null,null,null,"Наименование организации","ООО \"Лемэк\"",null,null,null,null," "]
[null,null,null,null,"Наименование филиала"]
[null,null,null,null,"ИНН","7801213324"]
[null,null,null,null,"КПП","472501001"]
[]
[null,null,null,null,"Режим налогообложения","общий"]
[]
[]
[]
[null,null,null,null,"Почтовый адрес регулируемой организации","188507, Ленинградская область, Ломоносовский р-он, п. Новоселье, Здание котельной на газу, лит. А"]
[null,null,null,null,"Фамилия, имя, отчество руководителя","Геер Станислав Николаевич"]
[null,null,null,null,null,"Ответственный за заполнение формы"]
[null,null,null,null,"Фамилия, имя, отчество","Геер Станислав Николаевич"]
[null,null,null,null,"Должность","Генеральный директор"]
[null,null,null,null,"Контактный телефон","309 - 03 - 33"]
[null,null,null,null,"E-mail","lemek@newterritories.ru "]

{"sheet":"Территории","index":5,"n_rows":15,"n_cols":18,"rows_kept":15,"cut":false,"hidden":true,"merged":[[8,5,8,6],[8,8,8,9],[9,5,9,6],[9,8,9,9],[3,3,3,7],[5,3,5,4],[5,5,5,6],[7,3,7,4],[7,8,7,11],[7,5,7,7],[12,7,13,7],[11,2,13,2],[11,3,13,3],[11,4,13,4],[12,5,13,5],[12,6,13,6]]}
[null,null,null,null,null,null,null,null,null,null,"МО","ОКТМО","МР"]
[]
[]
[null,null,null,"Перечень муниципальных районов и муниципальных образований (территорий действия тарифа)"]
[]
[null,null,null,null,null,"да"]
[]
[null,null,null,"Территория действия тарифа",null,"Муниципальный район",null,null,"Муниципальное образование"]
[null,null,null,"№ п/п","Наименование","№ п/п",null,"Наименование","№ п/п",null,"Наименование","ОКТМО"]
[null,null,null,"1","2","3",null,"4","5",null,"6","7"]
[null,null,null,0,null,null,null,null,null,null,null,null,"размерженный МР",null,null,"флаг используемости территории на листе Перечень тарифов","копия территорий","МР (ОКТМО)"]
[null,"auto",null,1,"Ломоносовский муниципальный район, Аннинское (41630152);",null,0,null,null,"0",null,null,{"$f":"mergeValue(H12)","v":0},null,null,{"$f":"IF(ISERROR(MATCH(Q12,MODesc,0)),\"n\",\"y\")","v":"n"},"Ломоносовский муниципальный район, Аннинское (41630152);",{"$f":"K12&\"(\"&L12&\")\"","v":"()"}]
[null,"auto",null,null,null,null,1,"Ломоносовский муниципальный район",null,"0",null,null,{"$f":"mergeValue(H13)","v":"Ломоносовский муниципальный район"},null,null,null,null,{"$f":"K13&\"(\"&L13&\")\"","v":"()"}]
[null,"auto",null,null,null,null,null,null,null,1,"Аннинское","41630152",{"$f":"mergeValue(H14)","v":"Ломоносовский муниципальный район"},null,null,null,null,{"$f":"K14&\" (\"&L14&\")\"","v":"Аннинское (41630152)"}]
[null,"man",null,null,null,null,null,null,null,null,null,null,null,null,null,null,"Добавить территорию действия тарифа"]

{"sheet":"Перечень тарифов","index":6,"n_rows":21,"n_cols":19,"rows_kept":21,"cut":false,"hidden":true,"merged":[[18,7,18,8],[17,11,17,12],[17,15,17,16],[18,11,18,12],[18,15,18,16],[16,18,17,18],[16,14,16,17],[16,10,16,13],[16,6,17,6],[6,6,6,9],[7,6,7,9],[16,9,17,9],[9,6,9,9],[16,7,17,8],[4,3,4,9],[10,4,10,5],[16,3,17,3],[16,4,17,4],[12,4,12,5],[8,6,8,9],[5,3,5,9],[7,4,7,5],[8,4,8,5],[9,4,9,5],[6,4,6,5],[16,5,17,5],[11,4,11,5],[20,3,23,3],[20,4,23,4],[20,5,23,5],[20,6,23,6],[20,7,22,7],[20,13,21,13],[20,14,21,14],[20,8,22,8],[20,9,22,9],[20,10,22,10],[20,11,21,11],[20,12,21,12]]}
[]
[]
[]
[]
[null,null,null,"Перечень тарифов и технологически не связанных между собой централизованных систем холодного водоснабжения, в отношении которых предлагаются различные тарифы в сфере холодного водоснабжения"]
[]
[]
[]
[]
[]
[]
[]
[]
[]
[]
[]
[null,null,null,"№ п/п","Вид тарифа","Вид деятельности","Наличие двухставочного тарифа","№ п/п",null,"Наименование тарифа","Дифференциация по\n МО (территориям)",null,null,null,"Дифференциация по \nцентрализованным системам холодного водоснабжения",null,null,null,"Примечание"]
[null,null,null,null,null,null,null,null,null,null,"да/нет","№ п/п",null,"Описание","да/нет","№ п/п",null,"Описание"]
[null,null,null,"1","2","3","4","5",null,"6","7","8",null,"9","10","11",null,"12","13"]
[null,null,null,0]
[4,null,null,1,"Тариф на питьевую воду (питьевое водоснабжение)","Холодное водоснабжение. Питьевая вода","нет",null,1,"Тариф на холодную воду питьевую","нет",null,"1",null,"нет",null,"1"]

{"sheet":"Форма 1.0.1 | Форма 2.13","index":7,"n_rows":15,"n_cols":10,"rows_kept":15,"cut":false,"hidden":true,"merged":[[14,6,14,7],[1,5,1,7],[3,5,3,7],[3,8,4,8],[7,0,12,0],[10,1,12,1],[11,2,12,2]]}
["11"]
[null,null,null,null,null,"Форма 1.0.1 Основные параметры раскрываемой информации 1"]
[]
[null,null,null,null,null,"Параметры формы",null,null,"Описание параметров формы"]
[null,null,null,null,null,"№ п/п","Наименование параметра","Информация"]
[null,null,null,null,null,"1",2,3,4,4]
[null,null,null,null,null,1,"Дата заполнения/внесения изменений",{"$f":"IF(dateCh=\"\",\"\",dateCh)","v":"17.06.2021"},"Указывается календарная дата первичного заполнения или внесения изменений в форму в виде «ДД.ММ.ГГГГ»."]
[1,null,null,null,null,{"$f":"\"2.\" &mergeValue(A8)","v":"2.1"},"Наименование централизованной системы коммунальной инфраструктуры",{"$f":"IF('Перечень тарифов'!R21=\"\",\"наименование отсутствует\",\"\" & 'Перечень тарифов'!R21 & \"\")","v":"наименование отсутствует"},"Указывается наименование централизованной системы холодного водоснабжения/горячего водоснабжения/водоотведения/теплоснабжения, к которой относится размещаемая информация.\nВ случае наличия нескольких централизованных систем коммунальной инфраструктуры, информация по каждой из них указывается в отдельной строке."]
[null,null,null,null,null,{"$f":"\"3.\" &mergeValue(A9)","v":"3.1"},"Наименование регулируемого вида деятельности",{"$f":"IF('Перечень тарифов'!F21=\"\",\"наименование отсутствует\",\"\" & 'Перечень тарифов'!F21 & \"\")","v":"Холодное водоснабжение. Питьевая вода"},"Указывается наименование вида регулируемой деятельности."]
[null,null,null,null,null,{"$f":"\"4.\"&mergeValue(A10)","v":"4.1"},"Территория оказания услуги по регулируемому виду деятельности","x"]
[null,1,null,null,null,{"$f":"\"4.\"&mergeValue(A11) &\".\"&mergeValue(B11)","v":"4.1.1"},"Субъект Российской Федерации",{"$f":"IF(region_name=\"\",\"\",region_name)","v":"Ленинградская область"},"Указывается наименование субъекта Российской Федерации"]
[null,null,1,null,null,{"$f":"\"4.\"&mergeValue(A12) &\".\"&mergeValue(B12)&\".\"&mergeValue(C12)","v":"4.1.1.1"},"муниципальный район",{"$f":"IF(Территории!H13=\"\",\"\",\"\" & Территории!H13 & \"\")","v":"Ломоносовский муниципальный район"},"Указывается наименование муниципального района, на территории которого организация оказывает услуги по регулируемому виду деятельности."]
[null,null,null,1,null,{"$f":"\"4.\"&mergeValue(A13) &\".\"&mergeValue(B13)&\".\"&mergeValue(C13)&\".\"&mergeValue(D13)","v":"4.1.1.1.1"},"муниципальное образование",{"$f":"IF(Территории!R14=\"\",\"\",\"\" & Территории!R14 & \"\")","v":"Аннинское (41630152)"},"Указывается наименование и код муниципального района, муниципального образования в соответствии с Общероссийским классификатором территорий муниципальных образований (далее - ОКТМО), входящего в муниципальный район, на территории которого организация оказывает услуги по регулируемому виду деятельности.\nВ случае оказания услуг по регулируемому виду деятельности на территории нескольких муниципальных районов (муниципальных образований) данные по каждому их них указываются в отдельной строке."]
[]
[null,null,null,null,null,null,"  1 Информация размещается при раскрытии информации по каждой из форм."]

{"sheet":"Форма 2.13","index":8,"n_rows":14,"n_cols":8,"rows_kept":14,"cut":false,"hidden":true,"merged":[[6,3,6,6],[6,7,7,7],[4,3,4,6],[9,7,13,7]]}
[]
[]
[]
[]
[null,null,null,"Форма 2.13 Информация о способах приобретения, стоимости и объемах товаров, необходимых для производства регулируемых товаров и (или) оказания регулируемых услуг регулируемой организацией"]
[]
[null,null,null,"Параметры формы",null,null,null,"Описание параметров формы"]
[null,null,null,"№ п/п","Наименование параметра","Информация","Ссылка на документ"]
[null,null,null,"1","2","3","4","5"]
[null,null,null,"1","Сведения о правовых актах, регламентирующих правила закупки (положение о закупках) в регулируемой организации","Положениеозакупкахтоваров,работ,услуг","https://eias.fstrf.ru/disclo/get_file?p_guid=e2c5b721-28f5-46bd-8d88-9bbb484fb379","В колонке «Информация» указывается описательная информация, характеризующая размещаемые данные.\nВ колонке «Ссылка на документ» указывается либо ссылка на документ, предварительно загруженный в хранилище файлов ФГИС ЕИАС, либо ссылка на официальный сайт в сети «Интернет», на котором размещена информация.\nВ случае наличия дополнительных сведений о способах приобретения, стоимости и объемах товаров, необходимых для производства регулируемых товаров и (или) оказания регулируемых услуг регулируемой организацией, информация по ним указывается в отдельных строках."]
[null,null,null,"2","Сведения о месте размещения положения о закупках регулируемой организации","Положение о закупках товаров, работ, услуг","https://eias.fstrf.ru/disclo/get_file?p_guid=e2c5b721-28f5-46bd-8d88-9bbb484fb379"]
[null,null,null,"3","Сведения о планировании закупочных процедур","Положение о закупках товаров, работ, услуг","https://eias.fstrf.ru/disclo/get_file?p_guid=e2c5b721-28f5-46bd-8d88-9bbb484fb379"]
[null,null,null,"4","Сведения о результатах проведения закупочных процедур","Положение о закупках товаров, работ, услуг","https://eias.fstrf.ru/disclo/get_file?p_guid=e2c5b721-28f5-46bd-8d88-9bbb484fb379"]
[null,null,null,null,"Добавить сведения"]

{"sheet":"Форма 1.0.1 | Форма 2.14.1","index":9,"n_rows":15,"n_cols":10,"rows_kept":15,"cut":false,"hidden":true,"merged":[[14,6,14,7],[1,5,1,7],[3,5,3,7],[3,8,4,8],[7,0,12,0],[10,1,12,1],[11,2,12,2]]}
["11"]
[null,null,null,null,null,"Форма 1.0.1 Основные параметры раскрываемой информации 1"]
[]
[null,null,null,null,null,"Параметры формы",null,null,"Описание параметров формы"]
[null,null,null,null,null,"№ п/п","Наименование параметра","Информация"]
[null,null,null,null,null,"1",2,3,4,4]
[null,null,null,null,null,1,"Дата заполнения/внесения изменений",{"$f":"IF(dateCh=\"\",\"\",dateCh)","v":"17.06.2021"},"Указывается календарная дата первичного заполнения или внесения изменений в форму в виде «ДД.ММ.ГГГГ»."]
[1,null,null,null,null,{"$f":"\"2.\" &mergeValue(A8)","v":"2.1"},"Наименование централизованной системы коммунальной инфраструктуры",{"$f":"IF('Перечень тарифов'!R21=\"\",\"наименование отсутствует\",\"\" & 'Перечень тарифов'!R21 & \"\")","v":"наименование отсутствует"},"Указывается наименование централизованной системы холодного водоснабжения/горячего водоснабжения/водоотведения/теплоснабжения, к которой относится размещаемая информация.\nВ случае наличия нескольких централизованных систем коммунальной инфраструктуры, информация по каждой из них указывается в отдельной строке."]
[null,null,null,null,null,{"$f":"\"3.\" &mergeValue(A9)","v":"3.1"},"Наименование регулируемого вида деятельности",{"$f":"IF('Перечень тарифов'!F21=\"\",\"наименование отсутствует\",\"\" & 'Перечень тарифов'!F21 & \"\")","v":"Холодное водоснабжение. Питьевая вода"},"Указывается наименование вида регулируемой деятельности."]
[null,null,null,null,null,{"$f":"\"4.\"&mergeValue(A10)","v":"4.1"},"Территория оказания услуги по регулируемому виду деятельности","x"]
[null,1,null,null,null,{"$f":"\"4.\"&mergeValue(A11) &\".\"&mergeValue(B11)","v":"4.1.1"},"Субъект Российской Федерации",{"$f":"IF(region_name=\"\",\"\",region_name)","v":"Ленинградская область"},"Указывается наименование субъекта Российской Федерации"]
[null,null,1,null,null,{"$f":"\"4.\"&mergeValue(A12) &\".\"&mergeValue(B12)&\".\"&mergeValue(C12)","v":"4.1.1.1"},"муниципальный район",{"$f":"IF(Территории!H13=\"\",\"\",\"\" & Территории!H13 & \"\")","v":"Ломоносовский муниципальный район"},"Указывается наименование муниципального района, на территории которого организация оказывает услуги по регулируемому виду деятельности."]
[null,null,null,1,null,{"$f":"\"4.\"&mergeValue(A13) &\".\"&mergeValue(B13)&\".\"&mergeValue(C13)&\".\"&mergeValue(D13)","v":"4.1.1.1.1"},"муниципальное образование",{"$f":"IF(Территории!R14=\"\",\"\",\"\" & Территории!R14 & \"\")","v":"Аннинское (41630152)"},"Указывается наименование и код муниципального района, муниципального образования в соответствии с Общероссийским классификатором территорий муниципальных образований (далее - ОКТМО), входящего в муниципальный район, на территории которого организация оказывает услуги по регулируемому виду деятельности.\nВ случае оказания услуг по регулируемому виду деятельности на территории нескольких муниципальных районов (муниципальных образований) данные по каждому их них указываются в отдельной строке."]
[]
[null,null,null,null,null,null,"  1 Информация размещается при раскрытии информации по каждой из форм."]

{"sheet":"Форма 2.14.1","index":10,"n_rows":34,"n_cols":15,"rows_kept":34,"cut":false,"hidden":false,"merged":[[30,2,31,2],[16,4,17,4],[16,2,17,2],[21,2,22,2],[24,2,25,2],[27,2,28,2],[30,3,31,3],[24,3,25,3],[27,3,28,3],[33,4,33,11],[29,4,29,10],[23,4,23,10],[26,4,26,10],[21,11,22,11],[24,11,25,11],[27,11,28,11],[30,11,31,11],[24,4,25,4],[24,5,25,5],[30,4,31,4],[30,5,31,5],[27,4,28,4],[27,5,28,5],[4,3,4,10],[9,3,9,10],[9,11,11,11],[13,4,13,10],[16,11,17,11],[10,3,11,3],[10,4,11,4],[10,5,11,5],[10,9,11,9],[10,10,11,10],[16,3,17,3],[16,5,17,5],[6,5,6,10],[7,5,7,10],[10,6,10,8],[15,4,15,10],[11,6,11,7],[12,6,12,7],[14,6,14,7],[21,3,22,3],[21,4,22,4],[21,5,22,5],[20,4,20,10],[18,4,18,10],[19,6,19,7]]}
[]
[]
[]
[]
[null,null,null,"Форма 2.14.1 Информация о предложении об установлении тарифов в сфере холодного водоснабжения на очередной период регулирования1"]
[]
[null,null,null,null,{"$f":"\"Дата подачи заявления об \"&IF(datePr_ch=\"\",\"утверждении\",\"изменении\") & \" тарифов\"","v":"Дата подачи заявления об утверждении тарифов"},{"$f":"IF(datePr_ch=\"\",IF(datePr=\"\",\"\",datePr),datePr_ch)","v":"29.04.2021"}]
[null,null,null,null,{"$f":"\"Номер подачи заявления об \"&IF(numberPr_ch=\"\",\"утверждении\",\"изменении\") & \" тарифов\"","v":"Номер подачи заявления об утверждении тарифов"},{"$f":"IF(numberPr_ch=\"\",IF(numberPr=\"\",\"\",numberPr),numberPr_ch)","v":"б/н"}]
[]
[null,null,null,"Параметры формы",null,null,null,null,null,null,null,"Описание параметров формы"]
[null,null,null,"№ п/п","Вид тарифа","Наименование тарифа","Период действия тарифов",null,null,"Информация","Ссылка на документ"]
[null,null,null,null,null,null,"с",null,"по"]
[null,null,null,"1","2","3","4",null,"5","6","7","8"]
[null,null,null,1,"Копия инвестиционной программы, утвержденной в установленном законодательством Российской Федерации порядке, а до ее утверждения копия проекта инвестиционной программы"]
[null,null,null,"1.1","x","x","x",null,"x","отсутствует",null,"Заполняется в случае наличия инвестиционной программы (проекта инвестиционной программы) в отчетном периоде.\nВ колонке «Информация» указывается наименование инвестиционной программы.\nВ колонке «Ссылка на документ» указывается ссылка на документ, предварительно загруженный в хранилище файлов ФГИС ЕИАС."]
[null,3,null,2,"Предлагаемый метод регулирования",null,null,null,null,"x"]
[null,null,null,"2.1",{"$f":"IF('Перечень тарифов'!E21=\"\",\"наименование отсутствует\",\"\" & 'Перечень тарифов'!E21 & \"\")","v":"Тариф на питьевую воду (питьевое водоснабжение)"},{"$f":"IF('Перечень тарифов'!J21=\"\",\"наименование отсутствует\",\"\" & 'Перечень тарифов'!J21 & \"\")","v":"Тариф на холодную воду питьевую"},null,"01.01.2022","31.12.2022","метод индексации установленных тарифов","x","Значение в колонке «Вид тарифа» выбирается из перечня видов тарифов в сфере холодного водоснабжения, предусмотренных законодательством в сфере водоснабжения и водоотведения.\nЗначение в колонке «Информация» выбирается из перечня: Метод экономически обоснованных расходов (затрат); Метод индексации установленных тарифов; Метод обеспечения доходности инвестированного капитала; Метод сравнения аналогов.\nДаты начала и окончания периода действия тарифов указывается в виде «ДД.ММ.ГГГГ».\nВ случае дифференциации предлагаемых методов регулирования видам тарифов и (или) по периодам действия тарифов информация по каждому из них указывается в отдельной строке."]
[null,null,null,null,null,null,null,"Добавить период"]
[null,3,null,"3","Долгосрочные параметры регулирования (в случае если их установление предусмотрено выбранным методом регулирования)"]
[null,null,null,"3.1","x","x","x",null,"x","x","https://portal.eias.ru/Portal/DownloadPage.aspx?type=12&guid=0204a67b-e41d-48fc-bddd-da01dc6c47d6","Долгосрочные параметры регулирования указываются в случае выбора любого метода регулирования за исключением метода экономически обоснованных затрат в виде ссылки на документ, предварительно загруженный в хранилище файлов ФГИС ЕИАС."]
[null,3,null,"4","Необходимая валовая выручка на соответствующий период, в том числе с разбивкой по годам"]
[null,null,null,"4.1",{"$f":"IF('Перечень тарифов'!E21=\"\",\"наименование отсутствует\",\"\" & 'Перечень тарифов'!E21 & \"\")","v":"Тариф на питьевую воду (питьевое водоснабжение)"},{"$f":"IF('Перечень тарифов'!J21=\"\",\"наименование отсутствует\",\"\" & 'Перечень тарифов'!J21 & \"\")","v":"Тариф на холодную воду питьевую"},null,"01.01.2022","31.12.2022",37367.411393222828,"x","Значение в колонке «Вид тарифа» выбирается из перечня видов тарифов в сфере холодного водоснабжения, предусмотренных законодательством в сфере водоснабжения и водоотведения.\nДаты начала и окончания периода действия тарифов указывается в виде «ДД.ММ.ГГГГ».\nВеличина необходимой валовой выручки указывается в колонке «Информация» в тыс. руб.\nВ случае дифференциации необходимой валовой выручки по видам тарифов и (или) по периодам действия тарифов информация указывается в отдельных строках."]
[null,null,null,null,null,null,null,"Добавить период"]
[null,null,null,"5","Годовой объем отпущенной в сеть воды"]
[null,null,null,"5.1",{"$f":"IF('Перечень тарифов'!E21=\"\",\"наименование отсутствует\",\"\" & 'Перечень тарифов'!E21 & \"\")","v":"Тариф на питьевую воду (питьевое водоснабжение)"},{"$f":"IF('Перечень тарифов'!J21=\"\",\"наименование отсутствует\",\"\" & 'Перечень тарифов'!J21 & \"\")","v":"Тариф на холодную воду питьевую"},null,"01.01.2022","31.12.2022",564.44764999999995,"x","Значение в колонке «Вид тарифа» выбирается из перечня видов тарифов в сфере холодного водоснабжения, предусмотренных законодательством в сфере водоснабжения и водоотведения.\nДаты начала и окончания периода действия тарифов указывается в виде «ДД.ММ.ГГГГ».\nВеличина годового объема отпущенной в сеть воды указывается в колонке «Информация» в тыс. куб. м.\nВ случае дифференциации объема отпущенной в сеть воды по видам тарифов и (или) по периодам действия тарифов информация указывается в отдельных строках."]
[null,null,null,null,null,null,null,"Добавить период"]
[null,null,null,"6","Размер недополученных доходов регулируемой организацией, исчисленный в соответствии с Основами ценообразования в сфере водоснабжения и водоотведения, утвержденными постановлением Правительства Российской Федерации от 13.05.2013 № 406"]
[null,null,null,"6.1",{"$f":"IF('Перечень тарифов'!E21=\"\",\"наименование отсутствует\",\"\" & 'Перечень тарифов'!E21 & \"\")","v":"Тариф на питьевую воду (питьевое водоснабжение)"},{"$f":"IF('Перечень тарифов'!J21=\"\",\"наименование отсутствует\",\"\" & 'Перечень тарифов'!J21 & \"\")","v":"Тариф на холодную воду питьевую"},null,"01.01.2022","31.12.2022",16554,"x","Значение в колонке «Вид тарифа» выбирается из перечня видов тарифов в сфере холодного водоснабжения, предусмотренных законодательством в сфере водоснабжения и водоотведения.\nДаты начала и окончания периода действия тарифов указывается в виде «ДД.ММ.ГГГГ».\nВеличина недополученных доходов регулируемой организации указывается в колонке «Информация» в тыс. руб. \nВ случае отсутствия недополученных доходов регулируемой организацией, исчисленных в соответствии с законодательством в сфере водоснабжения и водоотведения, указывается значение 0.\nВ случае дифференциации недополученных доходов регулируемой организацией по видам тарифов и/или по периодам действия тарифов информация указывается в отдельных строках.",null,null,"c 01:03 до 18:55"]
[null,null,null,null,null,null,null,"Добавить период"]
[null,3,null,"7","Размер экономически обоснованных расходов, не учтенных при регулировании тарифов в предыдущий период регулирования (при их наличии), определенном в соответствии с основами ценообразования в сфере водоснабжения и водоотведения, утвержденными постановлением Правительства Российской Федерации от 13.05.2013 № 406"]
[null,null,null,"7.1",{"$f":"IF('Перечень тарифов'!E21=\"\",\"наименование отсутствует\",\"\" & 'Перечень тарифов'!E21 & \"\")","v":"Тариф на питьевую воду (питьевое водоснабжение)"},{"$f":"IF('Перечень тарифов'!J21=\"\",\"наименование отсутствует\",\"\" & 'Перечень тарифов'!J21 & \"\")","v":"Тариф на холодную воду питьевую"},null,"01.01.2022","31.12.2022",17424.02,"x","Значение в колонке «Вид тарифа» выбирается из перечня видов тарифов в сфере холодного водоснабжения, предусмотренных законодательством в сфере водоснабжения и водоотведения.\nДаты начала и окончания периода действия тарифов указывается в виде «ДД.ММ.ГГГГ».\nВеличина экономически обоснованных расходов, не учтенных при регулировании тарифов в предыдущий период регулирования, указывается в колонке «Информация» в тыс. руб. \nВ случае отсутствия экономически обоснованных расходов, не учтенных при регулировании тарифов в предыдущий период регулирования, определенных в соответствии с законодательством в сфере водоснабжения и водоотведения, указывается значение 0.\nВ случае дифференциации экономически обоснованных расходов по видам тарифов и/или по периодам действия тарифов информация указывается в отдельных строках."]
[null,null,null,null,null,null,null,"Добавить период"]
[]
[null,null,null,1,"При размещении информации по данной форме дополнительно указывается дата подачи заявления об утверждении(изменении) тарифа и его номер."]

{"sheet":"Форма 1.0.1 | Т-тех","index":11,"n_rows":19,"n_cols":10,"rows_kept":19,"cut":false,"hidden":true,"merged":[[18,6,18,7],[1,5,1,7],[3,5,3,7],[3,8,4,8],[7,0,15,0],[11,2,13,2],[12,8,13,8],[10,1,14,1]]}
["1"]
[null,null,null,null,null,"Форма 1.0.1 Основные параметры раскрываемой информации 1"]
[]
[null,null,null,null,null,"Параметры формы",null,null,"Описание параметров формы"]
[null,null,null,null,null,"№ п/п","Наименование параметра","Информация"]
[null,null,null,null,null,"1",2,3,4,4]
[null,null,null,null,null,1,"Дата заполнения/внесения изменений",{"$f":"IF(dateCh=\"\",\"\",dateCh)","v":"17.06.2021"},"Указывается календарная дата первичного заполнения или внесения изменений в форму в виде «ДД.ММ.ГГГГ»."]
[1,null,null,null,null,{"$f":"\"2.\" &mergeValue(A8)","v":"2.1"},"Наименование централизованной системы коммунальной инфраструктуры",null,"Указывается наименование централизованной системы холодного водоснабжения/горячего водоснабжения/водоотведения/теплоснабжения, к которой относится размещаемая информация.\nВ случае наличия нескольких централизованных систем коммунальной инфраструктуры, информация по каждой из них указывается в отдельной строке."]
[null,null,null,null,null,{"$f":"\"3.\" &mergeValue(A9)","v":"3.1"},"Наименование регулируемого вида деятельности",null,"Указывается наименование вида регулируемой деятельности."]
[null,null,null,null,null,{"$f":"\"4.\"&mergeValue(A10)","v":"4.1"},"Территория оказания услуги по регулируемому виду деятельности","x"]
[null,1,null,null,null,{"$f":"\"4.\"&mergeValue(A11) &\".\"&mergeValue(B11)","v":"4.1.1"},"Субъект Российской Федерации",{"$f":"IF(region_name=\"\",\"\",region_name)","v":"Ленинградская область"},"Указывается наименование субъекта Российской Федерации"]
[null,null,1,null,null,{"$f":"\"4.\"&mergeValue(A12) &\".\"&mergeValue(B12)&\".\"&mergeValue(C12)","v":"4.1.1.1"},"муниципальный район",null,"Указывается наименование муниципального района, на территории которого организация оказывает услуги по регулируемому виду деятельности."]
[null,null,null,1,null,{"$f":"\"4.\"&mergeValue(A13) &\".\"&mergeValue(B13)&\".\"&mergeValue(C13)&\".\"&mergeValue(D13)","v":"4.1.1.1.1"},"муниципальное образование",null,"Указывается наименование и код муниципального района, муниципального образования в соответствии с Общероссийским классификатором территорий муниципальных образований (далее - ОКТМО), входящего в муниципальный район, на территории которого организация оказывает услуги по регулируемому виду деятельности.\nВ случае оказания услуг по регулируемому виду деятельности на территории нескольких муниципальных районов (муниципальных образований) данные по каждому их них указываются в отдельной строке."]
[null,null,null,null,null,null,"Добавить МО"]
[null,null,null,null,null,null,"Добавить МР"]
[null,null,null,null,null,null,"Добавить территорию"]
[null,null,null,null,null,null,"Добавить ЦС"]
[]
[null,null,null,null,null,null,"  1 Информация размещается при раскрытии информации по каждой из форм."]

{"sheet":"Форма 2.14.2 | Т-тех","index":12,"n_rows":32,"n_cols":26,"rows_kept":32,"cut":false,"hidden":true,"merged":[[21,9,24,9],[14,15,14,16],[19,14,19,21],[31,12,31,21],[22,18,23,18],[22,20,23,20],[22,13,23,13],[22,19,23,19],[17,0,28,0],[18,1,27,1],[19,2,26,2],[20,3,25,3],[20,8,25,8],[21,4,24,4],[11,14,11,20],[15,18,15,19],[18,14,18,21],[17,14,17,21],[16,18,16,19],[13,20,15,20],[7,14,7,21],[8,14,8,21],[4,11,4,20],[10,11,10,12],[9,14,9,21],[6,14,6,21],[22,22,24,22],[13,21,15,21],[12,11,12,21],[13,13,15,13],[22,17,23,17],[14,17,14,19],[13,14,13,19],[12,22,15,22],[21,14,21,21],[20,14,20,21],[13,11,15,11],[13,12,15,12]]}
[]
[]
[]
[]
[null,null,null,null,null,null,null,null,null,null,null,"Форма 2.14.2 Информация о предложении величин тарифов на питьевую воду (питьевое водоснабжение), техническую воду, транспортировку воды, подвоз воды1"]
[]
[]
[null,null,null,null,null,null,null,null,null,null,null,null,{"$f":"\"Дата подачи заявления об \"&IF(datePr_ch=\"\",\"утверждении\",\"изменении\") & \" тарифов\"","v":"Дата подачи заявления об утверждении тарифов"},null,{"$f":"IF(datePr_ch=\"\",IF(datePr=\"\",\"\",datePr),datePr_ch)","v":"29.04.2021"}]
[null,null,null,null,null,null,null,null,null,null,null,null,{"$f":"\"Номер подачи заявления об \"&IF(numberPr_ch=\"\",\"утверждении\",\"изменении\") & \" тарифов\"","v":"Номер подачи заявления об утверждении тарифов"},null,{"$f":"IF(numberPr_ch=\"\",IF(numberPr=\"\",\"\",numberPr),numberPr_ch)","v":"б/н"}]
[]
[null,null,null,null,null,null,null,null,null,null,null,null,null,null,null,null,null,null,null,null,"dp"]
[]
[null,null,null,null,null,null,null,null,null,null,null,"Параметры формы",null,null,null,null,null,null,null,null,null,null,"Описание параметров формы"]
[null,null,null,null,null,null,null,null,null,null,null,"№ п/п","Параметры дифференциации",null,"Период действия тарифа",null,null,null,null,null,"Наличие других периодов действия тарифа","Добавить период"]
[null,null,null,null,null,null,null,null,null,null,null,null,null,null,"Одноставочный тариф","Двухставочный тариф",null,"Период действия"]
[null,null,null,null,null,null,null,null,null,null,null,null,null,null,"Одноставочный тариф, руб./куб. м","ставка платы за объем поданной воды, руб./куб. м","ставка платы за содержание мощности, руб./куб. м в час","дата начала","дата окончания"]
[null,null,null,null,null,null,null,null,null,null,1,"1","2",{"$f":"OFFSET(N17,0,-1)","v":"2"},{"$f":"OFFSET(O17,0,-1)+1","v":3},{"$f":"OFFSET(P17,0,-1)+1","v":4},{"$f":"OFFSET(Q17,0,-1)+1","v":5},{"$f":"OFFSET(R17,0,-1)+1","v":6},{"$f":"OFFSET(S17,0,-1)+1","v":7},null,{"$f":"OFFSET(U17,0,-2)+1","v":8},{"$f":"OFFSET(V17,0,-1)","v":8},{"$f":"OFFSET(W17,0,-1)+1","v":9}]
[1,null,null,null,null,null,null,null,null,null,null,{"$f":"mergeValue(A18)","v":1},"Наименование тарифа",null,null,null,null,null,null,null,null,null,"Указывается наименование тарифа в случае подачи предложения по нескольким тарифам.\nВ случае наличия нескольких тарифов информация по ним указывается в отдельных строках."]
[null,1,null,null,null,null,null,null,null,null,null,{"$f":"mergeValue(A19) &\".\"& mergeValue(B19)","v":"1.1"},"Территория действия тарифа",null,null,null,null,null,null,null,null,null,"Указывается наименование территории действия тарифа при наличии дифференциации тарифа по территориальному признаку.\nВ случае дифференциации тарифов по территориальному признаку информация по ним указывается в отдельных строках."]
[null,null,1,null,null,null,null,null,null,null,null,{"$f":"mergeValue(A20) &\".\"& mergeValue(B20)&\".\"& mergeValue(C20)","v":"1.1.1"},"Наименование централизованной системы холодного водоснабжения",null,null,null,null,null,null,null,null,null,"Указывается наименование централизованной системы холодного водоснабжения при наличии дифференциации тарифа по централизованным системам холодного водоснабжения.\nВ случае дифференциации тарифов по централизованным системам холодного водоснабжения информация по ним указывается в отдельных строках."]
[null,null,null,1,null,null,null,null,null,null,null,{"$f":"mergeValue(A21) &\".\"& mergeValue(B21)&\".\"& mergeValue(C21)&\".\"& mergeValue(D21)","v":"1.1.1.1"},"Наименование признака дифференциации",null,null,null,null,null,null,null,null,null,"Указывается наименование дополнительного признака дифференциации (при наличии).\nДифференциация тарифа осуществляется в соответствии с законодательством в сфере водоснабжении и водоотведении.\nВ случае дифференциации тарифов по дополнительным признакам информация по ним указывается в отдельных строках."]
[null,null,null,null,1,null,null,null,null,null,null,{"$f":"mergeValue(A22) &\".\"& mergeValue(B22)&\".\"& mergeValue(C22)&\".\"& mergeValue(D22)&\".\"& mergeValue(E22)","v":"1.1.1.1.1"},"Группа потребителей",null,null,null,null,null,null,null,null,null,"Указывается группа потребителей при наличии дифференциации тарифа по группам потребителей.\nЗначение выбирается из перечня: Организации-перепродавцы; Бюджетные организации; Население; Прочие; Без дифференциации.\nВ случае дифференциации тарифов группам потребителей информация по ним указывается в отдельных строках.",null,{"$f":"strCheckUnique(Z22:Z25)","v":""}]
[null,null,null,null,null,1,null,null,null,null,null,{"$f":"mergeValue(A23) &\".\"& mergeValue(B23)&\".\"& mergeValue(C23)&\".\"& mergeValue(D23)&\".\"& mergeValue(E23)&\".\"& mergeValue(F23)","v":"1.1.1.1.1.1"},null,null,null,null,null,null,"да",null,"нет",null,"В колонке «Параметр дифференциации тарифов» указывается значение дополнительного признака дифференциации.\nПри подаче предложения на двухставочный тариф колонка «Одноставочный тариф» не заполняется.\nПри подаче предложения на одноставочный тариф колонки в блоке «Двухставочный тариф» не заполняются.\nДаты начала и окончания действия тарифов указываются в виде «ДД.ММ.ГГГГ».\nВ случае отсутствия даты окончания действия тарифа в колонке «Дата окончания» указывается «Нет».\nВ случае наличия нескольких значений признака дифференциации тарифов информация по ним указывается в отдельных строках.\nВ случае дифференциации тарифов по периодам действия тарифа информация по ним указывается в отдельных колонках.",{"$f":"strCheckDate(O24:V24)","v":""},null,{"$f":"IF(M23=\"\",\"\",M23 )","v":""}]
[null,null,null,null,null,null,null,null,null,null,null,null,null,null,null,null,{"$f":"R23 & \"-\" & T23","v":"-"}]
[null,null,null,null,null,null,null,null,null,null,null,null,"Добавить значение признака дифференциации"]
[null,null,null,null,null,null,null,null,null,null,null,null,"Добавить группу потребителей"]
[null,null,null,null,null,null,null,null,null,null,null,null,"Добавить наименование признака дифференциации"]
[null,null,null,null,null,null,null,null,null,null,null,null,"Добавить наименование системы водоснабжения"]
[null,null,null,null,null,null,null,null,null,null,null,null,"Добавить территорию действия тарифа"]
[null,null,null,null,null,null,null,null,null,null,null,null,"Добавить наименование тарифа"]
[]
[null,null,null,null,null,null,null,null,null,null,null,1,"Для каждого вида тарифа в сфере холодного водоснабжения форма заполняется отдельно. При размещении информации по данной форме дополнительно указывается дата подачи заявления об утверждении(изменении) тарифа и его номер."]

{"sheet":"Форма 1.0.1 | Т-транс","index":13,"n_rows":19,"n_cols":10,"rows_kept":19,"cut":false,"hidden":true,"merged":[[18,6,18,7],[1,5,1,7],[3,5,3,7],[3,8,4,8],[7,0,15,0],[11,2,13,2],[12,8,13,8],[10,1,14,1]]}
["2"]
[null,null,null,null,null,"Форма 1.0.1 Основные параметры раскрываемой информации 1"]
[]
[null,null,null,null,null,"Параметры формы",null,null,"Описание параметров формы"]
[null,null,null,null,null,"№ п/п","Наименование параметра","Информация"]
[null,null,null,null,null,"1",2,3,4,4]
[null,null,null,null,null,1,"Дата заполнения/внесения изменений",{"$f":"IF(dateCh=\"\",\"\",dateCh)","v":"17.06.2021"},"Указывается календарная дата первичного заполнения или внесения изменений в форму в виде «ДД.ММ.ГГГГ»."]
[1,null,null,null,null,{"$f":"\"2.\" &mergeValue(A8)","v":"2.1"},"Наименование централизованной системы коммунальной инфраструктуры",null,"Указывается наименование централизованной системы холодного водоснабжения/горячего водоснабжения/водоотведения/теплоснабжения, к которой относится размещаемая информация.\nВ случае наличия нескольких централизованных систем коммунальной инфраструктуры, информация по каждой из них указывается в отдельной строке."]
[null,null,null,null,null,{"$f":"\"3.\" &mergeValue(A9)","v":"3.1"},"Наименование регулируемого вида деятельности",null,"Указывается наименование вида регулируемой деятельности."]
[null,null,null,null,null,{"$f":"\"4.\"&mergeValue(A10)","v":"4.1"},"Территория оказания услуги по регулируемому виду деятельности","x"]
[null,1,null,null,null,{"$f":"\"4.\"&mergeValue(A11) &\".\"&mergeValue(B11)","v":"4.1.1"},"Субъект Российской Федерации",{"$f":"IF(region_name=\"\",\"\",region_name)","v":"Ленинградская область"},"Указывается наименование субъекта Российской Федерации"]
[null,null,1,null,null,{"$f":"\"4.\"&mergeValue(A12) &\".\"&mergeValue(B12)&\".\"&mergeValue(C12)","v":"4.1.1.1"},"муниципальный район",null,"Указывается наименование муниципального района, на территории которого организация оказывает услуги по регулируемому виду деятельности."]
[null,null,null,1,null,{"$f":"\"4.\"&mergeValue(A13) &\".\"&mergeValue(B13)&\".\"&mergeValue(C13)&\".\"&mergeValue(D13)","v":"4.1.1.1.1"},"муниципальное образование",null,"Указывается наименование и код муниципального района, муниципального образования в соответствии с Общероссийским классификатором территорий муниципальных образований (далее - ОКТМО), входящего в муниципальный район, на территории которого организация оказывает услуги по регулируемому виду деятельности.\nВ случае оказания услуг по регулируемому виду деятельности на территории нескольких муниципальных районов (муниципальных образований) данные по каждому их них указываются в отдельной строке."]
[null,null,null,null,null,null,"Добавить МО"]
[null,null,null,null,null,null,"Добавить МР"]
[null,null,null,null,null,null,"Добавить территорию"]
[null,null,null,null,null,null,"Добавить ЦС"]
[]
[null,null,null,null,null,null,"  1 Информация размещается при раскрытии информации по каждой из форм."]

{"sheet":"Форма 2.14.2 | Т-транс","index":14,"n_rows":32,"n_cols":26,"rows_kept":32,"cut":false,"hidden":true,"merged":[[13,11,15,11],[13,12,15,12],[18,14,18,21],[17,0,28,0],[18,1,27,1],[19,2,26,2],[20,3,25,3],[20,8,25,8],[22,13,23,13],[21,4,24,4],[17,14,17,21],[13,14,13,19],[14,17,14,19],[13,13,15,13],[13,20,15,20],[31,12,31,21],[21,9,24,9],[20,14,20,21],[19,14,19,21],[22,19,23,19],[21,14,21,21],[22,18,23,18],[22,22,24,22],[4,11,4,20],[14,15,14,16],[15,18,15,19],[22,17,23,17],[22,20,23,20],[10,11,10,12],[6,14,6,21],[13,21,15,21],[12,22,15,22],[7,14,7,21],[8,14,8,21],[9,14,9,21],[16,18,16,19],[12,11,12,21],[11,14,11,20]]}
[]
[]
[]
[]
[null,null,null,null,null,null,null,null,null,null,null,"Форма 2.14.2 Информация о предложении величин тарифов на питьевую воду (питьевое водоснабжение), техническую воду, транспортировку воды, подвоз воды1"]
[]
[]
[null,null,null,null,null,null,null,null,null,null,null,null,{"$f":"\"Дата подачи заявления об \"&IF(datePr_ch=\"\",\"утверждении\",\"изменении\") & \" тарифов\"","v":"Дата подачи заявления об утверждении тарифов"},null,{"$f":"IF(datePr_ch=\"\",IF(datePr=\"\",\"\",datePr),datePr_ch)","v":"29.04.2021"}]
[null,null,null,null,null,null,null,null,null,null,null,null,{"$f":"\"Номер подачи заявления об \"&IF(numberPr_ch=\"\",\"утверждении\",\"изменении\") & \" тарифов\"","v":"Номер подачи заявления об утверждении тарифов"},null,{"$f":"IF(numberPr_ch=\"\",IF(numberPr=\"\",\"\",numberPr),numberPr_ch)","v":"б/н"}]
[]
[null,null,null,null,null,null,null,null,null,null,null,null,null,null,null,null,null,null,null,null,"dp"]
[]
[null,null,null,null,null,null,null,null,null,null,null,"Параметры формы",null,null,null,null,null,null,null,null,null,null,"Описание параметров формы"]
[null,null,null,null,null,null,null,null,null,null,null,"№ п/п","Параметры дифференциации",null,"Период действия тарифа",null,null,null,null,null,"Наличие других периодов действия тарифа","Добавить период"]
[null,null,null,null,null,null,null,null,null,null,null,null,null,null,"Одноставочный тариф","Двухставочный тариф",null,"Период действия"]
[null,null,null,null,null,null,null,null,null,null,null,null,null,null,"Одноставочный тариф, руб./куб. м","ставка платы за объем поданной воды, руб./куб. м","ставка платы за содержание мощности, руб./куб. м в час","дата начала","дата окончания"]
[null,null,null,null,null,null,null,null,null,null,1,"1","2",{"$f":"OFFSET(N17,0,-1)","v":"2"},{"$f":"OFFSET(O17,0,-1)+1","v":3},{"$f":"OFFSET(P17,0,-1)+1","v":4},{"$f":"OFFSET(Q17,0,-1)+1","v":5},{"$f":"OFFSET(R17,0,-1)+1","v":6},{"$f":"OFFSET(S17,0,-1)+1","v":7},null,{"$f":"OFFSET(U17,0,-2)+1","v":8},{"$f":"OFFSET(V17,0,-1)","v":8},{"$f":"OFFSET(W17,0,-1)+1","v":9}]
[1,null,null,null,null,null,null,null,null,null,null,{"$f":"mergeValue(A18)","v":1},"Наименование тарифа",null,null,null,null,null,null,null,null,null,"Указывается наименование тарифа в случае подачи предложения по нескольким тарифам.\nВ случае наличия нескольких тарифов информация по ним указывается в отдельных строках."]
[null,1,null,null,null,null,null,null,null,null,null,{"$f":"mergeValue(A19) &\".\"& mergeValue(B19)","v":"1.1"},"Территория действия тарифа",null,null,null,null,null,null,null,null,null,"Указывается наименование территории действия тарифа при наличии дифференциации тарифа по территориальному признаку.\nВ случае дифференциации тарифов по территориальному признаку информация по ним указывается в отдельных строках."]
[null,null,1,null,null,null,null,null,null,null,null,{"$f":"mergeValue(A20) &\".\"& mergeValue(B20)&\".\"& mergeValue(C20)","v":"1.1.1"},"Наименование централизованной системы холодного водоснабжения",null,null,null,null,null,null,null,null,null,"Указывается наименование централизованной системы холодного водоснабжения при наличии дифференциации тарифа по централизованным системам холодного водоснабжения.\nВ случае дифференциации тарифов по централизованным системам холодного водоснабжения информация по ним указывается в отдельных строках."]
[null,null,null,1,null,null,null,null,null,null,null,{"$f":"mergeValue(A21) &\".\"& mergeValue(B21)&\".\"& mergeValue(C21)&\".\"& mergeValue(D21)","v":"1.1.1.1"},"Наименование признака дифференциации",null,null,null,null,null,null,null,null,null,"Указывается наименование дополнительного признака дифференциации (при наличии).\nДифференциация тарифа осуществляется в соответствии с законодательством в сфере водоснабжении и водоотведении.\nВ случае дифференциации тарифов по дополнительным признакам информация по ним указывается в отдельных строках."]
[null,null,null,null,1,null,null,null,null,null,null,{"$f":"mergeValue(A22) &\".\"& mergeValue(B22)&\".\"& mergeValue(C22)&\".\"& mergeValue(D22)&\".\"& mergeValue(E22)","v":"1.1.1.1.1"},"Группа потребителей",null,null,null,null,null,null,null,null,null,"Указывается группа потребителей при наличии дифференциации тарифа по группам потребителей.\nЗначение выбирается из перечня: Организации-перепродавцы; Бюджетные организации; Население; Прочие; Без дифференциации.\nВ случае дифференциации тарифов группам потребителей информация по ним указывается в отдельных строках.",null,{"$f":"strCheckUnique(Z22:Z25)","v":""}]
[null,null,null,null,null,1,null,null,null,null,null,{"$f":"mergeValue(A23) &\".\"& mergeValue(B23)&\".\"& mergeValue(C23)&\".\"& mergeValue(D23)&\".\"& mergeValue(E23)&\".\"& mergeValue(F23)","v":"1.1.1.1.1.1"},null,null,null,null,null,null,"да",null,"нет",null,"В колонке «Параметр дифференциации тарифов» указывается значение дополнительного признака дифференциации.\nПри подаче предложения на двухставочный тариф колонка «Одноставочный тариф» не заполняется.\nПри подаче предложения на одноставочный тариф колонки в блоке «Двухставочный тариф» не заполняются.\nДаты начала и окончания действия тарифов указываются в виде «ДД.ММ.ГГГГ».\nВ случае отсутствия даты окончания действия тарифа в колонке «Дата окончания» указывается «Нет».\nВ случае наличия нескольких значений признака дифференциации тарифов информация по ним указывается в отдельных строках.\nВ случае дифференциации тарифов по периодам действия тарифа информация по ним указывается в отдельных колонках.",{"$f":"strCheckDate(O24:V24)","v":""},null,{"$f":"IF(M23=\"\",\"\",M23 )","v":""}]
[null,null,null,null,null,null,null,null,null,null,null,null,null,null,null,null,{"$f":"R23 & \"-\" & T23","v":"-"}]
[null,null,null,null,null,null,null,null,null,null,null,null,"Добавить значение признака дифференциации"]
[null,null,null,null,null,null,null,null,null,null,null,null,"Добавить группу потребителей"]
[null,null,null,null,null,null,null,null,null,null,null,null,"Добавить наименование признака дифференциации"]
[null,null,null,null,null,null,null,null,null,null,null,null,"Добавить наименование системы водоснабжения"]
[null,null,null,null,null,null,null,null,null,null,null,null,"Добавить территорию действия тарифа"]
[null,null,null,null,null,null,null,null,null,null,null,null,"Добавить наименование тарифа"]
[]
[null,null,null,null,null,null,null,null,null,null,null,1,"Для каждого вида тарифа в сфере холодного водоснабжения форма заполняется отдельно. При размещении информации по данной форме дополнительно указывается дата подачи заявления об утверждении(изменении) тарифа и его номер."]

{"sheet":"Форма 1.0.1 | Т-подвоз","index":15,"n_rows":19,"n_cols":10,"rows_kept":19,"cut":false,"hidden":true,"merged":[[18,6,18,7],[1,5,1,7],[3,5,3,7],[3,8,4,8],[7,0,15,0],[11,2,13,2],[12,8,13,8],[10,1,14,1]]}
["3"]
[null,null,null,null,null,"Форма 1.0.1 Основные параметры раскрываемой информации 1"]
[]
[null,null,null,null,null,"Параметры формы",null,null,"Описание параметров формы"]
[null,null,null,null,null,"№ п/п","Наименование параметра","Информация"]
[null,null,null,null,null,"1",2,3,4,4]
[null,null,null,null,null,1,"Дата заполнения/внесения изменений",{"$f":"IF(dateCh=\"\",\"\",dateCh)","v":"17.06.2021"},"Указывается календарная дата первичного заполнения или внесения изменений в форму в виде «ДД.ММ.ГГГГ»."]
[1,null,null,null,null,{"$f":"\"2.\" &mergeValue(A8)","v":"2.1"},"Наименование централизованной системы коммунальной инфраструктуры",null,"Указывается наименование централизованной системы холодного водоснабжения/горячего водоснабжения/водоотведения/теплоснабжения, к которой относится размещаемая информация.\nВ случае наличия нескольких централизованных систем коммунальной инфраструктуры, информация по каждой из них указывается в отдельной строке."]
[null,null,null,null,null,{"$f":"\"3.\" &mergeValue(A9)","v":"3.1"},"Наименование регулируемого вида деятельности",null,"Указывается наименование вида регулируемой деятельности."]
[null,null,null,null,null,{"$f":"\"4.\"&mergeValue(A10)","v":"4.1"},"Территория оказания услуги по регулируемому виду деятельности","x"]
[null,1,null,null,null,{"$f":"\"4.\"&mergeValue(A11) &\".\"&mergeValue(B11)","v":"4.1.1"},"Субъект Российской Федерации",{"$f":"IF(region_name=\"\",\"\",region_name)","v":"Ленинградская область"},"Указывается наименование субъекта Российской Федерации"]
[null,null,1,null,null,{"$f":"\"4.\"&mergeValue(A12) &\".\"&mergeValue(B12)&\".\"&mergeValue(C12)","v":"4.1.1.1"},"муниципальный район",null,"Указывается наименование муниципального района, на территории которого организация оказывает услуги по регулируемому виду деятельности."]
[null,null,null,1,null,{"$f":"\"4.\"&mergeValue(A13) &\".\"&mergeValue(B13)&\".\"&mergeValue(C13)&\".\"&mergeValue(D13)","v":"4.1.1.1.1"},"муниципальное образование",null,"Указывается наименование и код муниципального района, муниципального образования в соответствии с Общероссийским классификатором территорий муниципальных образований (далее - ОКТМО), входящего в муниципальный район, на территории которого организация оказывает услуги по регулируемому виду деятельности.\nВ случае оказания услуг по регулируемому виду деятельности на территории нескольких муниципальных районов (муниципальных образований) данные по каждому их них указываются в отдельной строке."]
[null,null,null,null,null,null,"Добавить МО"]
[null,null,null,null,null,null,"Добавить МР"]
[null,null,null,null,null,null,"Добавить территорию"]
[null,null,null,null,null,null,"Добавить ЦС"]
[]
[null,null,null,null,null,null,"  1 Информация размещается при раскрытии информации по каждой из форм."]

{"sheet":"Форма 2.14.2 | Т-подвоз","index":16,"n_rows":32,"n_cols":26,"rows_kept":32,"cut":false,"hidden":true,"merged":[[31,12,31,21],[21,9,24,9],[17,0,28,0],[18,1,27,1],[19,2,26,2],[20,3,25,3],[20,8,25,8],[21,4,24,4],[20,14,20,21],[19,14,19,21],[17,14,17,21],[21,14,21,21],[22,13,23,13],[18,14,18,21],[4,11,4,20],[12,11,12,21],[12,22,15,22],[13,14,13,19],[14,17,14,19],[13,21,15,21],[14,15,14,16],[13,11,15,11],[13,12,15,12],[13,13,15,13],[13,20,15,20],[16,18,16,19],[15,18,15,19],[10,11,10,12],[6,14,6,21],[7,14,7,21],[8,14,8,21],[9,14,9,21],[11,14,11,20],[22,22,24,22],[22,20,23,20],[22,19,23,19],[22,18,23,18],[22,17,23,17]]}
[]
[]
[]
[]
[null,null,null,null,null,null,null,null,null,null,null,"Форма 2.14.2 Информация о величинах тарифов на питьевую воду (питьевое водоснабжение), техническую воду, транспортировку воды, подвоз воды1"]
[]
[]
[null,null,null,null,null,null,null,null,null,null,null,null,{"$f":"\"Дата подачи заявления об \"&IF(datePr_ch=\"\",\"утверждении\",\"изменении\") & \" тарифов\"","v":"Дата подачи заявления об утверждении тарифов"},null,{"$f":"IF(datePr_ch=\"\",IF(datePr=\"\",\"\",datePr),datePr_ch)","v":"29.04.2021"}]
[null,null,null,null,null,null,null,null,null,null,null,null,{"$f":"\"Номер подачи заявления об \"&IF(numberPr_ch=\"\",\"утверждении\",\"изменении\") & \" тарифов\"","v":"Номер подачи заявления об утверждении тарифов"},null,{"$f":"IF(numberPr_ch=\"\",IF(numberPr=\"\",\"\",numberPr),numberPr_ch)","v":"б/н"}]
[]
[null,null,null,null,null,null,null,null,null,null,null,null,null,null,null,null,null,null,null,null,"dp"]
[]
[null,null,null,null,null,null,null,null,null,null,null,"Параметры формы",null,null,null,null,null,null,null,null,null,null,"Описание параметров формы"]
[null,null,null,null,null,null,null,null,null,null,null,"№ п/п","Параметры дифференциации",null,"Период действия тарифа",null,null,null,null,null,"Наличие других периодов действия тарифа","Добавить период"]
[null,null,null,null,null,null,null,null,null,null,null,null,null,null,"Одноставочный тариф","Двухставочный тариф",null,"Период действия"]
[null,null,null,null,null,null,null,null,null,null,null,null,null,null,"Одноставочный тариф, руб./куб. м","ставка платы за объем поданной воды, руб./куб. м","ставка платы за содержание мощности, руб./куб. м в час","дата начала","дата окончания"]
[null,null,null,null,null,null,null,null,null,null,1,"1","2",{"$f":"OFFSET(N17,0,-1)","v":"2"},{"$f":"OFFSET(O17,0,-1)+1","v":3},{"$f":"OFFSET(P17,0,-1)+1","v":4},{"$f":"OFFSET(Q17,0,-1)+1","v":5},{"$f":"OFFSET(R17,0,-1)+1","v":6},{"$f":"OFFSET(S17,0,-1)+1","v":7},null,{"$f":"OFFSET(U17,0,-2)+1","v":8},{"$f":"OFFSET(V17,0,-1)","v":8},{"$f":"OFFSET(W17,0,-1)+1","v":9}]
[1,null,null,null,null,null,null,null,null,null,null,{"$f":"mergeValue(A18)","v":1},"Наименование тарифа",null,null,null,null,null,null,null,null,null,"Указывается наименование тарифа в случае подачи предложения по нескольким тарифам.\nВ случае наличия нескольких тарифов информация по ним указывается в отдельных строках."]
[null,1,null,null,null,null,null,null,null,null,null,{"$f":"mergeValue(A19) &\".\"& mergeValue(B19)","v":"1.1"},"Территория действия тарифа",null,null,null,null,null,null,null,null,null,"Указывается наименование территории действия тарифа при наличии дифференциации тарифа по территориальному признаку.\nВ случае дифференциации тарифов по территориальному признаку информация по ним указывается в отдельных строках."]
[null,null,1,null,null,null,null,null,null,null,null,{"$f":"mergeValue(A20) &\".\"& mergeValue(B20)&\".\"& mergeValue(C20)","v":"1.1.1"},"Наименование централизованной системы холодного водоснабжения",null,null,null,null,null,null,null,null,null,"Указывается наименование централизованной системы холодного водоснабжения при наличии дифференциации тарифа по централизованным системам холодного водоснабжения.\nВ случае дифференциации тарифов по централизованным системам холодного водоснабжения информация по ним указывается в отдельных строках."]
[null,null,null,1,null,null,null,null,null,null,null,{"$f":"mergeValue(A21) &\".\"& mergeValue(B21)&\".\"& mergeValue(C21)&\".\"& mergeValue(D21)","v":"1.1.1.1"},"Наименование признака дифференциации",null,null,null,null,null,null,null,null,null,"Указывается наименование дополнительного признака дифференциации (при наличии).\nДифференциация тарифа осуществляется в соответствии с законодательством в сфере водоснабжении и водоотведении.\nВ случае дифференциации тарифов по дополнительным признакам информация по ним указывается в отдельных строках."]
[null,null,null,null,1,null,null,null,null,null,null,{"$f":"mergeValue(A22) &\".\"& mergeValue(B22)&\".\"& mergeValue(C22)&\".\"& mergeValue(D22)&\".\"& mergeValue(E22)","v":"1.1.1.1.1"},"Группа потребителей",null,null,null,null,null,null,null,null,null,"Указывается группа потребителей при наличии дифференциации тарифа по группам потребителей.\nЗначение выбирается из перечня: Организации-перепродавцы; Бюджетные организации; Население; Прочие; Без дифференциации.\nВ случае дифференциации тарифов группам потребителей информация по ним указывается в отдельных строках.",null,{"$f":"strCheckUnique(Z22:Z25)","v":""}]
[null,null,null,null,null,1,null,null,null,null,null,{"$f":"mergeValue(A23) &\".\"& mergeValue(B23)&\".\"& mergeValue(C23)&\".\"& mergeValue(D23)&\".\"& mergeValue(E23)&\".\"& mergeValue(F23)","v":"1.1.1.1.1.1"},null,null,null,null,null,null,"да",null,"нет",null,"В колонке «Параметр дифференциации тарифов» указывается значение дополнительного признака дифференциации.\nПри подаче предложения на двухставочный тариф колонка «Одноставочный тариф» не заполняется.\nПри подаче предложения на одноставочный тариф колонки в блоке «Двухставочный тариф» не заполняются.\nДаты начала и окончания действия тарифов указываются в виде «ДД.ММ.ГГГГ».\nВ случае отсутствия даты окончания действия тарифа в колонке «Дата окончания» указывается «Нет».\nВ случае наличия нескольких значений признака дифференциации тарифов информация по ним указывается в отдельных строках.\nВ случае дифференциации тарифов по периодам действия тарифа информация по ним указывается в отдельных колонках.",{"$f":"strCheckDate(O24:V24)","v":""},null,{"$f":"IF(M23=\"\",\"\",M23 )","v":""}]
[null,null,null,null,null,null,null,null,null,null,null,null,null,null,null,null,{"$f":"R23 & \"-\" & T23","v":"-"}]
[null,null,null,null,null,null,null,null,null,null,null,null,"Добавить значение признака дифференциации"]
[null,null,null,null,null,null,null,null,null,null,null,null,"Добавить группу потребителей"]
[null,null,null,null,null,null,null,null,null,null,null,null,"Добавить наименование признака дифференциации"]
[null,null,null,null,null,null,null,null,null,null,null,null,"Добавить наименование системы водоснабжения"]
[null,null,null,null,null,null,null,null,null,null,null,null,"Добавить территорию действия тарифа"]
[null,null,null,null,null,null,null,null,null,null,null,null,"Добавить наименование тарифа"]
[]
[null,null,null,null,null,null,null,null,null,null,null,1,"Для каждого вида тарифа в сфере холодного водоснабжения форма заполняется отдельно. При размещении информации по данной форме дополнительно указывается дата подачи заявления об утверждении(изменении) тарифа и его номер."]

{"sheet":"Форма 1.0.1 | Т-пит","index":17,"n_rows":15,"n_cols":10,"rows_kept":15,"cut":false,"hidden":true,"merged":[[14,6,14,7],[1,5,1,7],[3,5,3,7],[3,8,4,8],[7,0,12,0],[11,2,12,2],[10,1,12,1]]}
["4"]
[null,null,null,null,null,"Форма 1.0.1 Основные параметры раскрываемой информации 1"]
[]
[null,null,null,null,null,"Параметры формы",null,null,"Описание параметров формы"]
[null,null,null,null,null,"№ п/п","Наименование параметра","Информация"]
[null,null,null,null,null,"1",2,3,4,4]
[null,null,null,null,null,1,"Дата заполнения/внесения изменений",{"$f":"IF(dateCh=\"\",\"\",dateCh)","v":"17.06.2021"},"Указывается календарная дата первичного заполнения или внесения изменений в форму в виде «ДД.ММ.ГГГГ»."]
[1,null,null,null,null,{"$f":"\"2.\" &mergeValue(A8)","v":"2.1"},"Наименование централизованной системы коммунальной инфраструктуры",{"$f":"IF('Перечень тарифов'!R21=\"\",\"наименование отсутствует\",\"\" & 'Перечень тарифов'!R21 & \"\")","v":"наименование отсутствует"},"Указывается наименование централизованной системы холодного водоснабжения/горячего водоснабжения/водоотведения/теплоснабжения, к которой относится размещаемая информация.\nВ случае наличия нескольких централизованных систем коммунальной инфраструктуры, информация по каждой из них указывается в отдельной строке."]
[null,null,null,null,null,{"$f":"\"3.\" &mergeValue(A9)","v":"3.1"},"Наименование регулируемого вида деятельности",{"$f":"IF('Перечень тарифов'!F21=\"\",\"наименование отсутствует\",\"\" & 'Перечень тарифов'!F21 & \"\")","v":"Холодное водоснабжение. Питьевая вода"},"Указывается наименование вида регулируемой деятельности."]
[null,null,null,null,null,{"$f":"\"4.\"&mergeValue(A10)","v":"4.1"},"Территория оказания услуги по регулируемому виду деятельности","x"]
[null,1,null,null,null,{"$f":"\"4.\"&mergeValue(A11) &\".\"&mergeValue(B11)","v":"4.1.1"},"Субъект Российской Федерации",{"$f":"IF(region_name=\"\",\"\",region_name)","v":"Ленинградская область"},"Указывается наименование субъекта Российской Федерации"]
[null,null,1,null,null,{"$f":"\"4.\"&mergeValue(A12) &\".\"&mergeValue(B12)&\".\"&mergeValue(C12)","v":"4.1.1.1"},"муниципальный район",{"$f":"IF(Территории!H13=\"\",\"\",\"\" & Территории!H13 & \"\")","v":"Ломоносовский муниципальный район"},"Указывается наименование муниципального района, на территории которого организация оказывает услуги по регулируемому виду деятельности."]
[null,null,null,1,null,{"$f":"\"4.\"&mergeValue(A13) &\".\"&mergeValue(B13)&\".\"&mergeValue(C13)&\".\"&mergeValue(D13)","v":"4.1.1.1.1"},"муниципальное образование",{"$f":"IF(Территории!R14=\"\",\"\",\"\" & Территории!R14 & \"\")","v":"Аннинское (41630152)"},"Указывается наименование и код муниципального района, муниципального образования в соответствии с Общероссийским классификатором территорий муниципальных образований (далее - ОКТМО), входящего в муниципальный район, на территории которого организация оказывает услуги по регулируемому виду деятельности.\nВ случае оказания услуг по регулируемому виду деятельности на территории нескольких муниципальных районов (муниципальных образований) данные по каждому их них указываются в отдельной строке."]
[]
[null,null,null,null,null,null,"  1 Информация размещается при раскрытии информации по каждой из форм."]

{"sheet":"Форма 2.14.2 | Т-пит","index":18,"n_rows":29,"n_cols":33,"rows_kept":29,"cut":false,"hidden":false,"merged":[[28,12,28,28],[4,11,4,20],[13,11,15,11],[13,12,15,12],[10,11,10,12],[13,20,15,20],[21,14,21,28],[12,11,12,28],[13,13,15,13],[6,14,6,28],[22,19,23,19],[22,20,23,20],[15,18,15,19],[20,14,20,28],[16,18,16,19],[14,15,14,16],[12,29,15,29],[18,14,18,28],[21,4,24,4],[17,14,17,28],[22,29,24,29],[22,17,23,17],[22,18,23,18],[13,27,15,27],[14,22,14,23],[14,24,14,26],[15,25,15,26],[16,25,16,26],[22,24,23,24],[22,25,23,25],[22,26,23,26],[22,27,23,27],[7,14,7,28],[8,14,8,28],[9,14,9,28],[21,9,24,9],[17,0,26,0],[18,1,26,1],[19,2,26,2],[20,3,25,3],[20,8,25,8],[11,14,11,20],[13,28,15,28],[13,14,13,19],[14,17,14,19],[19,14,19,28],[11,21,11,27],[13,21,13,26]]}
[]
[]
[]
[]
[null,null,null,null,null,null,null,null,null,null,null,"Форма 2.14.2 Информация о предложении величин тарифов на питьевую воду (питьевое водоснабжение), техническую воду, транспортировку воды, подвоз воды1"]
[]
[]
[null,null,null,null,null,null,null,null,null,null,null,null,{"$f":"\"Дата подачи заявления об \"&IF(datePr_ch=\"\",\"утверждении\",\"изменении\") & \" тарифов\"","v":"Дата подачи заявления об утверждении тарифов"},null,{"$f":"IF(datePr_ch=\"\",IF(datePr=\"\",\"\",datePr),datePr_ch)","v":"29.04.2021"}]
[null,null,null,null,null,null,null,null,null,null,null,null,{"$f":"\"Номер подачи заявления об \"&IF(numberPr_ch=\"\",\"утверждении\",\"изменении\") & \" тарифов\"","v":"Номер подачи заявления об утверждении тарифов"},null,{"$f":"IF(numberPr_ch=\"\",IF(numberPr=\"\",\"\",numberPr),numberPr_ch)","v":"б/н"}]
[]
[null,null,null,null,null,null,null,null,null,null,null,null,null,null,null,null,null,null,null,null,"dp",null,null,null,null,null,null,"dp"]
[null,null,null,null,null,null,null,null,null,null,null,null,null,null,null,null,null,null,null,null,null,"О"]
[null,null,null,null,null,null,null,null,null,null,null,"Параметры формы",null,null,null,null,null,null,null,null,null,null,null,null,null,null,null,null,null,"Описание параметров формы"]
[null,null,null,null,null,null,null,null,null,null,null,"№ п/п","Параметры дифференциации",null,"Период действия тарифа",null,null,null,null,null,"Наличие других периодов действия тарифа","Период действия тарифа",null,null,null,null,null,"Наличие других периодов действия тарифа","Добавить период"]
[null,null,null,null,null,null,null,null,null,null,null,null,null,null,"Одноставочный тариф","Двухставочный тариф",null,"Период действия",null,null,null,"Одноставочный тариф","Двухставочный тариф",null,"Период действия"]
[null,null,null,null,null,null,null,null,null,null,null,null,null,null,"Одноставочный тариф, руб./куб. м","ставка платы за объем поданной воды, руб./куб. м","ставка платы за содержание мощности, руб./куб. м в час","дата начала","дата окончания",null,null,"Одноставочный тариф, руб./куб. м","ставка платы за объем поданной воды, руб./куб. м","ставка платы за содержание мощности, руб./куб. м в час","дата начала","дата окончания"]
[null,null,null,null,null,null,null,null,null,null,1,"1","2","2",{"$f":"OFFSET(O17,0,-1)+1","v":3},{"$f":"OFFSET(P17,0,-1)+1","v":4},{"$f":"OFFSET(Q17,0,-1)+1","v":5},{"$f":"OFFSET(R17,0,-1)+1","v":6},{"$f":"OFFSET(S17,0,-1)+1","v":7},null,{"$f":"OFFSET(U17,0,-2)+1","v":8},{"$f":"OFFSET(V17,0,-1)+1","v":9},{"$f":"OFFSET(W17,0,-1)+1","v":10},{"$f":"OFFSET(X17,0,-1)+1","v":11},{"$f":"OFFSET(Y17,0,-1)+1","v":12},{"$f":"OFFSET(Z17,0,-1)+1","v":13},null,{"$f":"OFFSET(AB17,0,-2)+1","v":14},{"$f":"OFFSET(AC17,0,-1)","v":14},{"$f":"OFFSET(AD17,0,-1)+1","v":15}]
[1,null,null,null,null,null,null,null,null,null,null,{"$f":"mergeValue(A18)","v":1},"Наименование тарифа",null,{"$f":"IF('Перечень тарифов'!J21=\"\",\"\",\"\" & 'Перечень тарифов'!J21 & \"\")","v":"Тариф на холодную воду питьевую"},null,null,null,null,null,null,null,null,null,null,null,null,null,null,"Указывается наименование тарифа в случае подачи предложения по нескольким тарифам.\nВ случае наличия нескольких тарифов информация по ним указывается в отдельных строках."]
[null,1,null,null,null,null,null,null,null,null,null,{"$f":"mergeValue(A19) &\".\"& mergeValue(B19)","v":"1.1"}]
[null,null,1,null,null,null,null,null,null,null,null,{"$f":"mergeValue(A20) &\".\"& mergeValue(B20)&\".\"& mergeValue(C20)","v":"1.1.1"}]
[null,null,null,1,null,null,null,null,null,null,null,{"$f":"mergeValue(A21) &\".\"& mergeValue(B21)&\".\"& mergeValue(C21)&\".\"& mergeValue(D21)","v":"1.1.1.1"},"Наименование признака дифференциации",null,null,null,null,null,null,null,null,null,null,null,null,null,null,null,null,"Указывается наименование дополнительного признака дифференциации (при наличии).\nДифференциация тарифа осуществляется в соответствии с законодательством в сфере водоснабжении и водоотведении.\nВ случае дифференциации тарифов по дополнительным признакам информация по ним указывается в отдельных строках."]
[null,null,null,null,1,null,null,null,null,null,null,{"$f":"mergeValue(A22) &\".\"& mergeValue(B22)&\".\"& mergeValue(C22)&\".\"& mergeValue(D22)&\".\"& mergeValue(E22)","v":"1.1.1.1.1"},"Группа потребителей",null,"без дифференциации",null,null,null,null,null,null,null,null,null,null,null,null,null,null,"Указывается группа потребителей при наличии дифференциации тарифа по группам потребителей.\nЗначение выбирается из перечня: Организации-перепродавцы; Бюджетные организации; Население; Прочие; Без дифференциации.\nВ случае дифференциации тарифов группам потребителей информация по ним указывается в отдельных строках.",null,{"$f":"strCheckUnique(AG22:AG25)","v":""}]
[null,null,null,null,null,1,null,null,null,null,null,{"$f":"mergeValue(A23) &\".\"& mergeValue(B23)&\".\"& mergeValue(C23)&\".\"& mergeValue(D23)&\".\"& mergeValue(E23)&\".\"& mergeValue(F23)","v":"1.1.1.1.1.1"},null,null,46.86,null,null,"01.01.2022","да","30.06.2022","да",84.51,null,null,"01.07.2022","да","31.12.2022","нет",null,"В колонке «Параметр дифференциации тарифов» указывается значение дополнительного признака дифференциации.\nПри подаче предложения на двухставочный тариф колонка «Одноставочный тариф» не заполняется.\nПри подаче предложения на одноставочный тариф колонки в блоке «Двухставочный тариф» не заполняются.\nДаты начала и окончания действия тарифов указываются в виде «ДД.ММ.ГГГГ».\nВ случае отсутствия даты окончания действия тарифа в колонке «Дата окончания» указывается «Нет».\nВ случае наличия нескольких значений признака дифференциации тарифов информация по ним указывается в отдельных строках.\nВ случае дифференциации тарифов по периодам действия тарифа информация по ним указывается в отдельных колонках.",{"$f":"strCheckDate(O24:AC24)","v":""},null,{"$f":"IF(M23=\"\",\"\",M23 )","v":""}]
[null,null,null,null,null,null,null,null,null,null,null,null,null,null,null,null,{"$f":"R23 & \"-\" & T23","v":"01.01.2022-30.06.2022"},null,null,null,null,null,null,{"$f":"Y23 & \"-\" & AA23","v":"01.07.2022-31.12.2022"}]
[null,null,null,null,null,null,null,null,null,null,null,null,"Добавить значение признака дифференциации"]
[null,null,null,null,null,null,null,null,null,null,null,null,"Добавить группу потребителей"]
[null,null,null,null,null,null,null,null,null,null,null,null,"Добавить наименование признака дифференциации"]
[]
[null,null,null,null,null,null,null,null,null,null,null,1,"Для каждого вида тарифа в сфере холодного водоснабжения форма заполняется отдельно. При размещении информации по данной форме дополнительно указывается дата подачи заявления об утверждении(изменении) тарифа и его номер."]

{"sheet":"Форма 1.0.1 | Т-подкл(инд)","index":19,"n_rows":19,"n_cols":10,"rows_kept":19,"cut":false,"hidden":true,"merged":[[18,6,18,7],[1,5,1,7],[3,5,3,7],[3,8,4,8],[7,0,15,0],[11,2,13,2],[12,8,13,8],[10,1,14,1]]}
["9"]
[null,null,null,null,null,"Форма 1.0.1 Основные параметры раскрываемой информации 1"]
[]
[null,null,null,null,null,"Параметры формы",null,null,"Описание параметров формы"]
[null,null,null,null,null,"№ п/п","Наименование параметра","Информация"]
[null,null,null,null,null,"1",2,3,4,4]
[null,null,null,null,null,1,"Дата заполнения/внесения изменений",{"$f":"IF(dateCh=\"\",\"\",dateCh)","v":"17.06.2021"},"Указывается календарная дата первичного заполнения или внесения изменений в форму в виде «ДД.ММ.ГГГГ»."]
[1,null,null,null,null,{"$f":"\"2.\" &mergeValue(A8)","v":"2.1"},"Наименование централизованной системы коммунальной инфраструктуры",null,"Указывается наименование централизованной системы холодного водоснабжения/горячего водоснабжения/водоотведения/теплоснабжения, к которой относится размещаемая информация.\nВ случае наличия нескольких централизованных систем коммунальной инфраструктуры, информация по каждой из них указывается в отдельной строке."]
[null,null,null,null,null,{"$f":"\"3.\" &mergeValue(A9)","v":"3.1"},"Наименование регулируемого вида деятельности",null,"Указывается наименование вида регулируемой деятельности."]
[null,null,null,null,null,{"$f":"\"4.\"&mergeValue(A10)","v":"4.1"},"Территория оказания услуги по регулируемому виду деятельности","x"]
[null,1,null,null,null,{"$f":"\"4.\"&mergeValue(A11) &\".\"&mergeValue(B11)","v":"4.1.1"},"Субъект Российской Федерации",{"$f":"IF(region_name=\"\",\"\",region_name)","v":"Ленинградская область"},"Указывается наименование субъекта Российской Федерации"]
[null,null,1,null,null,{"$f":"\"4.\"&mergeValue(A12) &\".\"&mergeValue(B12)&\".\"&mergeValue(C12)","v":"4.1.1.1"},"муниципальный район",null,"Указывается наименование муниципального района, на территории которого организация оказывает услуги по регулируемому виду деятельности."]
[null,null,null,1,null,{"$f":"\"4.\"&mergeValue(A13) &\".\"&mergeValue(B13)&\".\"&mergeValue(C13)&\".\"&mergeValue(D13)","v":"4.1.1.1.1"},"муниципальное образование",null,"Указывается наименование и код муниципального района, муниципального образования в соответствии с Общероссийским классификатором территорий муниципальных образований (далее - ОКТМО), входящего в муниципальный район, на территории которого организация оказывает услуги по регулируемому виду деятельности.\nВ случае оказания услуг по регулируемому виду деятельности на территории нескольких муниципальных районов (муниципальных образований) данные по каждому их них указываются в отдельной строке."]
[null,null,null,null,null,null,"Добавить МО"]
[null,null,null,null,null,null,"Добавить МР"]
[null,null,null,null,null,null,"Добавить территорию"]
[null,null,null,null,null,null,"Добавить ЦС"]
[]
[null,null,null,null,null,null,"  1 Информация размещается при раскрытии информации по каждой из форм."]

{"sheet":"Форма 2.14.3 | Т-подкл(инд)","index":20,"n_rows":32,"n_cols":41,"rows_kept":32,"cut":false,"hidden":true,"merged":[[4,11,4,20],[6,13,6,20],[7,13,7,20],[8,13,8,20],[9,13,9,20],[21,38,26,38],[13,11,13,37],[17,13,17,16],[17,17,17,20],[17,21,17,24],[14,37,16,37],[13,38,16,38],[21,22,22,22],[21,23,22,23],[21,24,22,24],[21,15,24,15],[21,16,24,16],[21,17,24,17],[21,18,23,18],[21,19,23,19],[21,20,23,20],[20,2,26,2],[21,3,25,3],[18,0,28,0],[19,1,27,1],[21,14,24,14],[20,13,20,37],[19,13,19,37],[18,13,18,37],[21,8,25,8],[21,25,22,25],[21,9,25,9],[21,11,25,11],[21,12,25,12],[21,13,25,13],[21,10,25,10],[21,21,23,21],[10,11,10,12],[10,18,10,23],[11,11,11,12],[11,18,11,23],[12,18,12,23],[12,29,12,36],[14,11,16,11],[14,12,16,12],[14,13,16,16],[14,17,16,20],[14,21,16,24],[14,25,16,28],[14,36,16,36],[16,34,16,35],[15,31,15,32],[15,33,15,35],[14,29,14,35],[15,29,15,30]]}
[]
[]
[]
[]
[null,null,null,null,null,null,null,null,null,null,null,"Форма 2.14.3 Информация о предложении величин тарифов на подключение к централизованной системе холодного водоснабжения1"]
[]
[]
[null,null,null,null,null,null,null,null,null,null,null,null,{"$f":"\"Дата подачи заявления об \"&IF(datePr_ch=\"\",\"утверждении\",\"изменении\") & \" тарифов\"","v":"Дата подачи заявления об утверждении тарифов"},{"$f":"IF(datePr_ch=\"\",IF(datePr=\"\",\"\",datePr),datePr_ch)","v":"29.04.2021"}]
[null,null,null,null,null,null,null,null,null,null,null,null,{"$f":"\"Номер подачи заявления об \"&IF(numberPr_ch=\"\",\"утверждении\",\"изменении\") & \" тарифов\"","v":"Номер подачи заявления об утверждении тарифов"},{"$f":"IF(numberPr_ch=\"\",IF(numberPr=\"\",\"\",numberPr),numberPr_ch)","v":"б/н"}]
[]
[null,null,null,null,null,null,null,null,null,null,null,null,null,null,null,null,null,null,null,null,null,null,null,null,null,null,null,null,null,"NDS","woNDS","NDS","woNDS"]
[null,null,null,null,null,null,null,null,null,null,null,null,null,null,null,null,null,null,null,null,null,null,null,null,null,null,null,null,null,null,null,null,null,null,null,null,"dp"]
[]
[null,null,null,null,null,null,null,null,null,null,null,"Параметры формы",null,null,null,null,null,null,null,null,null,null,null,null,null,null,null,null,null,null,null,null,null,null,null,null,null,null,"Описание параметров формы"]
[null,null,null,null,null,null,null,null,null,null,null,"№ п/п","Параметр дифференциации тарифа/Заявитель","Подключаемая нагрузка водопроводной сети, куб. м/сут",null,null,null,"Диапазон диаметров водопроводной сети, мм",null,null,null,"Протяженность водопроводной сети, км",null,null,null,"Условия прокладки сетей",null,null,null,"Период действия тарифа",null,null,null,null,null,null,"Наличие других периодов действия тарифа","Добавить период"]
[null,null,null,null,null,null,null,null,null,null,null,null,null,null,null,null,null,null,null,null,null,null,null,null,null,null,null,null,null,"Ставка тарифа за подключаемую нагрузку водопроводной сети, тыс. руб./куб. м в сут",null,"Ставка тарифа за протяженность водопроводной сети диаметром d, тыс. руб./км",null,"Период действия"]
[null,null,null,null,null,null,null,null,null,null,null,null,null,null,null,null,null,null,null,null,null,null,null,null,null,null,null,null,null,"С НДС","Без НДС","С НДС","Без НДС","Дата начала","Дата окончания"]
[null,null,null,null,null,null,null,null,null,null,1,"1","2",{"$f":"OFFSET(N18,0,-1)+1","v":3},null,null,null,{"$f":"OFFSET(R18,0,-4)+1","v":4},null,null,null,{"$f":"OFFSET(V18,0,-4)+1","v":5},null,null,null,null,null,{"$f":"OFFSET(V18,0,0)+1","v":6},{"$f":"AB18","v":6},{"$f":"OFFSET(AD18,0,-1)+1","v":7},{"$f":"OFFSET(AE18,0,-1)+1","v":8},9,10,11,12,13,{"$f":"OFFSET(AK18,0,-1)+1","v":14},null,15]
[1,null,null,null,null,null,null,null,null,null,null,{"$f":"mergeValue(A19)","v":1},"Наименование тарифа",null,null,null,null,null,null,null,null,null,null,null,null,null,null,null,null,null,null,null,null,null,null,null,null,null,"Указывается наименование тарифа в случае подачи предложения по нескольким тарифам.\nВ случае наличия нескольких тарифов информация по ним указывается в отдельных строках."]
[null,1,null,null,null,null,null,null,null,null,null,{"$f":"mergeValue(A20) &\".\"& mergeValue(B20)","v":"1.1"},"Территория действия тарифа",null,null,null,null,null,null,null,null,null,null,null,null,null,null,null,null,null,null,null,null,null,null,null,null,null,"Указывается наименование территории действия тарифа при наличии дифференциации тарифа по территориальному признаку.\nВ случае дифференциации тарифов по территориальному признаку информация по ним указывается в отдельных строках."]
[null,null,1,null,null,null,null,null,null,null,null,{"$f":"mergeValue(A21) &\".\"& mergeValue(B21)&\".\"& mergeValue(C21)","v":"1.1.1"},"Наименование централизованной системы холодного водоснабжения",null,null,null,null,null,null,null,null,null,null,null,null,null,null,null,null,null,null,null,null,null,null,null,null,null,"Указывается наименование централизованной системы холодного водоснабжения при наличии дифференциации тарифа по централизованным системам холодного водоснабжения.\nВ случае дифференциации тарифов по централизованным системам холодного водоснабжения информация по ним указывается в отдельных строках."]
[null,null,null,1,null,null,null,null,null,null,null,{"$f":"mergeValue(A22) &\".\"& mergeValue(B22)&\".\"& mergeValue(C22)&\".\"& mergeValue(D22)","v":"1.1.1.1"},null,"да",null,"1",null,"нет",null,1,null,"нет",null,1,null,"нет",null,1,null,null,null,null,null,null,"да",null,"нет",null,"В колодке «Параметр дифференциации тарифа/Заявитель» указывается наименование категории потребителей/заявителя, к которой относится тариф.\nДаты начала и окончания указываются в виде «ДД.ММ.ГГГГ».\nВ случае отсутствия даты окончания тарифа в колонке «Дата окончания» указывается «Нет».\nВ случае дифференциации по категориям потребителей/заявителям, подключаемой нагрузке, диапазону диаметров, протяженности, условиям прокладки водопроводной сети информация по ним указывается в отдельных строках.\nВ случае дифференциации тарифов по периодам действия тарифа информация по ним указывается в отдельных колонках.",{"$f":"strCheckDateOnDP(V22:AL22,List06_9_DP)","v":""},{"$f":"IF(AND(COUNTIF(AP18:AP26,AP22)>1,AP22<>\"\"),\"ErrUnique:HasDoubleConn\",\"\")","v":""}]
[null,null,null,null,null,null,null,null,null,null,null,null,null,null,null,null,null,null,null,null,null,null,null,null,null,null,null,null,null,null,null,null,{"$f":"AH22 & \"-\" & AJ22","v":"-"},null,null,null,"нет"]
[]
[]
[null,null,null,null,null,null,null,null,null,null,null,null,null,null,null,null,"Добавить подключаемую нагрузку"]
[null,null,null,null,null,null,null,null,null,null,null,null,"Добавить строку"]
[null,null,null,null,null,null,null,null,null,null,null,null,"Добавить наименование системы водоснабжения"]
[null,null,null,null,null,null,null,null,null,null,null,null,"Добавить территорию действия тарифа"]
[null,null,null,null,null,null,null,null,null,null,null,null,"Добавить наименование тарифа"]
[]
[null,null,null,null,null,null,null,null,null,null,null,1,"При размещении информации по данной форме дополнительно указывается дата подачи заявления об утверждении(изменении) тарифа и его номер."]

{"sheet":"Форма 1.0.1 | Т-подкл","index":21,"n_rows":19,"n_cols":10,"rows_kept":19,"cut":false,"hidden":true,"merged":[[18,6,18,7],[1,5,1,7],[3,5,3,7],[3,8,4,8],[7,0,15,0],[11,2,13,2],[12,8,13,8],[10,1,14,1]]}
["10"]
[null,null,null,null,null,"Форма 1.0.1 Основные параметры раскрываемой информации 1"]
[]
[null,null,null,null,null,"Параметры формы",null,null,"Описание параметров формы"]
[null,null,null,null,null,"№ п/п","Наименование параметра","Информация"]
[null,null,null,null,null,"1",2,3,4,4]
[null,null,null,null,null,1,"Дата заполнения/внесения изменений",{"$f":"IF(dateCh=\"\",\"\",dateCh)","v":"17.06.2021"},"Указывается календарная дата первичного заполнения или внесения изменений в форму в виде «ДД.ММ.ГГГГ»."]
[1,null,null,null,null,{"$f":"\"2.\" &mergeValue(A8)","v":"2.1"},"Наименование централизованной системы коммунальной инфраструктуры",null,"Указывается наименование централизованной системы холодного водоснабжения/горячего водоснабжения/водоотведения/теплоснабжения, к которой относится размещаемая информация.\nВ случае наличия нескольких централизованных систем коммунальной инфраструктуры, информация по каждой из них указывается в отдельной строке."]
[null,null,null,null,null,{"$f":"\"3.\" &mergeValue(A9)","v":"3.1"},"Наименование регулируемого вида деятельности",null,"Указывается наименование вида регулируемой деятельности."]
[null,null,null,null,null,{"$f":"\"4.\"&mergeValue(A10)","v":"4.1"},"Территория оказания услуги по регулируемому виду деятельности","x"]
[null,1,null,null,null,{"$f":"\"4.\"&mergeValue(A11) &\".\"&mergeValue(B11)","v":"4.1.1"},"Субъект Российской Федерации",{"$f":"IF(region_name=\"\",\"\",region_name)","v":"Ленинградская область"},"Указывается наименование субъекта Российской Федерации"]
[null,null,1,null,null,{"$f":"\"4.\"&mergeValue(A12) &\".\"&mergeValue(B12)&\".\"&mergeValue(C12)","v":"4.1.1.1"},"муниципальный район",null,"Указывается наименование муниципального района, на территории которого организация оказывает услуги по регулируемому виду деятельности."]
[null,null,null,1,null,{"$f":"\"4.\"&mergeValue(A13) &\".\"&mergeValue(B13)&\".\"&mergeValue(C13)&\".\"&mergeValue(D13)","v":"4.1.1.1.1"},"муниципальное образование",null,"Указывается наименование и код муниципального района, муниципального образования в соответствии с Общероссийским классификатором территорий муниципальных образований (далее - ОКТМО), входящего в муниципальный район, на территории которого организация оказывает услуги по регулируемому виду деятельности.\nВ случае оказания услуг по регулируемому виду деятельности на территории нескольких муниципальных районов (муниципальных образований) данные по каждому их них указываются в отдельной строке."]
[null,null,null,null,null,null,"Добавить МО"]
[null,null,null,null,null,null,"Добавить МР"]
[null,null,null,null,null,null,"Добавить территорию"]
[null,null,null,null,null,null,"Добавить ЦС"]
[]
[null,null,null,null,null,null,"  1 Информация размещается при раскрытии информации по каждой из форм."]

{"sheet":"Форма 2.14.3 | Т-подкл","index":22,"n_rows":32,"n_cols":40,"rows_kept":32,"cut":false,"hidden":true,"merged":[[12,28,12,35],[14,12,16,12],[14,11,16,11],[4,11,4,19],[6,13,6,19],[7,13,7,19],[8,13,8,19],[9,13,9,19],[12,17,12,22],[11,17,11,22],[10,17,10,22],[10,11,10,12],[11,11,11,12],[14,24,16,27],[13,11,13,36],[14,13,16,15],[17,20,17,23],[17,16,17,19],[17,13,17,15],[21,12,25,12],[21,15,24,15],[21,13,24,13],[21,19,23,19],[20,13,20,36],[21,21,22,21],[21,14,24,14],[18,0,28,0],[19,1,27,1],[20,2,26,2],[21,3,25,3],[21,10,25,10],[21,8,25,8],[21,9,25,9],[21,11,25,11],[21,17,23,17],[21,20,23,20],[19,13,19,36],[21,24,22,24],[13,37,16,37],[21,37,26,37],[14,36,16,36],[14,16,16,19],[14,20,16,23],[21,18,23,18],[21,22,22,22],[21,16,24,16],[14,28,14,34],[14,35,16,35],[21,23,22,23],[15,28,15,29],[15,32,15,34],[18,13,18,36],[16,33,16,34],[15,30,15,31]]}
[]
[]
[]
[]
[null,null,null,null,null,null,null,null,null,null,null,"Форма 2.14.3 Информация о предложении величин тарифов на подключение к централизованной системе холодного водоснабжения1"]
[]
[null,null,null,null,null,null,null,null,null,null,null,null,"Наименование органа регулирования, принявшего решение об утверждении тарифов",{"$f":"IF(NameOrPr=\"\",\"\",NameOrPr)","v":""}]
[null,null,null,null,null,null,null,null,null,null,null,null,{"$f":"\"Дата подачи заявления об \"&IF(datePr_ch=\"\",\"утверждении\",\"изменении\") & \" тарифов\"","v":"Дата подачи заявления об утверждении тарифов"},{"$f":"IF(datePr_ch=\"\",IF(datePr=\"\",\"\",datePr),datePr_ch)","v":"29.04.2021"}]
[null,null,null,null,null,null,null,null,null,null,null,null,{"$f":"\"Номер подачи заявления об \"&IF(numberPr_ch=\"\",\"утверждении\",\"изменении\") & \" тарифов\"","v":"Номер подачи заявления об утверждении тарифов"},{"$f":"IF(numberPr_ch=\"\",IF(numberPr=\"\",\"\",numberPr),numberPr_ch)","v":"б/н"}]
[null,null,null,null,null,null,null,null,null,null,null,null,"Источник официального опубликования решения",{"$f":"IF(IstPub=\"\",\"\",IstPub)","v":""}]
[null,null,null,null,null,null,null,null,null,null,null,null,null,null,null,null,null,null,null,null,null,null,null,null,null,null,null,null,"NDS","woNDS","NDS","woNDS"]
[null,null,null,null,null,null,null,null,null,null,null,null,null,null,null,null,null,null,null,null,null,null,null,null,null,null,null,null,null,null,null,null,null,null,null,"dp"]
[]
[null,null,null,null,null,null,null,null,null,null,null,"Параметры формы",null,null,null,null,null,null,null,null,null,null,null,null,null,null,null,null,null,null,null,null,null,null,null,null,null,"Описание параметров формы"]
[null,null,null,null,null,null,null,null,null,null,null,"№ п/п","Параметр дифференциации тарифа/Заявитель","Подключаемая нагрузка водопроводной сети, куб. м/сут",null,null,"Диапазон диаметров водопроводной сети, мм",null,null,null,"Протяженность водопроводной сети, км",null,null,null,"Условия прокладки сетей",null,null,null,"Период действия тарифа",null,null,null,null,null,null,"Наличие других периодов действия тарифа","Добавить период"]
[null,null,null,null,null,null,null,null,null,null,null,null,null,null,null,null,null,null,null,null,null,null,null,null,null,null,null,null,"Ставка тарифа за подключаемую нагрузку водопроводной сети, тыс. руб./куб. м в сут",null,"Ставка тарифа за протяженность водопроводной сети диаметром d, тыс. руб./км",null,"Период действия"]
[null,null,null,null,null,null,null,null,null,null,null,null,null,null,null,null,null,null,null,null,null,null,null,null,null,null,null,null,"С НДС","Без НДС","С НДС","Без НДС","Дата начала","Дата окончания"]
[null,null,null,null,null,null,null,null,null,null,1,"1","2",{"$f":"OFFSET(N18,0,-1)+1","v":3},null,null,{"$f":"OFFSET(Q18,0,-3)+1","v":4},null,null,null,{"$f":"OFFSET(U18,0,-4)+1","v":5},null,null,null,null,null,{"$f":"OFFSET(U18,0,0)+1","v":6},{"$f":"AA18","v":6},{"$f":"OFFSET(AC18,0,-1)+1","v":7},8,9,10,11,12,13,14,null,15]
[1,null,null,null,null,null,null,null,null,null,null,{"$f":"mergeValue(A19)","v":1},"Наименование тарифа",null,null,null,null,null,null,null,null,null,null,null,null,null,null,null,null,null,null,null,null,null,null,null,null,"Указывается наименование тарифа в случае подачи предложения по нескольким тарифам.\nВ случае наличия нескольких тарифов информация по ним указывается в отдельных строках."]
[null,1,null,null,null,null,null,null,null,null,null,{"$f":"mergeValue(A20) &\".\"& mergeValue(B20)","v":"1.1"},"Территория действия тарифа",null,null,null,null,null,null,null,null,null,null,null,null,null,null,null,null,null,null,null,null,null,null,null,null,"Указывается наименование территории действия тарифа при наличии дифференциации тарифа по территориальному признаку.\nВ случае дифференциации тарифов по территориальному признаку информация по ним указывается в отдельных строках."]
[null,null,1,null,null,null,null,null,null,null,null,{"$f":"mergeValue(A21) &\".\"& mergeValue(B21)&\".\"& mergeValue(C21)","v":"1.1.1"},"Наименование централизованной системы холодного водоснабжения",null,null,null,null,null,null,null,null,null,null,null,null,null,null,null,null,null,null,null,null,null,null,null,null,"Указывается наименование централизованной системы холодного водоснабжения при наличии дифференциации тарифа по централизованным системам холодного водоснабжения.\nВ случае дифференциации тарифов по централизованным системам холодного водоснабжения информация по ним указывается в отдельных строках."]
[null,null,null,1,null,null,null,null,null,null,null,{"$f":"mergeValue(A22) &\".\"& mergeValue(B22)&\".\"& mergeValue(C22)&\".\"& mergeValue(D22)","v":"1.1.1.1"},null,null,"1",null,"нет",null,1,null,"нет",null,"1",null,"нет",null,1,null,null,null,null,null,null,"да",null,"нет",null,"В колодке «Параметр дифференциации тарифа/Заявитель» указывается наименование категории потребителей/заявителя, к которой относится тариф.\nДаты начала и окончания указываются в виде «ДД.ММ.ГГГГ».\nВ случае отсутствия даты окончания тарифа в колонке «Дата окончания» указывается «Нет».\nВ случае дифференциации по категориям потребителей/заявителям, подключаемой нагрузке, диапазону диаметров, протяженности, условиям прокладки водопроводной сети информация по ним указывается в отдельных строках.\nВ случае дифференциации тарифов по периодам действия тарифа информация по ним указывается в отдельных колонках.",{"$f":"strCheckDateOnDP(AC22:AK22,List06_10_DP)","v":""},{"$f":"IF(AND(COUNTIF(AO18:AO26,AO22)>1,AO22<>\"\"),\"ErrUnique:HasDoubleConn\",\"\")","v":""}]
[null,null,null,null,null,null,null,null,null,null,null,null,null,null,null,null,null,null,null,null,null,null,null,null,null,null,null,null,null,null,null,{"$f":"AG22 & \"-\" & AI22","v":"-"},null,null,null,"нет"]
[]
[]
[null,null,null,null,null,null,null,null,null,null,null,null,null,null,null,"Добавить подключаемую нагрузку"]
[null,null,null,null,null,null,null,null,null,null,null,null,"Добавить строку"]
[null,null,null,null,null,null,null,null,null,null,null,null,"Добавить наименование системы водоснабжения"]
[null,null,null,null,null,null,null,null,null,null,null,null,"Добавить территорию действия тарифа"]
[null,null,null,null,null,null,null,null,null,null,null,null,"Добавить наименование тарифа"]
[]
[null,null,null,null,null,null,null,null,null,null,null,1,"При размещении информации по данной форме дополнительно указывается дата подачи заявления об утверждении(изменении) тарифа и его номер."]

{"sheet":"Форма 1.0.2","index":23,"n_rows":15,"n_cols":13,"rows_kept":15,"cut":false,"hidden":true,"merged":[[4,3,4,9],[14,4,14,9],[11,10,12,10],[7,3,7,9],[8,4,8,5],[7,10,9,10],[8,6,8,9],[8,3,9,3]]}
[]
[]
[]
[]
[null,null,null,"Форма 1.0.2 Информация о публикации в печатных изданиях 2"]
[]
[]
[null,null,null,"Параметры формы",null,null,null,null,null,null,"Описание параметров формы"]
[null,null,null,"№ п/п","Форма публикации",null,"Официальное печатное издание"]
[null,null,null,null,"Номер","Наименование","Наименование","Номер","Дата выпуска","Ссылка на документ"]
[null,null,null,"1","2","3","4","5","6","7","8"]
["3","",null,"1",null,null,null,null,null,null,"В колонке «Дата выпуска» дата выпуска печатного издания указывается в виде «ДД.ММ.ГГГГ».\nВ колонке «Ссылка на документ» указывается ссылка на отсканированную копию печатного издания, предварительно загруженную в хранилище федеральной государственной информационной системы «Единая информационно-аналитическая система «Федеральный орган регулирования - региональные органы регулирования - субъекты регулирования» (далее – ФГИС ЕИАС), с опубликованной информацией.\nВ случае публикации информации в нескольких печатных изданиях информация по каждому из них указывается в отдельной строке.",null,{"$f":"IF(ISERROR(INDEX(kind_of_nameforms,MATCH(E12,kind_of_forms,0),1)),\"\",INDEX(kind_of_nameforms,MATCH(E12,kind_of_forms,0),1))","v":""}]
[null,null,null,null,"Добавить строку"]
[]
[null,null,null,null,"2 Размещается информация по каждой из форм раскрытия, данные в которой относятся к муниципальному образованию, в котором отсутствует доступ в сеть «Интернет»."]

{"sheet":"Сведения об изменении","index":24,"n_rows":15,"n_cols":5,"rows_kept":15,"cut":false,"hidden":true,"merged":[[6,3,6,4],[14,3,14,4]]}
[]
[]
[]
[]
[]
[]
[null,null,null,"Сведения об изменениях в первоначально опубликованной информации*"]
[]
[null,null,null,"№ п/п","Сведения"]
[null,null,null,"1","2"]
[null,null,null,0]
[null,null,null,1]
[null,null,null,null,"Добавить"]
[]
[null,null,null,"* Лист заполняется в случае, если на Титульном листе в поле \"Тип отчета\" выбрано значение «Изменения в раскрытой ранее информации»."]

{"sheet":"Комментарии","index":25,"n_rows":12,"n_cols":5,"rows_kept":12,"cut":false,"hidden":true,"merged":[[6,3,6,4]]}
[]
[]
[]
[]
[]
[]
[null,null,null,"Комментарии"]
[]
[null,null,null,"№ п/п","Комментарий"]
[null,null,null,"1","2"]
[null,null,null,0]
[null,null,null,null,"Добавить"]

{"sheet":"Проверка","index":26,"n_rows":4,"n_cols":4,"rows_kept":4,"cut":false,"hidden":true,"merged":[[1,1,1,3]]}
[]
[null,"Результат проверки"]
[]
[null,"Ссылка","Причина","Статус"]

{"sheet":"modListTempFilter","index":27,"n_rows":0,"n_cols":0,"rows_kept":0,"cut":false,"hidden":true,"merged":[]}

{"sheet":"modCheckCyan","index":28,"n_rows":90,"n_cols":1,"rows_kept":90,"cut":false,"hidden":true,"merged":[]}
[{"$f":"IF('Форма 2.13'!$F$10=\"\",1,0)","v":0}]
[{"$f":"IF('Форма 2.13'!$G$10=\"\",1,0)","v":0}]
[{"$f":"IF('Форма 2.13'!$F$11=\"\",1,0)","v":0}]
[{"$f":"IF('Форма 2.13'!$G$11=\"\",1,0)","v":0}]
[{"$f":"IF('Форма 2.13'!$F$12=\"\",1,0)","v":0}]
[{"$f":"IF('Форма 2.13'!$G$12=\"\",1,0)","v":0}]
[{"$f":"IF('Форма 2.13'!$F$13=\"\",1,0)","v":0}]
[{"$f":"IF('Форма 2.13'!$G$13=\"\",1,0)","v":0}]
[{"$f":"IF('Форма 2.14.1'!$J$15=\"\",1,0)","v":0}]
[{"$f":"IF('Форма 2.14.1'!$H$17=\"\",1,0)","v":0}]
[{"$f":"IF('Форма 2.14.1'!$I$17=\"\",1,0)","v":0}]
[{"$f":"IF('Форма 2.14.1'!$J$17=\"\",1,0)","v":0}]
[{"$f":"IF('Форма 2.14.1'!$H$22=\"\",1,0)","v":0}]
[{"$f":"IF('Форма 2.14.1'!$I$22=\"\",1,0)","v":0}]
[{"$f":"IF('Форма 2.14.1'!$J$22=\"\",1,0)","v":0}]
[{"$f":"IF('Форма 2.14.1'!$H$25=\"\",1,0)","v":0}]
[{"$f":"IF('Форма 2.14.1'!$I$25=\"\",1,0)","v":0}]
[{"$f":"IF('Форма 2.14.1'!$J$25=\"\",1,0)","v":0}]
[{"$f":"IF('Форма 2.14.1'!$H$28=\"\",1,0)","v":0}]
[{"$f":"IF('Форма 2.14.1'!$I$28=\"\",1,0)","v":0}]
[{"$f":"IF('Форма 2.14.1'!$J$28=\"\",1,0)","v":0}]
[{"$f":"IF('Форма 2.14.1'!$H$31=\"\",1,0)","v":0}]
[{"$f":"IF('Форма 2.14.1'!$I$31=\"\",1,0)","v":0}]
[{"$f":"IF('Форма 2.14.1'!$J$31=\"\",1,0)","v":0}]
[{"$f":"IF('Форма 2.14.2 | Т-тех'!$O$22=\"\",1,0)","v":1}]
[{"$f":"IF('Форма 2.14.2 | Т-тех'!$R$23=\"\",1,0)","v":1}]
[{"$f":"IF('Форма 2.14.2 | Т-тех'!$T$23=\"\",1,0)","v":1}]
[{"$f":"IF('Форма 2.14.2 | Т-тех'!$S$23=\"\",1,0)","v":0}]
[{"$f":"IF('Форма 2.14.2 | Т-тех'!$U$23=\"\",1,0)","v":0}]
[{"$f":"IF('Форма 2.14.2 | Т-транс'!$O$22=\"\",1,0)","v":1}]
[{"$f":"IF('Форма 2.14.2 | Т-транс'!$R$23=\"\",1,0)","v":1}]
[{"$f":"IF('Форма 2.14.2 | Т-транс'!$T$23=\"\",1,0)","v":1}]
[{"$f":"IF('Форма 2.14.2 | Т-транс'!$S$23=\"\",1,0)","v":0}]
[{"$f":"IF('Форма 2.14.2 | Т-транс'!$U$23=\"\",1,0)","v":0}]
[{"$f":"IF('Форма 2.14.2 | Т-подвоз'!$O$22=\"\",1,0)","v":1}]
[{"$f":"IF('Форма 2.14.2 | Т-подвоз'!$R$23=\"\",1,0)","v":1}]
[{"$f":"IF('Форма 2.14.2 | Т-подвоз'!$T$23=\"\",1,0)","v":1}]
[{"$f":"IF('Форма 2.14.2 | Т-подвоз'!$S$23=\"\",1,0)","v":0}]
[{"$f":"IF('Форма 2.14.2 | Т-подвоз'!$U$23=\"\",1,0)","v":0}]
[{"$f":"IF('Форма 2.14.2 | Т-пит'!$O$22=\"\",1,0)","v":0}]
[{"$f":"IF('Форма 2.14.2 | Т-пит'!$R$23=\"\",1,0)","v":0}]
[{"$f":"IF('Форма 2.14.2 | Т-пит'!$T$23=\"\",1,0)","v":0}]
[{"$f":"IF('Форма 2.14.2 | Т-пит'!$S$23=\"\",1,0)","v":0}]
[{"$f":"IF('Форма 2.14.2 | Т-пит'!$U$23=\"\",1,0)","v":0}]
[{"$f":"IF('Форма 2.14.3 | Т-подкл(инд)'!$M$22=\"\",1,0)","v":1}]
[{"$f":"IF('Форма 2.14.3 | Т-подкл(инд)'!$Q$22=\"\",1,0)","v":1}]
[{"$f":"IF('Форма 2.14.3 | Т-подкл(инд)'!$AD$22=\"\",1,0)","v":1}]
[{"$f":"IF('Форма 2.14.3 | Т-подкл(инд)'!$AE$22=\"\",1,0)","v":1}]
[{"$f":"IF('Форма 2.14.3 | Т-подкл(инд)'!$AF$22=\"\",1,0)","v":1}]
[{"$f":"IF('Форма 2.14.3 | Т-подкл(инд)'!$AG$22=\"\",1,0)","v":1}]
[{"$f":"IF('Форма 2.14.3 | Т-подкл(инд)'!$AH$22=\"\",1,0)","v":1}]
[{"$f":"IF('Форма 2.14.3 | Т-подкл(инд)'!$AJ$22=\"\",1,0)","v":1}]
[{"$f":"IF('Форма 2.14.3 | Т-подкл(инд)'!$N$22=\"\",1,0)","v":0}]
[{"$f":"IF('Форма 2.14.3 | Т-подкл(инд)'!$R$22=\"\",1,0)","v":0}]
[{"$f":"IF('Форма 2.14.3 | Т-подкл(инд)'!$V$22=\"\",1,0)","v":0}]
[{"$f":"IF('Форма 2.14.3 | Т-подкл(инд)'!$Z$22=\"\",1,0)","v":0}]
[{"$f":"IF('Форма 2.14.3 | Т-подкл(инд)'!$AI$22=\"\",1,0)","v":0}]
[{"$f":"IF('Форма 2.14.3 | Т-подкл(инд)'!$AK$22=\"\",1,0)","v":0}]
[{"$f":"IF('Форма 2.14.3 | Т-подкл'!$P$22=\"\",1,0)","v":1}]
[{"$f":"IF('Форма 2.14.3 | Т-подкл'!$AC$22=\"\",1,0)","v":1}]
[{"$f":"IF('Форма 2.14.3 | Т-подкл'!$AD$22=\"\",1,0)","v":1}]
[{"$f":"IF('Форма 2.14.3 | Т-подкл'!$AE$22=\"\",1,0)","v":1}]
[{"$f":"IF('Форма 2.14.3 | Т-подкл'!$AF$22=\"\",1,0)","v":1}]
[{"$f":"IF('Форма 2.14.3 | Т-подкл'!$AG$22=\"\",1,0)","v":1}]
[{"$f":"IF('Форма 2.14.3 | Т-подкл'!$AI$22=\"\",1,0)","v":1}]
[{"$f":"IF('Форма 2.14.3 | Т-подкл'!$Q$22=\"\",1,0)","v":0}]
[{"$f":"IF('Форма 2.14.3 | Т-подкл'!$U$22=\"\",1,0)","v":0}]
[{"$f":"IF('Форма 2.14.3 | Т-подкл'!$Y$22=\"\",1,0)","v":0}]
[{"$f":"IF('Форма 2.14.3 | Т-подкл'!$AH$22=\"\",1,0)","v":0}]
[{"$f":"IF('Форма 2.14.3 | Т-подкл'!$AJ$22=\"\",1,0)","v":0}]
[{"$f":"IF('Форма 1.0.2'!$E$12=\"\",1,0)","v":1}]
[{"$f":"IF('Форма 1.0.2'!$F$12=\"\",1,0)","v":1}]
[{"$f":"IF('Форма 1.0.2'!$G$12=\"\",1,0)","v":1}]
[{"$f":"IF('Форма 1.0.2'!$H$12=\"\",1,0)","v":1}]
[{"$f":"IF('Форма 1.0.2'!$I$12=\"\",1,0)","v":1}]
[{"$f":"IF('Форма 1.0.2'!$J$12=\"\",1,0)","v":1}]
[{"$f":"IF('Сведения об изменении'!$E$12=\"\",1,0)","v":1}]
[{"$f":"IF(Территории!$E$12=\"\",1,0)","v":0}]
[{"$f":"IF('Перечень тарифов'!$E$21=\"\",1,0)","v":0}]
[{"$f":"IF('Перечень тарифов'!$F$21=\"\",1,0)","v":0}]
[{"$f":"IF('Перечень тарифов'!$G$21=\"\",1,0)","v":0}]
[{"$f":"IF('Перечень тарифов'!$K$21=\"\",1,0)","v":0}]
[{"$f":"IF('Перечень тарифов'!$O$21=\"\",1,0)","v":0}]
[{"$f":"IF('Форма 2.14.2 | Т-пит'!$O$23=\"\",1,0)","v":0}]
[{"$f":"IF('Форма 2.14.1'!$K$20=\"\",1,0)","v":0}]
[{"$f":"IF('Форма 2.14.2 | Т-пит'!$Y$23=\"\",1,0)","v":0}]
[{"$f":"IF('Форма 2.14.2 | Т-пит'!$AA$23=\"\",1,0)","v":0}]
[{"$f":"IF('Форма 2.14.2 | Т-пит'!$V$23=\"\",1,0)","v":0}]
[{"$f":"IF('Форма 2.14.2 | Т-пит'!$Z$23=\"\",1,0)","v":0}]
[{"$f":"IF('Форма 2.14.2 | Т-пит'!$AB$23=\"\",1,0)","v":0}]

{"sheet":"REESTR_LINK","index":29,"n_rows":3,"n_cols":3,"rows_kept":3,"cut":false,"hidden":true,"merged":[]}
["ID","LINK_NAME","REGION"]
[4189678,"https://portal.eias.ru/Portal/DownloadPage.aspx?type=12&guid=????????-????-????-????-????????????","ALL"]
[4190415,"https://eias.fstrf.ru/disclo/get_file?p_guid=????????-????-????-????-????????????","ALL"]

{"sheet":"REESTR_DS","index":30,"n_rows":6,"n_cols":2,"rows_kept":6,"cut":false,"hidden":true,"merged":[]}
[]
[]
[null,"Ломоносовский муниципальный район, Аннинское (41630152);"]
[null,"территория 2"]
[null,"территория 3"]
[null,"территория 4"]

{"sheet":"modHTTP","index":31,"n_rows":0,"n_cols":0,"rows_kept":0,"cut":false,"hidden":true,"merged":[]}

{"sheet":"modfrmRezimChoose","index":32,"n_rows":0,"n_cols":0,"rows_kept":0,"cut":false,"hidden":true,"merged":[]}

{"sheet":"modSheetMain","index":33,"n_rows":1,"n_cols":2,"rows_kept":1,"cut":false,"hidden":true,"merged":[]}
["Форма","Листы"]

{"sheet":"REESTR_VT","index":34,"n_rows":7,"n_cols":2,"rows_kept":7,"cut":false,"hidden":true,"merged":[]}
["ID_TARIFF_NAME","TARIFF_NAME"]
[4189680,"Тариф на питьевую воду (питьевое водоснабжение)"]
[4189681,"Тариф на подвоз воды"]
[4189682,"Тариф на транспортировку воды"]
[4189683,"Тариф на техническую воду"]
[4189684,"Тариф на подключение (технологическое присоединение) к централизованной системе холодного водоснабжения"]
[4189685,"Тариф на подключение (технологическое присоединение) к централизованной системе холодного водоснабжения в индивидуальном порядке"]

{"sheet":"REESTR_VED","index":35,"n_rows":8,"n_cols":2,"rows_kept":8,"cut":false,"hidden":true,"merged":[]}
["ID_TARIFF_NAME","VED_NAME"]
[4189671,"Холодное водоснабжение. Питьевая вода"]
[4189672,"Холодное водоснабжение. Техническая вода"]
[4189673,"Холодное водоснабжение. Подвозная вода"]
[4189674,"Транспортировка. Питьевая вода"]
[4189675,"Транспортировка. Техническая вода"]
[4189676,"Транспортировка. Подвозная вода"]
[4189677,"Подключение (технологическое присоединение) к централизованной системе водоснабжения"]

{"sheet":"modfrmReestrObj","index":36,"n_rows":0,"n_cols":0,"rows_kept":0,"cut":false,"hidden":true,"merged":[]}

{"sheet":"AllSheetsInThisWorkbook","index":37,"n_rows":42,"n_cols":2,"rows_kept":42,"cut":false,"hidden":true,"merged":[]}
["Расчетные листы","Скрытые листы"]
["Instruction","modList14_1"]
["modUpdTemplLogger","modProv"]
["List00","modListTempFilter"]
["List01","modCheckCyan"]
["List02","REESTR_LINK"]
["List05_11","REESTR_DS"]
["List13","modHTTP"]
["List14_1","modfrmRezimChoose"]
["List05_1","modSheetMain"]
["List06_1","REESTR_VT"]
["List05_2","REESTR_VED"]
["List06_2","modfrmReestrObj"]
["List05_3","AllSheetsInThisWorkbook"]
["List06_3","TSH_et_union_vert"]
["List05_4","modInstruction"]
["List06_4","modRegion"]
["List05_9","modReestr"]
["List06_9","modfrmReestr"]
["List05_10","modUpdTemplMain"]
["List06_10","TSH_REESTR_ORG"]
["List03","modClassifierValidate"]
["List07","modHyp"]
["ListComm","modServiceModule"]
["ListCheck","modList00"]
[null,"modList01"]
[null,"modList02"]
[null,"modList03"]
[null,"TSH_REESTR_MO_FILTER"]
[null,"TSH_REESTR_MO"]
[null,"TEHSHEET"]
[null,"TSH_et_union_hor"]
[null,"modInfo"]
[null,"modList05"]
[null,"modList06"]
[null,"modList07"]
[null,"modList13"]
[null,"modfrmDateChoose"]
[null,"modComm"]
[null,"modThisWorkbook"]
[null,"modfrmReestrMR"]
[null,"modfrmCheckUpdates"]

{"sheet":"et_union_vert","index":38,"n_rows":0,"n_cols":0,"rows_kept":0,"cut":false,"hidden":true,"merged":[]}

{"sheet":"modInstruction","index":39,"n_rows":0,"n_cols":0,"rows_kept":0,"cut":false,"hidden":true,"merged":[]}

{"sheet":"modRegion","index":40,"n_rows":0,"n_cols":0,"rows_kept":0,"cut":false,"hidden":true,"merged":[]}

{"sheet":"modReestr","index":41,"n_rows":0,"n_cols":0,"rows_kept":0,"cut":false,"hidden":true,"merged":[]}

{"sheet":"modfrmReestr","index":42,"n_rows":0,"n_cols":0,"rows_kept":0,"cut":false,"hidden":true,"merged":[]}

{"sheet":"modUpdTemplMain","index":43,"n_rows":0,"n_cols":0,"rows_kept":0,"cut":false,"hidden":true,"merged":[]}

{"sheet":"REESTR_ORG","index":44,"n_rows":178,"n_cols":10,"rows_kept":178,"cut":false,"hidden":true,"merged":[]}
["№","REGION_ID","REGION_NAME","RST_ORG_ID","ORG_NAME","INN_NAME","KPP_NAME","ORG_START_DATE","ORG_END_DATE"]
[1,"2610","Ленинградская область","31323956","АО \"ВКХ\"","4703165123","470301001",null,null,"VS"]
[2,"2610","Ленинградская область","31512778","АО \"ВиК\"","4706040933","470601001",null,null,"VS"]
[3,"2610","Ленинградская область","26373306","АО \"ГАТЧИНСКИЙ ККЗ\"","4719000303","470501001",null,null,"VS"]
[4,"2610","Ленинградская область","30335229","АО \"ГУ ЖКХ\"","5116000922","770401001",null,null,"VS"]
[5,"2610","Ленинградская область","31391606","АО \"ЕвроХим-СЗ\"","4707036312","660850001",null,null,"VS"]
[6,"2610","Ленинградская область","31208153","АО \"ИЭК\"","4725005187","472501001",null,null,"VS"]
[7,"2610","Ленинградская область","29648562","АО \"Исток\"","4703131205","470301001","10-09-2015 00:00:00",null,"VS"]
[8,"2610","Ленинградская область","26373248","АО \"Коммунальные системы Гатчинского района\"","4705039967","470501001",null,null,"VS"]
[9,"2610","Ленинградская область","26604613","АО \"Компания Усть-Луга\"","4707005410","771401001","01-06-1992 00:00:00",null,"VS"]
[10,"2610","Ленинградская область","26506539","АО \"Концерн Росэнергоатом\" филиал \"Ленинградская атомная станция\"","7721632827","472643001",null,null,"VS"]
[11,"2610","Ленинградская область","31449634","АО \"ЛОКС\"","4705029366","470501001",null,null,"VS"]
[12,"2610","Ленинградская область","26523683","АО \"ЛОТЭК\"","4716028445","470701001","09-06-2010 00:00:00",null,"VS"]
[13,"2610","Ленинградская область","28942511","АО \"НПО \"Поиск\"","4703142849","470301001",null,null,"VS"]
[14,"2610","Ленинградская область","26524292","АО \"Нева Энергия\"","7802312374","471302001","09-06-2010 00:00:00",null,"VS"]
[15,"2610","Ленинградская область","26373316","АО \"Промышленный комплекс \"Энергия\"","4720011010","472501001",null,null,"VS"]
[16,"2610","Ленинградская область","27544623","АО \"Птицефабрика Лаголово\"","4720004013","472501001",null,null,"VS"]
[17,"2610","Ленинградская область","26380426","АО \"Птицефабрика Северная\"","4706002688","470601001",null,null,"VS"]
[18,"2610","Ленинградская область","26319703","АО \"СЗИПК\"","7819020549","471501001","09-04-1999 00:00:00",null,"VS"]
[19,"2610","Ленинградская область","26524308","АО \"Тепловые сети\"","4716024190","471601001","09-06-2010 00:00:00",null,"VS"]
[20,"2610","Ленинградская область","30427522","АО ГУ ЖКХ ОП \"Санкт-Петербургское\"","5116000922","784245001","12-10-2015 00:00:00",null,"VS"]
[21,"2610","Ленинградская область","28967688","Банк России (Оздоровительное объединение \"Зеленый бор\" Центрального банка Российской Федерации)","7702235133","471045002","29-04-2015 00:00:00",null,"VS"]
[22,"2610","Ленинградская область","31308465","ВФ АО \"Апатит\"","5103070023","470243001",null,null,"VS"]
[23,"2610","Ленинградская область","26373310","ГБДОУ \"Детский оздоровительный городок \"Малыш\"","4719007588","470501001",null,null,"VS"]
[24,"2610","Ленинградская область","31022952","ГБНОУ \"СПБ ГДТЮ\"","7808023241","784001001",null,null,"VS"]
[25,"2610","Ленинградская область","26373297","ГБПОУ ЛО \"Лисинский лесной колледж\"","4716001436","471601001",null,null,"VS"]
[26,"2610","Ленинградская область","30794671","ГКУЗ ЛО \"ДПБ\"","4719005020","470501001","23-05-2016 00:00:00",null,"VS"]
[27,"2610","Ленинградская область","26422494","ГУП \"Водоканал Санкт-Петербурга\"","7830000426","784201001",null,null,"VS"]
[28,"2610","Ленинградская область","30950162","ГУП \"Леноблводоканал\"","4703144282","470401001",null,null,"VS"]
[29,"2610","Ленинградская область","30881145","ГУП \"ПЕТЕРБУРГСКИЙ МЕТРОПОЛИТЕН \"","7830000970","783801001",null,null,"VS"]
[30,"2610","Ленинградская область","31251220","ГУП «Громовский водоканал»","4712028162","471201001",null,null,"VS"]
[31,"2610","Ленинградская область","31251515","ГУП «Плодовский водоканал»","4712028170","471201001",null,null,"VS"]
[32,"2610","Ленинградская область","31309581","ГУП ЛО \"Водоканал Тельмана\"","4716044937","471601001",null,null,"VS"]
[33,"2610","Ленинградская область","31247312","ГУП ЛО \"Ладожский водовод\"","4703158180","470301001",null,null,"VS"]
[34,"2610","Ленинградская область","31256481","ГУП ЛО \"Павловожилкомхоз\"","4706025220","470601001",null,null,"VS"]
[35,"2610","Ленинградская область","26373260","ГУП ЛО «УВКХ»","4708001489","472701001",null,null,"VS"]
[36,"2610","Ленинградская область","26373225","ЗАО \"Агрофирма  \"Выборжец\"","4703006839","470301001",null,null,"VS"]
[37,"2610","Ленинградская область","26373270","ЗАО \"Завод ВНИИЗЕММАШ\"","4712017964","471201001",null,null,"VS"]
[38,"2610","Ленинградская область","26373235","ЗАО \"Каменногорское карьероуправление\"","4704002227","470401001",null,null,"VS"]
[39,"2610","Ленинградская область","28828779","ЗАО \"Крионорд\"","7825332183","781001001","20-11-2014 00:00:00",null,"VS"]
[40,"2610","Ленинградская область","26373234","ЗАО \"Рощино сельхозтехника\"","4704002153","470401001",null,null,"VS"]
[41,"2610","Ленинградская область","26373288","ЗАО \"СП Андреевское\"","4715003007","471501001",null,null,"VS"]
[42,"2610","Ленинградская область","26373268","ЗАО \"Сосновоагропромтехника\"","4712002559","471201001",null,null,"VS"]
[43,"2610","Ленинградская область","30872321","МКП \"УКС\" МО\"НОВОДЕВЯТКИНСКОЕ СЕЛЬСКОЕ ПОСЕЛЕНИЕ\" ВМР ЛО","4703147050","470301001","06-10-2016 00:00:00",null,"VS"]
[44,"2610","Ленинградская область","26561751","МП \"Агалатово-Сервис\"","4703087267","470301001",null,null,"VS"]
[45,"2610","Ленинградская область","28875846","МП \"Единая служба Заказчика\"","4703052514","470301001","01-01-2015 00:00:00",null,"VS"]
[46,"2610","Ленинградская область","27197180","МП \"ЖКХ п. им. Морозова\"","4703072246","470301001",null,null,"VS"]
[47,"2610","Ленинградская область","28967554","МП \"ПКБУ\"","4713008673","470701001","27-04-2015 00:00:00",null,"VS"]
[48,"2610","Ленинградская область","26640400","МП \"Северное ремонтно-эксплуатационное предприятие\"","4703064012","470301001",null,null,"VS"]
[49,"2610","Ленинградская область","26638805","МП \"ТЭКК\"","4703117909","470301001","25-10-2013 00:00:00",null,"VS"]
[50,"2610","Ленинградская область","28813153","МП \"ТеплоРесурс\" МО Кузнечнинское ГП","4712025919","471201001","16-09-2014 00:00:00",null,"VS"]
[51,"2610","Ленинградская область","28504079","МП МО город Коммунар \"ЖКС\"","4705062476","470501001","30-04-2013 00:00:00",null,"VS"]
[52,"2610","Ленинградская область","28284366","МРФ \"Северо-Запад\" ПАО \"Ростелеком\"","7707049388","784243001",null,null,"VS"]
[53,"2610","Ленинградская область","27883622","МУКП \"Свердловские коммунальные системы\"","4703128682","470301001",null,null,"VS"]
[54,"2610","Ленинградская область","26638809","МУП \"Бугровские тепловые сети\"","4703103575","470301001",null,null,"VS"]
[55,"2610","Ленинградская область","30388813","МУП \"ВОДОКАНАЛ\"","4715030240","471501001","12-01-2016 00:00:00",null,"VS"]
[56,"2610","Ленинградская область","31023489","МУП \"Водоканал Кировского района\"","4706039134","470601001",null,null,"VS"]
[57,"2610","Ленинградская область","31191414","МУП \"Водоканал г.Каменногорска\"","4704103909","470401001",null,null,"VS"]
[58,"2610","Ленинградская область","26373246","МУП \"Водоканал\" г. Гатчина","4705014708","470501001",null,null,"VS"]
[59,"2610","Ленинградская область","26373257","МУП \"НазияКомСервис\"","4706027280","470601001",null,null,"VS"]
[60,"2610","Ленинградская область","26373253","МУП \"ПриладожскЖКХ»","4706005311","470601001",null,null,"VS"]
[61,"2610","Ленинградская область","31023514","МУП \"Приладожскводоканал\"","4706039173","470601001",null,null,"VS"]
[62,"2610","Ленинградская область","26373254","МУП \"Путилово ЖКХ\"","4706025188","470601001",null,null,"VS"]
[63,"2610","Ленинградская область","26640632","МУП \"Романовские коммунальные системы\"","4703117955","470301001",null,null,"VS"]
[64,"2610","Ленинградская область","31430605","МУП \"Романовский водоканал\"","4703172650","470301001",null,null,"VS"]
[65,"2610","Ленинградская область","27943060","МУП \"Северное Cияние\"","4706033397","470601001",null,null,"VS"]
[66,"2610","Ленинградская область","26524169","МУП \"Тепловые сети\" г. Гатчина","4705014698","470501001",null,null,"VS"]
[67,"2610","Ленинградская область","31021531","МУП \"УК\"","4703151561","470301001",null,null,"VS"]
[68,"2610","Ленинградская область","27222108","МУП \"Центр ЖКХ\"","4706031872","470601001","01-09-2011 00:00:00",null,"VS"]
[69,"2610","Ленинградская область","28001460","МУП «Низино»","4720031916","472501001","25-12-2009 00:00:00",null,"VS"]
[70,"2610","Ленинградская область","26773425","МУП УЖКХ МО ВИЛЛОЗСКОЕ СП","4720024228","472501001",null,null,"VS"]
[71,"2610","Ленинградская область","26524163","НПАО «Сильвамо Корпорейшн Рус»","4704012472","470401001",null,null,"VS"]
[72,"2610","Ленинградская область","26639730","ОАО \"Всеволожские тепловые сети\"","4703096470","470301001",null,null,"VS"]
[73,"2610","Ленинградская область","26373244","ОАО \"Выборгский водоканал\"","4704061991","470401001",null,null,"VS"]
[74,"2610","Ленинградская область","26373233","ОАО \"Глебычевский керамический завод\"","4704001015","470401001",null,null,"VS"]
[75,"2610","Ленинградская область","26380458","ОАО \"Завод Сланцы\"","4713000931","471301001",null,null,"VS"]
[76,"2610","Ленинградская область","26561755","ОАО \"Кингисеппский Водоканал\"","4707028015","470701001",null,null,"VS"]
[77,"2610","Ленинградская область","28075211","ОАО \"ЛОЗ-СЗМА\"","7810213056","470501001",null,null,"VS"]
[78,"2610","Ленинградская область","26373240","ОАО \"Птицефабрика Ударник\"","4704083071","470401001",null,null,"VS"]
[79,"2610","Ленинградская область","26814895","ОАО \"РЖД\" (Октябрьская дирекция по тепловодоснабжению - СП Центральной дирекции по тепловодоснабжению - филиала ОАО \"РЖД\")","7708503727","780445015","01-04-2011 00:00:00",null,"VS"]
[80,"2610","Ленинградская область","26373304","ОАО \"Сясьский целлюлозно-бумажный комбинат\"","4718011856","470201001",null,null,"VS"]
[81,"2610","Ленинградская область","26373290","ОАО \"УЖКХ\" (Тихвинского района)","4715014471","471501001",null,null,"VS"]
[82,"2610","Ленинградская область","26524171","ОАО \"Узор\"","4719002999","470501001",null,null,"VS"]
[83,"2610","Ленинградская область","31456824","ООО \"АВАНГАРД\"","7810799144","781001001",null,null,"VS"]
[84,"2610","Ленинградская область","30366418","ООО \"АКВА-АЛЬЯНС\"","7813574036","781301001",null,null,"VS"]
[85,"2610","Ленинградская область","28148752","ООО \"АКВАТЕРМ\"","4707032565","470701001",null,null,"VS"]
[86,"2610","Ленинградская область","30872348","ООО \"АЛЬФА\"","4703146106","470301001","19-10-2016 00:00:00",null,"VS"]
[87,"2610","Ленинградская область","26640553","ООО \"Аква Норд-Вест\"","7801432887","780101001",null,null,"VS"]
[88,"2610","Ленинградская область","31479026","ООО \"Акваресурс\"","4704108576","470401001",null,null,"VS"]
[89,"2610","Ленинградская область","28442803","ООО \"Актион\"","4716038411","471601001","03-10-2013 00:00:00",null,"VS"]
[90,"2610","Ленинградская область","31021430","ООО \"Альянс плюс\"","7801336566","780101001",null,null,"VS"]
[91,"2610","Ленинградская область","31504352","ООО \"ВКС-Инвест\"","7804600032","470301001",null,null,"VS"]
[92,"2610","Ленинградская область","27909230","ООО \"ВОДОКАНАЛ КИРОВСКОГО ГОРОДСКОГО ПОСЕЛЕНИЯ\"","4706033647","470601001",null,null,"VS"]
[93,"2610","Ленинградская область","28003675","ООО \"ВОДОКАНАЛ ОТРАДНЕНСКОГО ГОРОДСКОГО ПОСЕЛЕНИЯ\"","4706033654","470601001","24-08-2012 00:00:00",null,"VS"]
[94,"2610","Ленинградская область","28029255","ООО \"ВОДОКАНАЛ ПРИЛАДОЖСКОГО ГОРОДСКОГО ПОСЕЛЕНИЯ\"","4706033630","470601001",null,null,"VS"]
[95,"2610","Ленинградская область","28545782","ООО \"ВОДОКАНАЛ\"","4703137398","470301001","19-06-2014 00:00:00",null,"VS"]
[96,"2610","Ленинградская область","31310510","ООО \"ВОДОСФЕРА\"","4704104532","470401001",null,null,"VS"]
[97,"2610","Ленинградская область","26373267","ООО \"Вода-Сервис\"","4711200082","471101001",null,null,"VS"]
[98,"2610","Ленинградская область","28268023","ООО \"ВодоСнаб\"","4711011991","471101001","16-05-2013 00:00:00",null,"VS"]
[99,"2610","Ленинградская область","27965738","ООО \"Водоканал Мгинского городского поселения\"","4706033622","470601001",null,null,"VS"]
[100,"2610","Ленинградская область","26373258","ООО \"Водоканал птицефабрики Синявинская\"","4706027594","470601001",null,null,"VS"]
[101,"2610","Ленинградская область","31449448","ООО \"Водоканал\"","4726003577","472601001",null,null,"VS"]
[102,"2610","Ленинградская область","27677580","ООО \"Выборгская лесопромышленная корпорация\"","4704087728","470401001","16-04-2012 00:00:00",null,"VS"]
[103,"2610","Ленинградская область","28048642","ООО \"ГРАНД\"","4714017430","472601001",null,null,"VS"]
[104,"2610","Ленинградская область","27883546","ООО \"ГТМ - теплосервис\"","7810496527","780501001",null,null,"VS"]
[105,"2610","Ленинградская область","26424110","ООО \"Газпром трансгаз Санкт-Петербург\"","7805018099","781001001",null,null,"VS"]
[106,"2610","Ленинградская область","26640623","ООО \"Ефимовская управляющая компания\"","4715023229","471501001",null,null,"VS"]
[107,"2610","Ленинградская область","28822195","ООО \"Звезда\"","7813559101","470501001","06-11-2014 00:00:00",null,"VS"]
[108,"2610","Ленинградская область","31270040","ООО \"Интехстрой\"","7801346067","780101001",null,null,"VS"]
[109,"2610","Ленинградская область","28828840","ООО \"Инфраструктура Плюс\"","4712025732","471201001","20-11-2014 00:00:00",null,"VS"]
[110,"2610","Ленинградская область","26640639","ООО \"КСК\"","4708021189","472701001",null,null,"VS"]
[111,"2610","Ленинградская область","28155784","ООО \"КУДРОВО-ГРАД\"","4703091016","470301001","01-12-2006 00:00:00",null,"VS"]
[112,"2610","Ленинградская область","26524185","ООО \"Коммун Энерго\"","4707021122","470701001","09-06-2010 00:00:00",null,"VS"]
[113,"2610","Ленинградская область","31423466","ООО \"Коммунальные ресурсы\"","7813630668","781301001",null,null,"VS"]
[114,"2610","Ленинградская область","29648581","ООО \"ЛОКС\"","4703142729","470301001",null,null,"VS"]
[115,"2610","Ленинградская область","31229826","ООО \"Ладога-Ресурс\"","4703158366","470301001",null,null,"VS"]
[116,"2610","Ленинградская область","28016967","ООО \"Лемэк\"","7801213324","472501001","07-03-2012 00:00:00",null,"VS"]
[117,"2610","Ленинградская область","28871193","ООО \"ЛенОблВод-Инвест\"","4703130917","470301001",null,null,"VS"]
[118,"2610","Ленинградская область","27670421","ООО \"ЛенСервисСтрой\"","4712023326","471201001","03-04-2012 00:00:00",null,"VS"]
[119,"2610","Ленинградская область","31210711","ООО \"Ленстрой\"","7806340848","780601001",null,null,"VS"]
[120,"2610","Ленинградская область","31443494","ООО \"МК Свердлова\"","4703177070","470301001",null,null,"VS"]
[121,"2610","Ленинградская область","28829099","ООО \"МПЗ Русско-Высоцкое\"","7810461098","472501001","14-11-2014 00:00:00",null,"VS"]
[122,"2610","Ленинградская область","28545831","ООО \"Наше дело\"","4711012667","471101001",null,null,"VS"]
[123,"2610","Ленинградская область","28968332","ООО \"Новая Водная Ассоциация\"","7801426040","780101001","18-05-2015 00:00:00",null,"VS"]
[124,"2610","Ленинградская область","26375635","ООО \"Ольшаники\"","7801079076","470401001",null,null,"VS"]
[125,"2610","Ленинградская область","28139848","ООО \"ПГ \"Фосфорит\"","4707017905","660850001",null,null,"VS"]
[126,"2610","Ленинградская область","26523713","ООО \"ПГЛЗ\"","4715030610","471501001","09-06-2010 00:00:00",null,"VS"]
[127,"2610","Ленинградская область","28872309","ООО \"ПЛЕМЕННОЙ ЗАВОД \"НОВОЛАДОЖСКИЙ\"","4702017549","470201001",null,null,"VS"]
[128,"2610","Ленинградская область","30906546","ООО \"Первая коммунальная компания\"","4703145134","470301001",null,null,"VS"]
[129,"2610","Ленинградская область","28489933","ООО \"Полар Инвест\"","7806104671","470301001","03-03-2000 00:00:00",null,"VS"]
[130,"2610","Ленинградская область","31004931","ООО \"Прогресс\"","4703151843","783901001",null,null,"VS"]
[131,"2610","Ленинградская область","31443918","ООО \"Прогресс\"","7838092820","783801001",null,null,"VS"]
[132,"2610","Ленинградская область","28931605","ООО \"РСО 47\"","4703142599","470301001","18-12-2014 00:00:00",null,"VS"]
[133,"2610","Ленинградская область","31341205","ООО \"РСТИ-Сертолово\"","4703136228","470301001",null,null,"VS"]
[134,"2610","Ленинградская область","30838856","ООО \"РЦСЗ Ленмединформ\"","7813096118","781301001","28-09-2016 00:00:00",null,"VS"]
[135,"2610","Ленинградская область","28274778","ООО \"Ресурс\"","4711012515","471101001","07-10-2013 00:00:00",null,"VS"]
[136,"2610","Ленинградская область","30858730","ООО \"СЗЭС\"","7801290008","470401001",null,null,"VS"]
[137,"2610","Ленинградская область","30794864","ООО \"СИГНАЛ\"","4716008914","471601001","24-05-2016 00:00:00",null,"VS"]
[138,"2610","Ленинградская область","28799275","ООО \"СК-СИГМА\"","7801583967","780101001",null,null,"VS"]
[139,"2610","Ленинградская область","28828801","ООО \"СКС\"","4703141700","470301001","20-11-2014 00:00:00",null,"VS"]
[140,"2610","Ленинградская область","26640635","ООО \"СМЭУ Заневка\"","4703116542","470301001",null,null,"VS"]
[141,"2610","Ленинградская область","26799802","ООО \"Светогорское жилищно-коммунальное хозяйство\"","4704026517","470401001",null,null,"VS"]
[142,"2610","Ленинградская область","30924547","ООО \"Северо-Запад Инжиниринг\"","4703131332","470301001",null,null,"VS"]
[143,"2610","Ленинградская область","28951581","ООО \"Сланцы\"","0276144176","470701001","01-04-2015 00:00:00",null,"VS"]
[144,"2610","Ленинградская область","26373302","ООО \"Совхоз \"Восточный\"","4716018951","471601001",null,null,"VS"]
[145,"2610","Ленинградская область","31075334","ООО \"ТЕРМО-ЛАЙН\"","4704103465","470401001",null,null,"VS"]
[146,"2610","Ленинградская область","31256290","ООО \"Техническая компания \"Альтернатива\"","7840419463","783901001",null,null,"VS"]
[147,"2610","Ленинградская область","31105173","ООО \"УК \"Кивеннапа\"","7810814748","470401001","15-06-2018 00:00:00",null,"VS"]
[148,"2610","Ленинградская область","28534868","ООО \"УК \"Мурино\"","7838474259","781301001","30-04-2014 00:00:00",null,"VS"]
[149,"2610","Ленинградская область","30914633","ООО \"УК\"Аква-Плюс\"","4703139412","470301001",null,null,"VS"]
[150,"2610","Ленинградская область","28443585","ООО \"УЛВК\"","4707035319","470701001","24-07-2013 00:00:00",null,"VS"]
[151,"2610","Ленинградская область","30832150","ООО \"Уют - Сервис\"","4712026510","471201001","17-08-2016 00:00:00",null,"VS"]
[152,"2610","Ленинградская область","26561857","ООО \"Уют-Сервис плюс\"","4712127967","471201001",null,null,"VS"]
[153,"2610","Ленинградская область","26373272","ООО \"Уют-Сервис\"","4712022996","471201001",null,null,"VS"]
[154,"2610","Ленинградская область","26640604","ООО \"Фирма \"Сигма\"","7811014423","781101001",null,null,"VS"]
[155,"2610","Ленинградская область","26523754","ООО \"Флагман\"","7805222344","470301001","09-06-2010 00:00:00",null,"VS"]
[156,"2610","Ленинградская область","28442757","ООО \"ЭкоСервис\"","4705050914","470501001","29-09-2010 00:00:00",null,"VS"]
[157,"2610","Ленинградская область","28029214","ООО “ВОДОКАНАЛ ПАВЛОВСКОГО ГОРОДСКОГО ПОСЕЛЕНИЯ”","4706033615","470601001",null,null,"VS"]
[158,"2610","Ленинградская область","31519672","ООО «АКОС»","7840097400","784001001",null,null,"VS"]
[159,"2610","Ленинградская область","30872533","ООО «Водолей»","4707038870","470701001","19-05-2016 00:00:00",null,"VS"]
[160,"2610","Ленинградская область","27796956","ООО «ПетроЗемПроект»","7811346468","781301001",null,null,"VS"]
[161,"2610","Ленинградская область","28903773","ООО СМУ \"Выборгский\"","7811312405","781101001","10-02-2015 00:00:00",null,"VS"]
[162,"2610","Ленинградская область","31007537","ООО УК \"Новоантропшино\"","4705063960","470501001",null,null,"VS"]
[163,"2610","Ленинградская область","26526809","ООО Управляющая компания ''Оазис''","4712128456","471201001","09-06-2010 00:00:00",null,"VS"]
[164,"2610","Ленинградская область","26380436","ООО\" Ивангородский водоканал\"","4707026586","470701001",null,null,"VS"]
[165,"2610","Ленинградская область","26640606","Обособленное подразделение ООО \"ФПГ \"РОССТРО - ЛФК\"","7811461140","471645001",null,null,"VS"]
[166,"2610","Ленинградская область","26539356","ПАО \"ТГК-1\" филиал \"Невский\"","7841312071","781301001",null,null,"VS"]
[167,"2610","Ленинградская область","26373286","СМУП \"Водоканал\"","4714017631","472601001",null,null,"VS"]
[168,"2610","Ленинградская область","31358350","СПБ ГБУЗ Туберкулезный санаторий \"Сосновый бор\"","4704022897","470401001",null,null,"VS"]
[169,"2610","Ленинградская область","30903763","ФГБУ \"ЦЖКУ\" МИНОБОРОНЫ РОССИИ","7729314745","770101001",null,null,"VS"]
[170,"2610","Ленинградская область","26375640","ФГУП \"РНЦ \"Прикладная химия\"","7813046340","781101001",null,null,"VS"]
[171,"2610","Ленинградская область","26373300","ФКУ \"Исправительная колония №3 УФСИН России по г. СПб и ЛО\"","4716003610","471601001",null,null,"VS"]
[172,"2610","Ленинградская область","26373296","ФКУ ИК-2 УФСИН России по С-Пб и ЛО","4716000986","471601001",null,null,"VS"]
[173,"2610","Ленинградская область","26769187","Федоровское МУП ЖКХ, инженерных коммуникаций и благоустройства","4716025317","471601001",null,null,"VS"]
[174,"2610","Ленинградская область","26380420","Филиал \"Невский водопровод\" АО \"ЛОКС\"","4705029366","781703001",null,null,"VS"]
[175,"2610","Ленинградская область","31304643","Филиал \"Новогорелово\" АО \"ЛОКС\"","4705029366","472543001",null,null,"VS"]
[176,"2610","Ленинградская область","27289646","Филиал \"Тосненский водоканал\" АО \"ЛОКС\"","4705029366","471643001",null,null,"VS"]
[177,"2610","Ленинградская область","30941480","Филиал ФГБУ \"ЦЖКУ\" Минобороны России по ЗВО","7729314745","784243001",null,null,"VS"]

{"sheet":"modClassifierValidate","index":45,"n_rows":0,"n_cols":0,"rows_kept":0,"cut":false,"hidden":true,"merged":[]}

{"sheet":"modHyp","index":46,"n_rows":0,"n_cols":0,"rows_kept":0,"cut":false,"hidden":true,"merged":[]}

{"sheet":"modServiceModule","index":47,"n_rows":0,"n_cols":0,"rows_kept":0,"cut":false,"hidden":true,"merged":[]}

{"sheet":"modList00","index":48,"n_rows":0,"n_cols":0,"rows_kept":0,"cut":false,"hidden":true,"merged":[]}

{"sheet":"modList01","index":49,"n_rows":0,"n_cols":0,"rows_kept":0,"cut":false,"hidden":true,"merged":[]}

{"sheet":"modList02","index":50,"n_rows":0,"n_cols":0,"rows_kept":0,"cut":false,"hidden":true,"merged":[]}

{"sheet":"modList03","index":51,"n_rows":0,"n_cols":0,"rows_kept":0,"cut":false,"hidden":true,"merged":[]}

{"sheet":"REESTR_MO_FILTER","index":52,"n_rows":0,"n_cols":0,"rows_kept":0,"cut":false,"hidden":true,"merged":[]}

{"sheet":"REESTR_MO","index":53,"n_rows":206,"n_cols":4,"rows_kept":206,"cut":false,"hidden":true,"merged":[]}
["№","МР","МО","МО_ОКТМО"]
[1,"Бокситогорский муниципальный район","Бокситогорский муниципальный район","41603000"]
[2,"Бокситогорский муниципальный район","Бокситогорское","41603101"]
[3,"Бокситогорский муниципальный район","Большедворское","41603412"]
[4,"Бокситогорский муниципальный район","Борское","41603416"]
[5,"Бокситогорский муниципальный район","Ефимовское","41603155"]
[6,"Бокситогорский муниципальный район","Лидское","41603460"]
[7,"Бокситогорский муниципальный район","Пикалевское","41603102"]
[8,"Бокситогорский муниципальный район","Самойловское","41603476"]
[9,"Волосовский муниципальный район","Бегуницкое","41606404"]
[10,"Волосовский муниципальный район","Большеврудское","41606412"]
[11,"Волосовский муниципальный район","Волосовский муниципальный район","41606000"]
[12,"Волосовский муниципальный район","Волосовское","41606101"]
[13,"Волосовский муниципальный район","Калитинское","41606420"]
[14,"Волосовский муниципальный район","Клопицкое","41606430"]
[15,"Волосовский муниципальный район","Рабитицское","41606408"]
[16,"Волосовский муниципальный район","Сабское","41606436"]
[17,"Волховский муниципальный район","Бережковское","41609453"]
[18,"Волховский муниципальный район","Волховский муниципальный район","41609000"]
[19,"Волховский муниципальный район","Волховское","41609101"]
[20,"Волховский муниципальный район","Вындиноостровское","41609403"]
[21,"Волховский муниципальный район","Иссадское","41609418"]
[22,"Волховский муниципальный район","Кисельнинское","41609471"]
[23,"Волховский муниципальный район","Колчановское","41609427"]
[24,"Волховский муниципальный район","Новоладожское","41609104"]
[25,"Волховский муниципальный район","Пашское","41609444"]
[26,"Волховский муниципальный район","Потанинское","41609450"]
[27,"Волховский муниципальный район","Свирицкое","41609480"]
[28,"Волховский муниципальный район","Селивановское","41609461"]
[29,"Волховский муниципальный район","Староладожское","41609462"]
[30,"Волховский муниципальный район","Сясьстройское","41609108"]
[31,"Волховский муниципальный район","Усадищенское","41609465"]
[32,"Волховский муниципальный район","Хваловское","41609468"]
[33,"Всеволожский муниципальный район","Агалатовское","41612408"]
[34,"Всеволожский муниципальный район","Бугровское","41612402"]
[35,"Всеволожский муниципальный район","Всеволожский муниципальный район","41612000"]
[36,"Всеволожский муниципальный район","Всеволожское","41612101"]
[37,"Всеволожский муниципальный район","Дубровское","41612154"]
[38,"Всеволожский муниципальный район","Заневское","41612155"]
[39,"Всеволожский муниципальный район","Колтушское","41612416"]
[40,"Всеволожский муниципальный район","Кузьмоловское","41612158"]
[41,"Всеволожский муниципальный район","Куйвозовское","41612420"]
[42,"Всеволожский муниципальный район","Лесколовское","41612424"]
[43,"Всеволожский муниципальный район","Морозовское","41612163"]
[44,"Всеволожский муниципальный район","Муринское","41612103"]
[45,"Всеволожский муниципальный район","Новодевяткинское","41612458"]
[46,"Всеволожский муниципальный район","Рахьинское","41612167"]
[47,"Всеволожский муниципальный район","Романовское","41612442"]
[48,"Всеволожский муниципальный район","Свердловское","41612168"]
[49,"Всеволожский муниципальный район","Сертоловское","41612102"]
[50,"Всеволожский муниципальный район","Токсовское","41612175"]
[51,"Всеволожский муниципальный район","Щегловское","41612448"]
[52,"Всеволожский муниципальный район","Юкковское","41612456"]
[53,"Выборгский муниципальный район","Выборгский муниципальный район","41615000"]
[54,"Выборгский муниципальный район","Выборгское","41615101"]
[55,"Выборгский муниципальный район","Высоцкое","41615104"]
[56,"Выборгский муниципальный район","Гончаровское","41615492"]
[57,"Выборгский муниципальный район","Каменногорское","41615106"]
[58,"Выборгский муниципальный район","Красносельское","41615436"]
[59,"Выборгский муниципальный район","Первомайское","41615460"]
[60,"Выборгский муниципальный район","Полянское","41615464"]
[61,"Выборгский муниципальный район","Приморское","41615108"]
[62,"Выборгский муниципальный район","Рощинское","41615158"]
[63,"Выборгский муниципальный район","Светогорское","41615114"]
[64,"Выборгский муниципальный район","Селезневское","41615476"]
[65,"Выборгский муниципальный район","Советское","41615163"]
[66,"Гатчинский муниципальный район","Большеколпанское","41618408"]
[67,"Гатчинский муниципальный район","Веревское","41618416"]
[68,"Гатчинский муниципальный район","Войсковицкое","41618418"]
[69,"Гатчинский муниципальный район","Вырицкое","41618154"]
[70,"Гатчинский муниципальный район","Гатчинский муниципальный район","41618000"]
[71,"Гатчинский муниципальный район","Гатчинское","41618101"]
[72,"Гатчинский муниципальный район","Дружногорское","41618156"]
[73,"Гатчинский муниципальный район","Елизаветинское","41618424"]
[74,"Гатчинский муниципальный район","Кобринское","41618426"]
[75,"Гатчинский муниципальный район","Коммунарское","41618105"]
[76,"Гатчинский муниципальный район","Новосветское","41618444"]
[77,"Гатчинский муниципальный район","Пудомягское","41618404"]
[78,"Гатчинский муниципальный район","Пудостьское","41618448"]
[79,"Гатчинский муниципальный район","Рождественское","41618452"]
[80,"Гатчинский муниципальный район","Сиверское","41618169"]
[81,"Гатчинский муниципальный район","Сусанинское","41618460"]
[82,"Гатчинский муниципальный район","Сяськелевское","41618461"]
[83,"Гатчинский муниципальный район","Тайцкое","41618176"]
[84,"Кингисеппский муниципальный район","Большелуцкое","41621404"]
[85,"Кингисеппский муниципальный район","Вистинское","41621452"]
[86,"Кингисеппский муниципальный район","Ивангородское","41621102"]
[87,"Кингисеппский муниципальный район","Кингисеппский муниципальный район","41621000"]
[88,"Кингисеппский муниципальный район","Кингисеппское","41621101"]
[89,"Кингисеппский муниципальный район","Котельское","41621420"]
[90,"Кингисеппский муниципальный район","Куземкинское","41621432"]
[91,"Кингисеппский муниципальный район","Нежновское","41621440"]
[92,"Кингисеппский муниципальный район","Опольевское","41621444"]
[93,"Кингисеппский муниципальный район","Пустомержское","41621448"]
[94,"Кингисеппский муниципальный район","Усть-Лужское","41621428"]
[95,"Кингисеппский муниципальный район","Фалилеевское","41621412"]
[96,"Киришский муниципальный район","Будогощское","41624152"]
[97,"Киришский муниципальный район","Глажевское","41624412"]
[98,"Киришский муниципальный район","Киришский муниципальный район","41624000"]
[99,"Киришский муниципальный район","Киришское","41624101"]
[100,"Киришский муниципальный район","Кусинское","41624423"]
[101,"Киришский муниципальный район","Пчевжинское","41624427"]
[102,"Киришский муниципальный район","Пчевское","41624428"]
[103,"Кировский муниципальный район","Кировский муниципальный район","41625000"]
[104,"Кировский муниципальный район","Кировское","41625101"]
[105,"Кировский муниципальный район","Мгинское","41625154"]
[106,"Кировский муниципальный район","Назиевское","41625156"]
[107,"Кировский муниципальный район","Отрадненское","41625104"]
[108,"Кировский муниципальный район","Павловское","41625158"]
[109,"Кировский муниципальный район","Приладожское","41625160"]
[110,"Кировский муниципальный район","Путиловское","41625440"]
[111,"Кировский муниципальный район","Синявинское","41625163"]
[112,"Кировский муниципальный район","Суховское","41625445"]
[113,"Кировский муниципальный район","Шлиссельбургское","41625102"]
[114,"Кировский муниципальный район","Шумское","41625450"]
[115,"Лодейнопольский муниципальный район","Алеховщинское","41627404"]
[116,"Лодейнопольский муниципальный район","Доможировское","41627410"]
[117,"Лодейнопольский муниципальный район","Лодейнопольский муниципальный район","41627000"]
[118,"Лодейнопольский муниципальный район","Лодейнопольское","41627101"]
[119,"Лодейнопольский муниципальный район","Свирьстройское","41627154"]
[120,"Лодейнопольский муниципальный район","Янегское","41627420"]
[121,"Ломоносовский муниципальный район","Аннинское","41630152"]
[122,"Ломоносовский муниципальный район","Большеижорское","41630154"]
[123,"Ломоносовский муниципальный район","Виллозское","41630157"]
[124,"Ломоносовский муниципальный район","Горбунковское","41630424"]
[125,"Ломоносовский муниципальный район","Гостилицкое","41630420"]
[126,"Ломоносовский муниципальный район","Кипенское","41630428"]
[127,"Ломоносовский муниципальный район","Копорское","41630432"]
[128,"Ломоносовский муниципальный район","Лаголовское","41630434"]
[129,"Ломоносовский муниципальный район","Лебяженское","41630162"]
[130,"Ломоносовский муниципальный район","Ломоносовский муниципальный район","41630000"]
[131,"Ломоносовский муниципальный район","Лопухинское","41630436"]
[132,"Ломоносовский муниципальный район","Низинское","41630408"]
[133,"Ломоносовский муниципальный район","Оржицкое","41630438"]
[134,"Ломоносовский муниципальный район","Пениковское","41630412"]
[135,"Ломоносовский муниципальный район","Ропшинское","41630440"]
[136,"Ломоносовский муниципальный район","Русско-Высоцкое","41630444"]
[137,"Лужский муниципальный район","Володарское","41633408"]
[138,"Лужский муниципальный район","Волошовское","41633416"]
[139,"Лужский муниципальный район","Дзержинское","41633420"]
[140,"Лужский муниципальный район","Заклинское","41633436"]
[141,"Лужский муниципальный район","Лужский муниципальный район","41633000"]
[142,"Лужский муниципальный район","Лужское","41633101"]
[143,"Лужский муниципальный район","Мшинское","41633440"]
[144,"Лужский муниципальный район","Оредежское","41633444"]
[145,"Лужский муниципальный район","Осьминское","41633448"]
[146,"Лужский муниципальный район","Ретюнское","41633488"]
[147,"Лужский муниципальный район","Серебрянское","41633464"]
[148,"Лужский муниципальный район","Скребловское","41633468"]
[149,"Лужский муниципальный район","Толмачевское","41633154"]
[150,"Лужский муниципальный район","Торковичское","41633478"]
[151,"Лужский муниципальный район","Ям-Тесовское","41633456"]
[152,"Подпорожский муниципальный район","Важинское","41636154"]
[153,"Подпорожский муниципальный район","Винницкое","41636404"]
[154,"Подпорожский муниципальный район","Вознесенское","41636158"]
[155,"Подпорожский муниципальный район","Никольское","41636163"]
[156,"Подпорожский муниципальный район","Подпорожский муниципальный район","41636000"]
[157,"Подпорожский муниципальный район","Подпорожское","41636101"]
[158,"Приозерский муниципальный район","Громовское","41639412"]
[159,"Приозерский муниципальный район","Запорожское","41639416"]
[160,"Приозерский муниципальный район","Красноозерное","41639420"]
[161,"Приозерский муниципальный район","Кузнечнинское","41639154"]
[162,"Приозерский муниципальный район","Ларионовское","41639424"]
[163,"Приозерский муниципальный район","Мельниковское","41639428"]
[164,"Приозерский муниципальный район","Мичуринское","41639432"]
[165,"Приозерский муниципальный район","Петровское","41639440"]
[166,"Приозерский муниципальный район","Плодовское","41639436"]
[167,"Приозерский муниципальный район","Приозерский муниципальный район","41639000"]
[168,"Приозерский муниципальный район","Приозерское","41639101"]
[169,"Приозерский муниципальный район","Раздольевское","41639408"]
[170,"Приозерский муниципальный район","Ромашкинское","41639434"]
[171,"Приозерский муниципальный район","Севастьяновское","41639404"]
[172,"Приозерский муниципальный район","Сосновское","41639444"]
[173,"Сланцевский муниципальный район","Выскатское","41642404"]
[174,"Сланцевский муниципальный район","Гостицкое","41642424"]
[175,"Сланцевский муниципальный район","Загривское","41642408"]
[176,"Сланцевский муниципальный район","Новосельское","41642420"]
[177,"Сланцевский муниципальный район","Сланцевский муниципальный район","41642000"]
[178,"Сланцевский муниципальный район","Сланцевское","41642101"]
[179,"Сланцевский муниципальный район","Старопольское","41642436"]
[180,"Сланцевский муниципальный район","Черновское","41642440"]
[181,"Сосновоборский городской округ","Сосновоборский городской округ","41754000"]
[182,"Тихвинский муниципальный район","Борское","41645410"]
[183,"Тихвинский муниципальный район","Ганьковское","41645412"]
[184,"Тихвинский муниципальный район","Горское","41645416"]
[185,"Тихвинский муниципальный район","Коськовское","41645472"]
[186,"Тихвинский муниципальный район","Мелегежское","41645408"]
[187,"Тихвинский муниципальный район","Пашозерское","41645456"]
[188,"Тихвинский муниципальный район","Тихвинский муниципальный район","41645000"]
[189,"Тихвинский муниципальный район","Тихвинское","41645101"]
[190,"Тихвинский муниципальный район","Цвылевское","41645432"]
[191,"Тихвинский муниципальный район","Шугозерское","41645477"]
[192,"Тосненский муниципальный район","Красноборское","41648154"]
[193,"Тосненский муниципальный район","Лисинское","41648430"]
[194,"Тосненский муниципальный район","Любанское","41648105"]
[195,"Тосненский муниципальный район","Никольское","41648108"]
[196,"Тосненский муниципальный район","Нурминское","41648418"]
[197,"Тосненский муниципальный район","Рябовское","41648160"]
[198,"Тосненский муниципальный район","Тельмановское","41648443"]
[199,"Тосненский муниципальный район","Тосненский муниципальный район","41648000"]
[200,"Тосненский муниципальный район","Тосненское","41648101"]
[201,"Тосненский муниципальный район","Трубникоборское","41648444"]
[202,"Тосненский муниципальный район","Ульяновское","41648164"]
[203,"Тосненский муниципальный район","Фёдоровское","41648165"]
[204,"Тосненский муниципальный район","Форносовское","41648170"]
[205,"Тосненский муниципальный район","Шапкинское","41648464"]

{"sheet":"TEHSHEET","index":54,"n_rows":87,"n_cols":53,"rows_kept":87,"cut":false,"hidden":true,"merged":[[0,51,0,52]]}
["REGION","year_list1","year_list","logical","Месяц\n(MONTH)","Квартал\n(QUARTER)","Месяц\n(kind_of_publication)","НДС\n/kind_of_NDS/","Номер СЦХВ(СЦВО)\n/SKI_number/","Единица измерения объема оказываемых услуг ГВС\n/kind_of_unit_GVS/","Метод регулирования\n/kind_of_control_method/",null,null,"Вид деятельности, на которую установлен тариф /kind_of_activity_WARM/","Вид теплоносителя\n(kind_of_heat_transfer)","Тип данных\n(kind_of_data_type)","Схема подключения\n(kind_of_scheme_in)\n(kind_of_scheme_in2)","Группы потребителей\n(kind_of_cons)","Тип прокладки тепловых сетей\n(kind_of_nets)","Диапазаны диаметров тепловых сетей\n(kind_of_diameters)","Подключаемая тепловая нагрузка\n(kind_of_load)",null,"Форма 2, таблица Х","виды тарифа\n/kind_group_rates/","Заголовок таблицы",null,"name_rates_4",null,"name_rates_8",null,null,"Подключаемая тепловая нагрузка\n(kind_of_load3)",null,"Вид теплоносителя\n(kind_of_heat_transfer2)","Вид теплоносителя\n(kind_of_heat_transfer3)",null,"Вид топлива\n(kind_of_fuel)",null,"Способ закупки товаров\n(kind_of_zak)",null,null,"виды тарифа\n/kind_group_rates_load/","виды тарифа\n/kind_group_rates_load_filter/",null,"виды признаков дифференциации\n/kind_of_diff/",null,"Диапазаны диаметров водопроводных сетей\n(kind_of_diameters2)",null,"List_H","List_M",null,"Перечень форм\n(kind_of_forms)"]
["Алтайский край",2000,2013,"да","январь","I квартал","На официальном сайте организации","общий","1","тыс.куб.м/сутки","метод экономически обоснованных расходов (затрат)","метод экономически обоснованных расходов (затрат)",1,"Передача+Сбыт","Без дифференциации","первичное раскрытие информации","без дифференциации","организации-перепродавцы","надземная (наземная)","50 - 250 мм","не превышает 0,1 Гкал/ч",1,null,"Тариф на техническую воду","Информация о предложении об установлении цен на техническую воду",null,"Тариф на холодную воду питьевую","Тариф на холодную воду артезианскую","Плата за услуги по поддержанию резервной тепловой мощности при отсутствии потребления тепловой энергии для отдельных категорий (групп) социально значимых потребителей","Плата за услуги по поддержанию резервной тепловой мощности при отсутствии потребления тепловой энергии для отдельных категорий (групп) социально значимых потребителей",null,"не превышает 0,1 Гкал/ч",null,"Вода","Вода",null,"Газ природный по регулируемой цене",null,"Конкурс",null,null,"Тариф на питьевую воду (питьевое водоснабжение)","Тариф на подвоз воды",null,"объемы потребления воды абонентами",null,"40 мм и менее",null,"00","00",null,"Форма 1.0.1","Основные параметры раскрываемой информации"]
["Амурская область",2001,2014,"нет","февраль","II квартал","На сайте регулирующего органа","общий с учетом освобождения от уплаты НДС","2","Гкал/ч","метод индексации установленных тарифов","метод индексации установленных тарифов",2,"Передача","Горячая вода","изменения в раскрытой ранее информации","к коллектору источника тепловой энергии","бюджетные организации","подземная (канальная)","251 - 400 мм","более 0,1 Гкал/ч и не превышает 1,5 Гкал/ч",2,null,"Тариф на транспортировку воды","Информация о предложении об установлении тарифов на транспортировку воды",null,"Тариф на холодную воду артезианскую","Тариф на холодную воду поверхностную","Плата за услуги по поддержанию резервной тепловой мощности, оказываемые регулируемой организацией, мощность источников тепловой энергии которой используется для поддержания резервной мощности в соответствии со схемой теплоснабжения","Плата за услуги по поддержанию резервной тепловой мощности, оказываемые регулируемой организацией, мощность источников тепловой энергии которой используется для поддержания резервной мощности в соответствии со схемой теплоснабжения",null,"более 0,1 Гкал/ч и не превышает 1,5 Гкал/ч",null,"Отборный пар, 1,2-2,5 кг/см2","Пар",null,"Газ природный по нерегулируемой цене",null,"Аукцион",null,null,"Тариф на подвоз воды","Тариф на транспортировку воды",null,"соответствие качества питьевой воды и горячей воды требованиям, установленным санитарными нормами и правилами",null,"от 41 мм до 70 мм включительно",null,"01","01",null,"Форма 2.13","Информация о способах приобретения, стоимости и объемах товаров, необходимых для производства регулируемых товаров и (или) оказания регулируемых услуг регулируемой организацией"]
["Архангельская область",2002,2015,null,"март","III квартал",null,"специальный (упрощенная система налогообложения, система налогообложения для сельскохозяйственных производителей)","3","куб.м/ч","метод обеспечения доходности инвестированного капитала","метод обеспечения доходности инвестированного капитала",3,"производство комбинированная выработка","Холодная вода",null,"к тепловой сети без дополнительного преобразования на тепловых пунктах, эксплуатируемых теплоснабжающей организацией","население и приравненные категории","подземная (бесканальная)","401 - 550 мм","превышает 1,5 Гкал/ч при наличии технической возможности подключения",3,null,"Тариф на подвоз воды","Информация о предложении об установлении тарифов на подвоз воды",null,"Тариф на холодную воду поверхностную","Добавить вариант …","Плата за услуги по поддержанию резервной тепловой мощности, оказываемые регулируемой организацией, мощность тепловых сетей которой используется для поддержания резервной мощности в соответствии со схемой теплоснабжения","Плата за услуги по поддержанию резервной тепловой мощности, оказываемые регулируемой организацией, мощность тепловых сетей которой используется для поддержания резервной мощности в соответствии со схемой теплоснабжения",null,"превышает 1,5 Гкал/ч при наличии технической возможности подключения",null,"Отборный пар, 2,5-7 кг/см2",null,null,"Уголь",null,"Аукцион в электронной форме",null,null,"Тариф на транспортировку воды","Тариф на техническую воду",null,"иное",null,"от 71 мм до 100 мм включительно",null,"02","02",null,"Форма 2.14.1","Информация о предложении об установлении тарифов в сфере холодного водоснабжения на очередной период регулирования"]
["Астраханская область",2003,2016,null,"апрель","IV квартал",null,null,"4",null,"метод сравнения аналогов","метод сравнения аналогов",4,"производство (некомбинированная выработка)+передача+сбыт","Вода",null,"к тепловой сети после тепловых пунктов (на тепловых пунктах), эксплуатируемых теплоснабжающей организацией","прочие",null,"551 - 700 мм","превышает 1,5 Гкал/ч при отсутствии технической возможности подключения",4,null,"Тариф на питьевую воду (питьевое водоснабжение)","Информация о предложении об установлении тарифов на питьевую воду (питьевое водоснабжение)",1,"Добавить вариант …",null,null,null,null,"не известна",null,"Отборный пар, 7-13 кг/см2",null,null,"Мазут",null,"Запрос котировок",null,null,"Тариф на техническую воду","Тариф на подключение (технологическое присоединение) к централизованной системе холодного водоснабжения",null,null,null,"от 101 мм до 150 мм включительно",null,"03","03",null,"Форма 2.14.2","Информация о предложении величин тарифов на питьевую воду (питьевое водоснабжение), техническую воду, транспортировку воды, подвоз воды"]
["Белгородская область",2004,2017,null,"май",null,"НДС общий\n/kind_of_NDS_tariff/","НДС\n/kind_of_NDS_tariff/","5","Вид тарифа на передачу тепловой энергии /kind_of_tariff_unit/",null,null,null,"производство (некомбинированная выработка)+передача","Пар",null,null,"без дифференциации",null,"701 мм и выше","не известна",5,null,5555,null,null,null,null,null,null,null,null,null,"Отборный пар, > 13 кг/см2",null,null,"Дизельное топливо",null,"Единственный поставщик",null,null,"Тариф на подключение (технологическое присоединение) к централизованной системе холодного водоснабжения","Тариф на подключение (технологическое присоединение) к централизованной системе холодного водоснабжения в индивидуальном порядке",null,null,null,"от 151 мм до 200 мм включительно",null,"04","04",null,"Форма 2.14.3","Информация о предложении величин тарифов на подключение к централизованной системе холодного водоснабжения"]
["Брянская область",2005,null,null,"июнь",null,"тариф указан с НДС для плательщиков НДС","тариф для организаций не являющихся плательщиками НДС","6","руб./Гкал/ч/мес",null,null,null,"производство (некомбинированная выработка)+сбыт","Отборный пар, 1,2-2,5 кг/см2",null,null,null,null,null,"нет","6",null,66666,null,null,null,null,null,null,null,null,null,"Острый и редуцированный пар",null,null,"Дрова",null,"Иное",null,null,"Тариф на подключение (технологическое присоединение) к централизованной системе холодного водоснабжения в индивидуальном порядке",null,null,null,null,"от 201 мм до 250 мм включительно",null,"05","05"]
["Владимирская область",2006,null,null,"июль",null,"тариф указан без НДС для плательщиков НДС","тариф не утверждался","7","руб./Гкал",null,null,null,"производство (некомбинированная выработка)","Отборный пар, 2,5-7 кг/см2",null,null,null,null,null,null,"7",null,77777,null,null,null,null,null,null,null,null,null,null,null,null,"Электроэнергия",null,null,null,null,null,null,null,null,null,"от 250  мм и более",null,"06","06"]
["Волгоградская область",2007,null,null,"август",null,"тариф не утверждался",null,"8",null,null,null,null,null,"Отборный пар, 7-13 кг/см2",null,null,null,null,null,null,"8",null,8888,null,1,null,null,null,null,null,null,null,null,null,null,"Прочее",null,null,null,null,null,null,null,null,null,null,null,"07","07"]
["Вологодская область",2008,null,null,"сентябрь",null,null,null,"9",null,null,null,null,null,"Отборный пар, > 13 кг/см2",null,null,null,null,null,null,"9",null,"Тариф на подключение (технологическое присоединение) к централизованной системе холодного водоснабжения в индивидуальном порядке","Информация о предложении об установлении платы за подключение к централизованной системе холодного водоснабжения (индивидуальной)",null,null,null,null,null,null,null,null,null,null,null,null,null,null,null,null,null,null,null,null,null,null,null,"08","08"]
["Воронежская область",2009,null,null,"октябрь",null,null,null,"10",null,null,null,null,null,"Острый и редуцированный пар",null,null,null,null,null,null,"10",null,"Тариф на подключение (технологическое присоединение) к централизованной системе холодного водоснабжения","Информация о предложении об установлении платы за подключение к централизованной системе холодного водоснабжения",null,null,null,null,null,null,null,null,null,null,null,null,null,null,null,null,null,null,null,null,null,null,null,"09","09"]
["г.Байконур",2010,null,null,"ноябрь",null,"НДС общий люди\n/kind_of_NDS_tariff_people/","НДС\n/kind_of_NDS_tariff_people/","11",null,null,null,null,null,"Горячая вода в системе централизованного теплоснабжения на отопление",null,null,null,null,null,null,null,null,null,null,null,null,null,null,null,null,null,null,null,null,null,null,null,null,null,null,null,null,null,null,null,null,null,"10","10"]
["г. Москва",2011,null,null,"декабрь",null,"тариф с НДС организаций-плательщиков НДС","тариф организаций не являющихся плательщиками НДС","12",null,null,null,null,null,"Прочее",null,null,null,null,null,null,null,null,null,null,null,null,null,null,null,null,null,null,null,null,null,null,null,null,null,null,null,null,null,null,null,null,null,"11","11"]
["г.Санкт-Петербург",2012,null,null,null,null,"тариф не утверждался","тариф не утверждался","13",null,null,null,null,"Вид деятельности /kind_of_activity/",null,null,null,null,null,null,null,null,null,null,null,null,null,null,null,null,null,null,null,null,null,null,null,null,null,null,null,null,null,null,null,null,null,null,"12","12"]
["г.Севастополь",2013,null,null,null,null,null,null,"14",null,null,null,null,"производство тепловой энергии (мощности) в режиме комбинированной выработки электрической и тепловой энергии источниками тепловой энергии с установленной генерирующей мощностью производства электрической энергии 25 МВт и более",null,null,null,null,null,null,null,null,null,null,null,null,null,null,null,null,null,null,null,null,null,null,null,null,null,null,null,null,null,null,null,null,null,null,"13","13"]
["Еврейская автономная область",2014,null,null,null,null,null,null,"15",null,null,null,null,"производство тепловой энергии (мощности) в режиме комбинированной выработки электрической и тепловой энергии источниками тепловой энергии с установленной генерирующей мощностью производства электрической энергии менее 25 МВт",null,null,null,null,null,null,null,null,null,null,null,null,null,null,null,null,null,null,null,null,null,null,null,null,null,null,null,null,null,null,null,null,null,null,"14","14"]
["Забайкальский край",2015,null,null,null,null,null,null,"16",null,null,null,null,"производство тепловой энергии (мощности) не в режиме комбинированной выработки электрической и тепловой энергии источниками тепловой энергии",null,null,null,null,null,null,null,null,null,null,null,null,null,null,null,null,null,null,null,null,null,null,null,null,null,null,null,null,null,null,null,null,null,null,"15","15"]
["Ивановская область",2016,null,null,null,null,null,null,"17",null,null,null,null,"производство теплоносителя",null,null,null,null,null,null,null,null,null,null,null,null,null,null,null,null,null,null,null,null,null,null,null,null,null,null,null,null,null,null,null,null,null,null,"16","16"]
["Иркутская область",2017,null,null,null,null,null,null,"18",null,null,null,null,"передача тепловой энергии и теплоносителя",null,null,null,null,null,null,null,null,null,null,null,null,null,null,null,null,null,null,null,null,null,null,null,null,null,null,null,null,null,null,null,null,null,null,"17","17"]
["Кабардино-Балкарская республика",2018,null,null,null,null,null,null,"19",null,null,null,null,"сбыт тепловой энергии и теплоносителя",null,null,null,null,null,null,null,null,null,null,null,null,null,null,null,null,null,null,null,null,null,null,null,null,null,null,null,null,null,null,null,null,null,null,"18","18"]
["Калининградская область",2019,null,null,null,null,null,null,"20",null,null,null,null,"подключение к системе теплоснабжения",null,null,null,null,null,null,null,null,null,null,null,null,null,null,null,null,null,null,null,null,null,null,null,null,null,null,null,null,null,null,null,null,null,null,"19","19"]
["Калужская область",2020,null,null,null,null,null,null,null,null,null,null,null,"поддержание резервной тепловой мощности при отсутствии потребления тепловой энергии",null,null,null,null,null,null,null,null,null,null,null,null,null,null,null,null,null,null,null,null,null,null,null,null,null,null,null,null,null,null,null,null,null,null,"20","20"]
["Камчатский край",2021,null,null,null,null,null,null,null,null,null,null,null,null,null,null,null,null,null,null,null,null,null,null,null,null,null,null,null,null,null,null,null,null,null,null,null,null,null,null,null,null,null,null,null,null,null,null,"21","21"]
["Карачаево-Черкесская республика",2022,null,null,null,null,null,null,null,null,null,null,null,null,null,null,null,null,null,null,null,null,null,null,null,null,null,null,null,null,null,null,null,null,null,null,null,null,null,null,null,null,null,null,null,null,null,null,"22","22"]
["Кемеровская область",2023,null,null,null,null,null,null,null,null,null,null,null,null,null,null,null,null,null,null,null,null,null,null,null,null,null,null,null,null,null,null,null,null,null,null,null,null,null,null,null,null,null,null,null,null,null,null,"23","23"]
["Кировская область",2024,null,null,null,null,null,null,null,null,null,null,null,null,null,null,null,null,null,null,null,null,null,null,null,null,null,null,null,null,null,null,null,null,null,null,null,null,null,null,null,null,null,null,null,null,null,null,null,"24"]
["Костромская область",2025,null,null,null,null,null,null,null,null,null,null,null,null,null,null,null,null,null,null,null,null,null,null,null,null,null,null,null,null,null,null,null,null,null,null,null,null,null,null,null,null,null,null,null,null,null,null,null,"25"]
["Краснодарский край",null,null,null,null,null,null,"Текущая дата",null,null,null,null,null,null,null,null,null,null,null,null,null,null,null,null,null,null,null,null,null,null,null,null,null,null,null,null,null,null,null,null,null,null,null,null,null,null,null,null,null,"26"]
["Красноярский край",null,null,"Организация",{"$f":"IF(periodStart = \"\",\"\", periodStart)","v":"01.01.2022"},{"$f":"IF(periodEnd = \"\",\"\", periodEnd)","v":"31.12.2022"},null,"02.11.2021 2:02:24",null,null,null,null,null,null,null,null,null,null,null,null,null,null,null,null,null,null,null,null,null,null,null,null,null,null,null,null,null,null,null,null,null,null,null,null,null,null,null,null,null,"27"]
["Курганская область",null,null,null,null,null,null,null,null,null,null,null,null,null,null,null,null,null,null,null,null,null,null,null,null,null,null,null,null,null,null,null,null,null,null,null,null,null,null,null,null,null,null,null,null,null,null,null,null,"28"]
["Курская область",null,null,null,null,null,null,null,null,null,null,null,null,null,null,null,null,null,null,null,null,null,null,null,null,null,null,null,null,null,null,null,null,null,null,null,null,null,null,null,null,null,null,null,null,null,null,null,null,"29"]
["Ленинградская область",null,null,"Виды деятельности",null,null,null,"https://appsrv.regportal-tariff.ru/procwsxls/",null,null,null,null,null,null,null,null,null,null,null,null,null,null,null,null,null,null,null,null,null,null,null,null,null,null,null,null,null,null,null,null,null,null,null,null,null,null,null,null,null,"30"]
["Липецкая область",null,null,null,null,null,null,null,null,null,null,null,null,null,null,null,null,null,null,null,null,null,null,null,null,null,null,null,null,null,null,null,null,null,null,null,null,null,null,null,null,null,null,null,null,null,null,null,null,"31"]
["Магаданская область",null,null,null,null,null,null,null,null,null,null,null,null,null,null,null,null,null,null,null,null,null,null,null,null,null,null,null,null,null,null,null,null,null,null,null,null,null,null,null,null,null,null,null,null,null,null,null,null,"32"]
["Московская область",null,null,null,null,null,null,null,null,null,null,null,null,null,null,null,null,null,null,null,null,null,null,null,null,null,null,null,null,null,null,null,null,null,null,null,null,null,null,null,null,null,null,null,null,null,null,null,null,"33"]
["Мурманская область",null,null,null,null,null,null,null,null,null,null,null,null,null,null,null,null,null,null,null,null,null,null,null,null,null,null,null,null,null,null,null,null,null,null,null,null,null,null,null,null,null,null,null,null,null,null,null,null,"34"]
["Ненецкий автономный округ",null,null,null,null,null,null,null,null,null,null,null,null,null,null,null,null,null,null,null,null,null,null,null,null,null,null,null,null,null,null,null,null,null,null,null,null,null,null,null,null,null,null,null,null,null,null,null,null,"35"]
["Нижегородская область",null,null,null,null,null,null,null,null,null,null,null,null,null,null,null,null,null,null,null,null,null,null,null,null,null,null,null,null,null,null,null,null,null,null,null,null,null,null,null,null,null,null,null,null,null,null,null,null,"36"]
["Новгородская область",null,null,null,null,null,null,null,null,null,null,null,null,null,null,null,null,null,null,null,null,null,null,null,null,null,null,null,null,null,null,null,null,null,null,null,null,null,null,null,null,null,null,null,null,null,null,null,null,"37"]
["Новосибирская область",null,null,null,null,null,null,null,null,null,null,null,null,null,null,null,null,null,null,null,null,null,null,null,null,null,null,null,null,null,null,null,null,null,null,null,null,null,null,null,null,null,null,null,null,null,null,null,null,"38"]
["Омская область",null,null,null,null,null,null,null,null,null,null,null,null,null,null,null,null,null,null,null,null,null,null,null,null,null,null,null,null,null,null,null,null,null,null,null,null,null,null,null,null,null,null,null,null,null,null,null,null,"39"]
["Оренбургская область",null,null,null,null,null,null,null,null,null,null,null,null,null,null,null,null,null,null,null,null,null,null,null,null,null,null,null,null,null,null,null,null,null,null,null,null,null,null,null,null,null,null,null,null,null,null,null,null,"40"]
["Орловская область",null,null,null,null,null,null,null,null,null,null,null,null,null,null,null,null,null,null,null,null,null,null,null,null,null,null,null,null,null,null,null,null,null,null,null,null,null,null,null,null,null,null,null,null,null,null,null,null,"41"]
["Пензенская область",null,null,null,null,null,null,null,null,null,null,null,null,null,null,null,null,null,null,null,null,null,null,null,null,null,null,null,null,null,null,null,null,null,null,null,null,null,null,null,null,null,null,null,null,null,null,null,null,"42"]
["Пермский край",null,null,null,null,null,null,null,null,null,null,null,null,null,null,null,null,null,null,null,null,null,null,null,null,null,null,null,null,null,null,null,null,null,null,null,null,null,null,null,null,null,null,null,null,null,null,null,null,"43"]
["Приморский край",null,null,null,null,null,null,null,null,null,null,null,null,null,null,null,null,null,null,null,null,null,null,null,null,null,null,null,null,null,null,null,null,null,null,null,null,null,null,null,null,null,null,null,null,null,null,null,null,"44"]
["Псковская область",null,null,null,null,null,null,null,null,null,null,null,null,null,null,null,null,null,null,null,null,null,null,null,null,null,null,null,null,null,null,null,null,null,null,null,null,null,null,null,null,null,null,null,null,null,null,null,null,"45"]
["Республика Адыгея",null,null,null,null,null,null,null,null,null,null,null,null,null,null,null,null,null,null,null,null,null,null,null,null,null,null,null,null,null,null,null,null,null,null,null,null,null,null,null,null,null,null,null,null,null,null,null,null,"46"]
["Республика Алтай",null,null,null,null,null,null,null,null,null,null,null,null,null,null,null,null,null,null,null,null,null,null,null,null,null,null,null,null,null,null,null,null,null,null,null,null,null,null,null,null,null,null,null,null,null,null,null,null,"47"]
["Республика Башкортостан",null,null,null,null,null,null,null,null,null,null,null,null,null,null,null,null,null,null,null,null,null,null,null,null,null,null,null,null,null,null,null,null,null,null,null,null,null,null,null,null,null,null,null,null,null,null,null,null,"48"]
["Республика Бурятия",null,null,null,null,null,null,null,null,null,null,null,null,null,null,null,null,null,null,null,null,null,null,null,null,null,null,null,null,null,null,null,null,null,null,null,null,null,null,null,null,null,null,null,null,null,null,null,null,"49"]
["Республика Дагестан",null,null,null,null,null,null,null,null,null,null,null,null,null,null,null,null,null,null,null,null,null,null,null,null,null,null,null,null,null,null,null,null,null,null,null,null,null,null,null,null,null,null,null,null,null,null,null,null,"50"]
["Республика Ингушетия",null,null,null,null,null,null,null,null,null,null,null,null,null,null,null,null,null,null,null,null,null,null,null,null,null,null,null,null,null,null,null,null,null,null,null,null,null,null,null,null,null,null,null,null,null,null,null,null,"51"]
["Республика Калмыкия",null,null,null,null,null,null,null,null,null,null,null,null,null,null,null,null,null,null,null,null,null,null,null,null,null,null,null,null,null,null,null,null,null,null,null,null,null,null,null,null,null,null,null,null,null,null,null,null,"52"]
["Республика Карелия",null,null,null,null,null,null,null,null,null,null,null,null,null,null,null,null,null,null,null,null,null,null,null,null,null,null,null,null,null,null,null,null,null,null,null,null,null,null,null,null,null,null,null,null,null,null,null,null,"53"]
["Республика Коми",null,null,null,null,null,null,null,null,null,null,null,null,null,null,null,null,null,null,null,null,null,null,null,null,null,null,null,null,null,null,null,null,null,null,null,null,null,null,null,null,null,null,null,null,null,null,null,null,"54"]
["Республика Крым",null,null,null,null,null,null,null,null,null,null,null,null,null,null,null,null,null,null,null,null,null,null,null,null,null,null,null,null,null,null,null,null,null,null,null,null,null,null,null,null,null,null,null,null,null,null,null,null,"55"]
["Республика Марий Эл",null,null,null,null,null,null,null,null,null,null,null,null,null,null,null,null,null,null,null,null,null,null,null,null,null,null,null,null,null,null,null,null,null,null,null,null,null,null,null,null,null,null,null,null,null,null,null,null,"56"]
["Республика Мордовия",null,null,null,null,null,null,null,null,null,null,null,null,null,null,null,null,null,null,null,null,null,null,null,null,null,null,null,null,null,null,null,null,null,null,null,null,null,null,null,null,null,null,null,null,null,null,null,null,"57"]
["Республика Саха (Якутия)",null,null,null,null,null,null,null,null,null,null,null,null,null,null,null,null,null,null,null,null,null,null,null,null,null,null,null,null,null,null,null,null,null,null,null,null,null,null,null,null,null,null,null,null,null,null,null,null,"58"]
["Республика Северная Осетия-Алания",null,null,null,null,null,null,null,null,null,null,null,null,null,null,null,null,null,null,null,null,null,null,null,null,null,null,null,null,null,null,null,null,null,null,null,null,null,null,null,null,null,null,null,null,null,null,null,null,"59"]
["Республика Татарстан"]
["Республика Тыва"]
["Республика Хакасия"]
["Ростовская область"]
["Рязанская область"]
["Самарская область"]
["Саратовская область"]
["Сахалинская область"]
["Свердловская область"]
["Смоленская область"]
["Ставропольский край"]
["Тамбовская область"]
["Тверская область"]
["Томская область"]
["Тульская область"]
["Тюменская область"]
["Удмуртская республика"]
["Ульяновская область"]
["Хабаровский край"]
["Ханты-Мансийский автономный округ"]
["Челябинская область"]
["Чеченская республика"]
["Чувашская республика"]
["Чукотский автономный округ"]
["Ямало-Ненецкий автономный округ"]
["Ярославская область"]

{"sheet":"et_union_hor","index":55,"n_rows":300,"n_cols":41,"rows_kept":300,"cut":false,"hidden":true,"merged":[[147,14,147,21],[96,14,96,26],[81,24,82,24],[81,25,82,25],[113,14,113,21],[268,5,269,5],[268,11,269,11],[183,15,186,15],[148,14,148,21],[183,16,186,16],[168,14,171,14],[183,11,187,11],[183,12,187,12],[183,21,184,21],[168,19,170,19],[151,14,151,21],[153,19,154,19],[168,21,170,21],[183,20,185,20],[183,14,186,14],[183,18,185,18],[168,12,172,12],[168,17,171,17],[168,11,172,11],[253,5,254,5],[253,6,254,6],[199,21,200,21],[199,16,202,16],[199,20,201,20],[290,0,298,0],[294,2,296,2],[295,8,296,8],[168,13,172,13],[181,1,189,1],[253,7,254,7],[166,1,174,1],[183,8,187,8],[183,9,187,9],[183,13,186,13],[168,3,172,3],[180,0,190,0],[165,0,175,0],[293,1,297,1],[248,2,249,2],[253,2,254,2],[183,10,187,10],[168,10,172,10],[168,8,172,8],[168,9,172,9],[268,3,269,3],[274,3,275,3],[274,4,275,4],[268,4,269,4],[182,2,188,2],[167,2,173,2],[64,4,67,4],[248,3,249,3],[248,4,249,4],[183,3,187,3],[168,38,173,38],[168,25,169,25],[168,24,169,24],[168,20,170,20],[136,20,137,20],[168,18,170,18],[182,13,182,36],[168,16,171,16],[168,22,169,22],[181,13,181,36],[168,15,171,15],[167,13,167,37],[168,23,169,23],[136,17,137,17],[153,17,154,17],[153,18,154,18],[114,14,114,21],[97,24,98,24],[76,0,87,0],[77,1,86,1],[78,2,85,2],[28,0,39,0],[29,1,38,1],[30,2,37,2],[31,3,36,3],[80,4,83,4],[63,3,68,3],[32,4,35,4],[44,0,55,0],[48,4,51,4],[45,1,54,1],[46,2,53,2],[47,3,52,3],[60,0,71,0],[79,3,84,3],[61,1,70,1],[62,2,69,2],[49,22,51,22],[49,20,50,20],[97,23,98,23],[63,14,63,21],[64,14,64,21],[65,22,67,22],[65,19,66,19],[60,14,60,21],[61,14,61,21],[62,14,62,21],[81,20,82,20],[76,14,76,28],[77,14,77,28],[78,14,78,28],[79,14,79,28],[80,14,80,28],[65,20,66,20],[93,14,93,26],[65,17,66,17],[33,20,34,20],[24,20,26,20],[65,18,66,18],[44,14,44,21],[45,14,45,21],[13,6,16,6],[24,22,26,22],[49,18,50,18],[33,17,34,17],[33,19,34,19],[48,9,51,9],[49,17,50,17],[32,9,35,9],[25,15,25,16],[33,22,35,22],[46,14,46,21],[47,14,47,21],[48,14,48,21],[28,14,28,21],[29,14,29,21],[30,14,30,21],[31,14,31,21],[32,14,32,21],[49,13,50,13],[151,8,156,8],[134,8,139,8],[117,8,122,8],[13,10,15,10],[49,19,50,19],[118,9,121,9],[152,9,155,9],[13,12,14,12],[13,14,14,14],[94,14,94,26],[81,17,82,17],[13,11,14,11],[24,14,24,16],[135,14,135,21],[92,14,92,26],[26,18,26,19],[64,9,67,9],[25,14,26,14],[27,14,27,20],[33,13,34,13],[13,13,14,13],[13,8,15,8],[31,8,36,8],[47,8,52,8],[135,9,138,9],[136,19,137,19],[8,3,11,3],[13,3,16,3],[33,18,34,18],[8,14,9,14],[24,17,25,19],[8,8,10,8],[13,7,15,7],[13,9,15,9],[8,11,9,11],[8,4,11,4],[8,13,9,13],[8,10,10,10],[8,9,10,9],[8,5,11,5],[13,4,16,4],[8,12,9,12],[13,5,16,5],[8,6,11,6],[8,7,10,7],[116,14,116,21],[119,19,120,19],[118,14,118,21],[81,19,82,19],[199,24,200,24],[199,23,200,23],[199,22,200,22],[81,26,82,26],[81,27,82,27],[199,19,201,19],[199,17,201,17],[199,18,201,18],[183,23,184,23],[183,17,185,17],[183,19,185,19],[183,22,184,22],[152,14,152,21],[149,14,149,21],[136,18,137,18],[132,14,132,21],[119,20,120,20],[130,14,130,21],[150,14,150,21],[119,17,120,17],[131,14,131,21],[133,14,133,21],[119,18,120,18],[183,37,188,37],[153,20,154,20],[183,24,184,24],[165,13,165,37],[166,13,166,37],[115,14,115,21],[274,5,275,5],[274,11,275,11],[65,13,66,13],[180,13,180,36],[63,8,68,8],[79,8,84,8],[81,18,82,18],[91,14,91,26],[99,23,100,23],[80,9,83,9],[96,8,102,8],[81,29,83,29],[97,22,98,22],[99,25,100,25],[99,22,100,22],[99,24,100,24],[97,9,101,9],[97,25,98,25]]}
[]
["et_Comm"]
[]
[]
[]
[]
["et_List02(_1,_2,_3)"]
[]
[null,null,null,1,null,null,"нет",null,1,null,"нет",null,"1",null,"нет",null,"1"]
[null,null,null,null,null,null,null,null,null,null,null,null,null,null,null,null,null,"Добавить ЦС ХВС для дифференциации"]
[null,null,null,null,null,null,null,null,null,null,null,null,null,"Добавить территорию для дифференциации"]
[]
[]
[null,null,null,null,null,null,null,null,1,null,"нет",null,"1",null,"нет",null,"1"]
[null,null,null,null,null,null,null,null,null,null,null,null,null,null,null,null,null,"Добавить ЦС ХВС для дифференциации"]
[null,null,null,null,null,null,null,null,null,null,null,null,null,"Добавить территорию для дифференциации"]
[]
[]
["et_List06(_1,_2,_3)",null,"1"]
[]
[]
[]
[]
[]
[null,null,null,null,null,null,null,null,null,null,null,null,null,null,"Величина установленного тарифа",null,null,"Срок действия цены (тарифа) на тепловую энергию (мощность)",null,null,"Наличие других периодов действия тарифа"]
[null,null,null,null,null,null,null,null,null,null,null,null,null,null,"Одноставочный тариф, руб./Гкал","Двухставочный тариф"]
[null,null,null,null,null,null,null,null,null,null,null,null,null,null,null,"ставка за тепловую  энергию, руб./Гкал","ставка за содержание тепловой мощности, тыс.руб./Гкал/ч/мес","дата начала","дата окончания"]
[null,null,null,null,null,null,null,null,null,null,null,null,"7"]
[1,null,null,null,null,null,null,null,null,null,null,{"$f":"mergeValue(A29)","v":1},"Наименование тарифа",null,null,null,null,null,null,null,null,null,"Указывается наименование тарифа в случае подачи предложения по нескольким тарифам.\nВ случае наличия нескольких тарифов информация по ним указывается в отдельных строках."]
[null,1,null,null,null,null,null,null,null,null,null,{"$f":"mergeValue(A30) &\".\"& mergeValue(B30)","v":"1.1"},"Территория действия тарифа",null,null,null,null,null,null,null,null,null,"Указывается наименование территории действия тарифа при наличии дифференциации тарифа по территориальному признаку.\nВ случае дифференциации тарифов по территориальному признаку информация по ним указывается в отдельных строках."]
[null,null,1,null,null,null,null,null,null,null,null,{"$f":"mergeValue(A31) &\".\"& mergeValue(B31)&\".\"& mergeValue(C31)","v":"1.1.1"},"Наименование централизованной системы холодного водоснабжения",null,null,null,null,null,null,null,null,null,"Указывается наименование централизованной системы холодного водоснабжения при наличии дифференциации тарифа по централизованным системам холодного водоснабжения.\nВ случае дифференциации тарифов по централизованным системам холодного водоснабжения информация по ним указывается в отдельных строках."]
[null,null,null,1,null,null,null,null,null,null,null,{"$f":"mergeValue(A32) &\".\"& mergeValue(B32)&\".\"& mergeValue(C32)&\".\"& mergeValue(D32)","v":"1.1.1.1"},"Наименование признака дифференциации",null,null,null,null,null,null,null,null,null,"Указывается наименование дополнительного признака дифференциации (при наличии).\nДифференциация тарифа осуществляется в соответствии с законодательством в сфере водоснабжении и водоотведении.\nВ случае дифференциации тарифов по дополнительным признакам информация по ним указывается в отдельных строках."]
[null,null,null,null,1,null,null,null,null,null,null,{"$f":"mergeValue(A33) &\".\"& mergeValue(B33)&\".\"& mergeValue(C33)&\".\"& mergeValue(D33)&\".\"& mergeValue(E33)","v":"1.1.1.1.1"},"Группа потребителей",null,null,null,null,null,null,null,null,null,"Указывается группа потребителей при наличии дифференциации тарифа по группам потребителей.\nЗначение выбирается из перечня: Организации-перепродавцы; Бюджетные организации; Население; Прочие; Без дифференциации.\nВ случае дифференциации тарифов группам потребителей информация по ним указывается в отдельных строках.",null,{"$f":"strCheckUnique(Z33:Z36)","v":""}]
[null,null,null,null,null,1,null,null,null,null,null,{"$f":"mergeValue(A34) &\".\"& mergeValue(B34)&\".\"& mergeValue(C34)&\".\"& mergeValue(D34)&\".\"& mergeValue(E34)&\".\"& mergeValue(F34)","v":"1.1.1.1.1.1"},null,null,null,null,null,null,"да",null,"нет",null,"В колонке «Параметр дифференциации тарифов» указывается значение дополнительного признака дифференциации.\nПри подаче предложения на двухставочный тариф колонка «Одноставочный тариф» не заполняется.\nПри подаче предложения на одноставочный тариф колонки в блоке «Двухставочный тариф» не заполняются.\nДаты начала и окончания действия тарифов указываются в виде «ДД.ММ.ГГГГ».\nВ случае отсутствия даты окончания действия тарифа в колонке «Дата окончания» указывается «Нет».\nВ случае наличия нескольких значений признака дифференциации тарифов информация по ним указывается в отдельных строках.\nВ случае дифференциации тарифов по периодам действия тарифа информация по ним указывается в отдельных колонках.",{"$f":"strCheckDate(O35:V35)","v":""},null,{"$f":"IF(M34=\"\",\"\",M34 )","v":""}]
[null,null,null,null,null,null,null,null,null,null,null,null,null,null,null,null,{"$f":"R34 & \"-\" & T34","v":"-"}]
[null,null,null,null,null,null,null,null,null,null,null,null,"Добавить значение признака дифференциации"]
[null,null,null,null,null,null,null,null,null,null,null,null,"Добавить группу потребителей"]
[null,null,null,null,null,null,null,null,null,null,null,null,"Добавить наименование признака дифференциации"]
[null,null,null,null,null,null,null,null,null,null,null,null,"Добавить наименование системы водоснабжения"]
[null,null,null,null,null,null,null,null,null,null,null,null,"Добавить территорию действия тарифа"]
[null,null,null,null,null,null,null,null,null,null,null,null,"Добавить наименование тарифа"]
[]
["et_List06(_1,_2,_3)",null,"2"]
[]
[1,null,null,null,null,null,null,null,null,null,null,{"$f":"mergeValue(A45)","v":1},"Наименование тарифа",null,null,null,null,null,null,null,null,null,"Указывается наименование тарифа в случае подачи предложения по нескольким тарифам.\nВ случае наличия нескольких тарифов информация по ним указывается в отдельных строках."]
[null,1,null,null,null,null,null,null,null,null,null,{"$f":"mergeValue(A46) &\".\"& mergeValue(B46)","v":"1.1"},"Территория действия тарифа",null,null,null,null,null,null,null,null,null,"Указывается наименование территории действия тарифа при наличии дифференциации тарифа по территориальному признаку.\nВ случае дифференциации тарифов по территориальному признаку информация по ним указывается в отдельных строках."]
[null,null,1,null,null,null,null,null,null,null,null,{"$f":"mergeValue(A47) &\".\"& mergeValue(B47)&\".\"& mergeValue(C47)","v":"1.1.1"},"Наименование централизованной системы холодного водоснабжения",null,null,null,null,null,null,null,null,null,"Указывается наименование централизованной системы холодного водоснабжения при наличии дифференциации тарифа по централизованным системам холодного водоснабжения.\nВ случае дифференциации тарифов по централизованным системам холодного водоснабжения информация по ним указывается в отдельных строках."]
[null,null,null,1,null,null,null,null,null,null,null,{"$f":"mergeValue(A48) &\".\"& mergeValue(B48)&\".\"& mergeValue(C48)&\".\"& mergeValue(D48)","v":"1.1.1.1"},"Наименование признака дифференциации",null,null,null,null,null,null,null,null,null,"Указывается наименование дополнительного признака дифференциации (при наличии).\nДифференциация тарифа осуществляется в соответствии с законодательством в сфере водоснабжении и водоотведении.\nВ случае дифференциации тарифов по дополнительным признакам информация по ним указывается в отдельных строках."]
[null,null,null,null,1,null,null,null,null,null,null,{"$f":"mergeValue(A49) &\".\"& mergeValue(B49)&\".\"& mergeValue(C49)&\".\"& mergeValue(D49)&\".\"& mergeValue(E49)","v":"1.1.1.1.1"},"Группа потребителей",null,null,null,null,null,null,null,null,null,"Указывается группа потребителей при наличии дифференциации тарифа по группам потребителей.\nЗначение выбирается из перечня: Организации-перепродавцы; Бюджетные организации; Население; Прочие; Без дифференциации.\nВ случае дифференциации тарифов группам потребителей информация по ним указывается в отдельных строках.",null,{"$f":"strCheckUnique(Z49:Z52)","v":""}]
[null,null,null,null,null,1,null,null,null,null,null,{"$f":"mergeValue(A50) &\".\"& mergeValue(B50)&\".\"& mergeValue(C50)&\".\"& mergeValue(D50)&\".\"& mergeValue(E50)&\".\"& mergeValue(F50)","v":"1.1.1.1.1.1"},null,null,null,null,null,null,"да",null,"нет",null,"В колонке «Параметр дифференциации тарифов» указывается значение дополнительного признака дифференциации.\nПри подаче предложения на двухставочный тариф колонка «Одноставочный тариф» не заполняется.\nПри подаче предложения на одноставочный тариф колонки в блоке «Двухставочный тариф» не заполняются.\nДаты начала и окончания действия тарифов указываются в виде «ДД.ММ.ГГГГ».\nВ случае отсутствия даты окончания действия тарифа в колонке «Дата окончания» указывается «Нет».\nВ случае наличия нескольких значений признака дифференциации тарифов информация по ним указывается в отдельных строках.\nВ случае дифференциации тарифов по периодам действия тарифа информация по ним указывается в отдельных колонках.",{"$f":"strCheckDate(O51:V51)","v":""},null,{"$f":"IF(M50=\"\",\"\",M50 )","v":""}]
[null,null,null,null,null,null,null,null,null,null,null,null,null,null,null,null,{"$f":"R50 & \"-\" & T50","v":"-"}]
[null,null,null,null,null,null,null,null,null,null,null,null,"Добавить значение признака дифференциации"]
[null,null,null,null,null,null,null,null,null,null,null,null,"Добавить группу потребителей"]
[null,null,null,null,null,null,null,null,null,null,null,null,"Добавить наименование признака дифференциации"]
[null,null,null,null,null,null,null,null,null,null,null,null,"Добавить наименование системы водоснабжения"]
[null,null,null,null,null,null,null,null,null,null,null,null,"Добавить территорию действия тарифа"]
[null,null,null,null,null,null,null,null,null,null,null,null,"Добавить наименование тарифа"]
[]
["et_List06(_1,_2,_3)",null,"3"]
[]
[1,null,null,null,null,null,null,null,null,null,null,{"$f":"mergeValue(A61)","v":1},"Наименование тарифа",null,null,null,null,null,null,null,null,null,"Указывается наименование тарифа в случае подачи предложения по нескольким тарифам.\nВ случае наличия нескольких тарифов информация по ним указывается в отдельных строках."]
[null,1,null,null,null,null,null,null,null,null,null,{"$f":"mergeValue(A62) &\".\"& mergeValue(B62)","v":"1.1"},"Территория действия тарифа",null,null,null,null,null,null,null,null,null,"Указывается наименование территории действия тарифа при наличии дифференциации тарифа по территориальному признаку.\nВ случае дифференциации тарифов по территориальному признаку информация по ним указывается в отдельных строках."]
[null,null,1,null,null,null,null,null,null,null,null,{"$f":"mergeValue(A63) &\".\"& mergeValue(B63)&\".\"& mergeValue(C63)","v":"1.1.1"},"Наименование централизованной системы холодного водоснабжения",null,null,null,null,null,null,null,null,null,"Указывается наименование централизованной системы холодного водоснабжения при наличии дифференциации тарифа по централизованным системам холодного водоснабжения.\nВ случае дифференциации тарифов по централизованным системам холодного водоснабжения информация по ним указывается в отдельных строках."]
[null,null,null,1,null,null,null,null,null,null,null,{"$f":"mergeValue(A64) &\".\"& mergeValue(B64)&\".\"& mergeValue(C64)&\".\"& mergeValue(D64)","v":"1.1.1.1"},"Наименование признака дифференциации",null,null,null,null,null,null,null,null,null,"Указывается наименование дополнительного признака дифференциации (при наличии).\nДифференциация тарифа осуществляется в соответствии с законодательством в сфере водоснабжении и водоотведении.\nВ случае дифференциации тарифов по дополнительным признакам информация по ним указывается в отдельных строках."]
[null,null,null,null,1,null,null,null,null,null,null,{"$f":"mergeValue(A65) &\".\"& mergeValue(B65)&\".\"& mergeValue(C65)&\".\"& mergeValue(D65)&\".\"& mergeValue(E65)","v":"1.1.1.1.1"},"Группа потребителей",null,null,null,null,null,null,null,null,null,"Указывается группа потребителей при наличии дифференциации тарифа по группам потребителей.\nЗначение выбирается из перечня: Организации-перепродавцы; Бюджетные организации; Население; Прочие; Без дифференциации.\nВ случае дифференциации тарифов группам потребителей информация по ним указывается в отдельных строках.",null,{"$f":"strCheckUnique(Z65:Z68)","v":""}]
[null,null,null,null,null,1,null,null,null,null,null,{"$f":"mergeValue(A66) &\".\"& mergeValue(B66)&\".\"& mergeValue(C66)&\".\"& mergeValue(D66)&\".\"& mergeValue(E66)&\".\"& mergeValue(F66)","v":"1.1.1.1.1.1"},null,null,null,null,null,null,"да",null,"нет",null,"В колонке «Параметр дифференциации тарифов» указывается значение дополнительного признака дифференциации.\nПри подаче предложения на двухставочный тариф колонка «Одноставочный тариф» не заполняется.\nПри подаче предложения на одноставочный тариф колонки в блоке «Двухставочный тариф» не заполняются.\nДаты начала и окончания действия тарифов указываются в виде «ДД.ММ.ГГГГ».\nВ случае отсутствия даты окончания действия тарифа в колонке «Дата окончания» указывается «Нет».\nВ случае наличия нескольких значений признака дифференциации тарифов информация по ним указывается в отдельных строках.\nВ случае дифференциации тарифов по периодам действия тарифа информация по ним указывается в отдельных колонках.",{"$f":"strCheckDate(O67:V67)","v":""},null,{"$f":"IF(M66=\"\",\"\",M66 )","v":""}]
[null,null,null,null,null,null,null,null,null,null,null,null,null,null,null,null,{"$f":"R66 & \"-\" & T66","v":"-"}]
[null,null,null,null,null,null,null,null,null,null,null,null,"Добавить значение признака дифференциации"]
[null,null,null,null,null,null,null,null,null,null,null,null,"Добавить группу потребителей"]
[null,null,null,null,null,null,null,null,null,null,null,null,"Добавить наименование признака дифференциации"]
[null,null,null,null,null,null,null,null,null,null,null,null,"Добавить наименование системы водоснабжения"]
[null,null,null,null,null,null,null,null,null,null,null,null,"Добавить территорию действия тарифа"]
[null,null,null,null,null,null,null,null,null,null,null,null,"Добавить наименование тарифа"]
[]
["et_List06(_1,_2,_3)",null,"4"]
[]
[1,null,null,null,null,null,null,null,null,null,null,{"$f":"mergeValue(A77)","v":1},"Наименование тарифа",null,null,null,null,null,null,null,null,null,null,null,null,null,null,null,null,"Указывается наименование тарифа в случае подачи предложения по нескольким тарифам.\nВ случае наличия нескольких тарифов информация по ним указывается в отдельных строках."]
[null,1,null,null,null,null,null,null,null,null,null,{"$f":"mergeValue(A78) &\".\"& mergeValue(B78)","v":"1.1"},"Территория действия тарифа",null,null,null,null,null,null,null,null,null,null,null,null,null,null,null,null,"Указывается наименование территории действия тарифа при наличии дифференциации тарифа по территориальному признаку.\nВ случае дифференциации тарифов по территориальному признаку информация по ним указывается в отдельных строках."]
[null,null,1,null,null,null,null,null,null,null,null,{"$f":"mergeValue(A79) &\".\"& mergeValue(B79)&\".\"& mergeValue(C79)","v":"1.1.1"},"Наименование централизованной системы холодного водоснабжения",null,null,null,null,null,null,null,null,null,null,null,null,null,null,null,null,"Указывается наименование централизованной системы холодного водоснабжения при наличии дифференциации тарифа по централизованным системам холодного водоснабжения.\nВ случае дифференциации тарифов по централизованным системам холодного водоснабжения информация по ним указывается в отдельных строках."]
[null,null,null,1,null,null,null,null,null,null,null,{"$f":"mergeValue(A80) &\".\"& mergeValue(B80)&\".\"& mergeValue(C80)&\".\"& mergeValue(D80)","v":"1.1.1.1"},"Наименование признака дифференциации",null,null,null,null,null,null,null,null,null,null,null,null,null,null,null,null,"Указывается наименование дополнительного признака дифференциации (при наличии).\nДифференциация тарифа осуществляется в соответствии с законодательством в сфере водоснабжении и водоотведении.\nВ случае дифференциации тарифов по дополнительным признакам информация по ним указывается в отдельных строках."]
[null,null,null,null,1,null,null,null,null,null,null,{"$f":"mergeValue(A81) &\".\"& mergeValue(B81)&\".\"& mergeValue(C81)&\".\"& mergeValue(D81)&\".\"& mergeValue(E81)","v":"1.1.1.1.1"},"Группа потребителей",null,null,null,null,null,null,null,null,null,null,null,null,null,null,null,null,"Указывается группа потребителей при наличии дифференциации тарифа по группам потребителей.\nЗначение выбирается из перечня: Организации-перепродавцы; Бюджетные организации; Население; Прочие; Без дифференциации.\nВ случае дифференциации тарифов группам потребителей информация по ним указывается в отдельных строках.",null,{"$f":"strCheckUnique(AG81:AG84)","v":""}]
[null,null,null,null,null,1,null,null,null,null,null,{"$f":"mergeValue(A82) &\".\"& mergeValue(B82)&\".\"& mergeValue(C82)&\".\"& mergeValue(D82)&\".\"& mergeValue(E82)&\".\"& mergeValue(F82)","v":"1.1.1.1.1.1"},null,null,null,null,null,null,"да",null,"да",null,null,null,null,"да",null,"нет",null,"В колонке «Параметр дифференциации тарифов» указывается значение дополнительного признака дифференциации.\nПри подаче предложения на двухставочный тариф колонка «Одноставочный тариф» не заполняется.\nПри подаче предложения на одноставочный тариф колонки в блоке «Двухставочный тариф» не заполняются.\nДаты начала и окончания действия тарифов указываются в виде «ДД.ММ.ГГГГ».\nВ случае отсутствия даты окончания действия тарифа в колонке «Дата окончания» указывается «Нет».\nВ случае наличия нескольких значений признака дифференциации тарифов информация по ним указывается в отдельных строках.\nВ случае дифференциации тарифов по периодам действия тарифа информация по ним указывается в отдельных колонках.",{"$f":"strCheckDate(O83:AC83)","v":""},null,{"$f":"IF(M82=\"\",\"\",M82 )","v":""}]
[null,null,null,null,null,null,null,null,null,null,null,null,null,null,null,null,{"$f":"R82 & \"-\" & T82","v":"-"},null,null,null,null,null,null,{"$f":"Y82 & \"-\" & AA82","v":"-"}]
[null,null,null,null,null,null,null,null,null,null,null,null,"Добавить значение признака дифференциации"]
[null,null,null,null,null,null,null,null,null,null,null,null,"Добавить группу потребителей"]
[null,null,null,null,null,null,null,null,null,null,null,null,"Добавить наименование признака дифференциации"]
[null,null,null,null,null,null,null,null,null,null,null,null,"Добавить наименование системы водоснабжения"]
[null,null,null,null,null,null,null,null,null,null,null,null,"Добавить территорию действия тарифа"]
[null,null,null,null,null,null,null,null,null,null,null,null,"Добавить наименование тарифа"]
[null,null,null,null,null,null,"et_List06(_1,_2,_3)",null,"5"]
[]
[null,null,null,null,null,null,null,null,null,null,null,"1","Наименование тарифа"]
[null,null,null,null,null,null,null,null,null,null,null,"1.1","Территория действия тарифа"]
[null,null,null,null,null,null,null,null,null,null,null,"1.1.1","Наименование системы теплоснабжения "]
[null,null,null,null,null,null,null,null,null,null,null,"1.1.1.1","Источник тепловой энергии  "]
[]
[null,null,null,null,null,null,null,null,null,null,null,"1.1.1.1.1.1","Группа потребителей",null,null,null,null,null,null,null,null,null,null,null,null,null,null,null,null,{"$f":"strCheckUnique(AE97:AE103)","v":""}]
[null,null,null,null,null,null,null,1,null,null,null,null,null,null,null,null,null,null,null,null,null,{"$f":"W98 & \"-\" & Y98","v":"-"},null,"да",null,"нет",null,null,{"$f":"strCheckDate(O98:AA98)","v":""},null,{"$f":"IF(M98=\"\",\"\",M98 )","v":""}]
[null,null,null,null,null,null,null,null,null,null,null,null,null,null,null,null,null,null,null,null,null,null,null,null,null,null,null,null,null,null,null,{"$f":"OFFSET(AF99,-1,0)","v":0}]
[null,null,null,null,null,null,null,null,null,null,null,null,null,null,null,null,null,null,null,null,null,{"$f":"W100 & \"-\" & Y100","v":"-"},null,"да",null,"нет",null,null,{"$f":"strCheckDate(O100:AA100)","v":""}]
[null,null,null,null,null,null,null,null,null,null,null,null,null,null,null,null,null,null,null,null,null,null,null,null,null,null,null,null,null,null,null,{"$f":"OFFSET(AF101,-1,0)","v":0}]
[null,null,null,null,null,null,null,null,null,null,null,null,"Добавить поставщика"]
[null,null,null,null,null,null,null,null,null,null,null,null,"Добавить вид теплоносителя (параметры теплоносителя)"]
[null,null,null,null,null,null,null,null,null,null,null,null,"Добавить группу потребителей"]
[]
[null,null,null,null,null,null,null,null,null,null,null,null,"Добавить источник тепловой энергии"]
[null,null,null,null,null,null,null,null,null,null,null,null,"Добавить наименование системы теплоснабжения"]
[null,null,null,null,null,null,null,null,null,null,null,null,"Добавить территорию действия тарифа"]
[null,null,null,null,null,null,null,null,null,null,null,null,null,null,null,null,null,null,null,null,null,null,null,"да",null,"нет"]
[]
[]
[null,null,null,null,null,null,"et_List06(_1,_2,_3)",null,"6"]
[]
[null,null,null,null,null,null,null,null,null,null,null,"1","Наименование тарифа"]
[null,null,null,null,null,null,null,null,null,null,null,"1.1","Территория действия тарифа"]
[null,null,null,null,null,null,null,null,null,null,null,"1.1.1","Наименование системы теплоснабжения "]
[null,null,null,null,null,null,null,null,null,null,null,"1.1.1.1","Источник тепловой энергии  "]
[]
[null,null,null,null,null,null,null,null,null,null,null,"1.1.1.1.1.1","Группа потребителей",null,null,null,null,null,null,null,null,null,null,null,{"$f":"strCheckUnique(Z119:Z122)","v":""}]
[null,null,null,null,null,null,null,1,null,null,null,null,null,null,null,null,null,null,"да",null,"нет",null,null,{"$f":"strCheckDate(O121:V121)","v":""},null,{"$f":"IF(M120=\"\",\"\",M120 )","v":""}]
[null,null,null,null,null,null,null,null,null,null,null,null,null,null,null,null,{"$f":"R120 & \"-\" & T120","v":"-"}]
[null,null,null,null,null,null,null,null,null,null,null,null,"Добавить вид теплоносителя (параметры теплоносителя)"]
[null,null,null,null,null,null,null,null,null,null,null,null,"Добавить группу потребителей"]
[]
[null,null,null,null,null,null,null,null,null,null,null,null,"Добавить источник тепловой энергии"]
[null,null,null,null,null,null,null,null,null,null,null,null,"Добавить наименование системы теплоснабжения"]
[null,null,null,null,null,null,null,null,null,null,null,null,"Добавить территорию действия тарифа"]
[]
[null,null,null,null,null,null,"et_List06(_1,_2,_3)",null,"7"]
[]
[null,null,null,null,null,null,null,null,null,null,null,"1","Наименование тарифа"]
[null,null,null,null,null,null,null,null,null,null,null,"1.1","Территория действия тарифа"]
[null,null,null,null,null,null,null,null,null,null,null,"1.1.1","Наименование системы теплоснабжения "]
[null,null,null,null,null,null,null,null,null,null,null,"1.1.1.1","Источник тепловой энергии  "]
[]
[null,null,null,null,null,null,null,null,null,null,null,"1.1.1.1.1.1","Группа потребителей",null,null,null,null,null,null,null,null,null,null,null,{"$f":"strCheckUnique(Z136:Z139)","v":""}]
[null,null,null,null,null,null,null,1,null,null,null,null,null,null,null,null,null,null,"да",null,"нет",null,null,{"$f":"strCheckDate(O138:V138)","v":""},null,{"$f":"IF(M137=\"\",\"\",M137 )","v":""}]
[null,null,null,null,null,null,null,null,null,null,null,null,null,null,null,null,{"$f":"R137 & \"-\" & T137","v":"-"}]
[null,null,null,null,null,null,null,null,null,null,null,null,"Добавить вид теплоносителя (параметры теплоносителя)"]
[null,null,null,null,null,null,null,null,null,null,null,null,"Добавить группу потребителей"]
[]
[null,null,null,null,null,null,null,null,null,null,null,null,"Добавить источник тепловой энергии"]
[null,null,null,null,null,null,null,null,null,null,null,null,"Добавить наименование системы теплоснабжения"]
[null,null,null,null,null,null,null,null,null,null,null,null,"Добавить территорию действия тарифа"]
[]
[null,null,null,null,null,null,"et_List06(_1,_2,_3)",null,"8"]
[]
[null,null,null,null,null,null,null,null,null,null,null,"1","Наименование тарифа"]
[null,null,null,null,null,null,null,null,null,null,null,"1.1","Территория действия тарифа"]
[null,null,null,null,null,null,null,null,null,null,null,"1.1.1","Наименование системы теплоснабжения "]
[null,null,null,null,null,null,null,null,null,null,null,"1.1.1.1","Источник тепловой энергии  "]
[null,null,null,null,null,null,null,null,null,null,null,"1.1.1.1.1","Схема подключения теплопотребляющей установки к коллектору источника тепловой энергии"]
[null,null,null,null,null,null,null,null,null,null,null,"1.1.1.1.1.1","Группа потребителей",null,null,null,null,null,null,null,null,null,null,null,{"$f":"strCheckUnique(Z153:Z156)","v":""}]
[null,null,null,null,null,null,null,1,null,null,null,null,null,null,null,null,null,null,"да",null,"нет",null,null,{"$f":"strCheckDate(O155:V155)","v":""},null,{"$f":"IF(M154=\"\",\"\",M154 )","v":""}]
[null,null,null,null,null,null,null,null,null,null,null,null,null,null,null,null,{"$f":"R154 & \"-\" & T154","v":"-"}]
[null,null,null,null,null,null,null,null,null,null,null,null,"Добавить вид теплоносителя (параметры теплоносителя)"]
[null,null,null,null,null,null,null,null,null,null,null,null,"Добавить группу потребителей"]
[null,null,null,null,null,null,null,null,null,null,null,null,"Добавить схему подключения"]
[null,null,null,null,null,null,null,null,null,null,null,null,"Добавить источник тепловой энергии"]
[null,null,null,null,null,null,null,null,null,null,null,null,"Добавить наименование системы теплоснабжения"]
[null,null,null,null,null,null,null,null,null,null,null,null,"Добавить территорию действия тарифа"]
[]
["et_List06(_1,_2,_3)",null,"9"]
[]
[]
[1,null,null,null,null,null,null,null,null,null,null,{"$f":"mergeValue(A166)","v":1},"Наименование тарифа",null,null,null,null,null,null,null,null,null,null,null,null,null,null,null,null,null,null,null,null,null,null,null,null,null,"Указывается наименование тарифа в случае подачи предложения по нескольким тарифам.\nВ случае наличия нескольких тарифов информация по ним указывается в отдельных строках."]
[null,1,null,null,null,null,null,null,null,null,null,{"$f":"mergeValue(A167) &\".\"& mergeValue(B167)","v":"1.1"},"Территория действия тарифа",null,null,null,null,null,null,null,null,null,null,null,null,null,null,null,null,null,null,null,null,null,null,null,null,null,"Указывается наименование территории действия тарифа при наличии дифференциации тарифа по территориальному признаку.\nВ случае дифференциации тарифов по территориальному признаку информация по ним указывается в отдельных строках."]
[null,null,1,null,null,null,null,null,null,null,null,{"$f":"mergeValue(A168) &\".\"& mergeValue(B168)&\".\"& mergeValue(C168)","v":"1.1.1"},"Наименование централизованной системы холодного водоснабжения",null,null,null,null,null,null,null,null,null,null,null,null,null,null,null,null,null,null,null,null,null,null,null,null,null,"Указывается наименование централизованной системы холодного водоснабжения при наличии дифференциации тарифа по централизованным системам холодного водоснабжения.\nВ случае дифференциации тарифов по централизованным системам холодного водоснабжения информация по ним указывается в отдельных строках."]
[null,null,null,1,null,null,null,null,null,null,null,{"$f":"mergeValue(A169) &\".\"& mergeValue(B169)&\".\"& mergeValue(C169)&\".\"& mergeValue(D169)","v":"1.1.1.1"},null,"да",null,"1",null,"нет",null,1,null,"нет",null,1,null,"нет",null,1,null,null,null,null,null,null,"да",null,"нет",null,"В колодке «Параметр дифференциации тарифа/Заявитель» указывается наименование категории потребителей/заявителя, к которой относится тариф.\nДаты начала и окончания указываются в виде «ДД.ММ.ГГГГ».\nВ случае отсутствия даты окончания тарифа в колонке «Дата окончания» указывается «Нет».\nВ случае дифференциации по категориям потребителей/заявителям, подключаемой нагрузке, диапазону диаметров, протяженности, условиям прокладки водопроводной сети информация по ним указывается в отдельных строках.\nВ случае дифференциации тарифов по периодам действия тарифа информация по ним указывается в отдельных колонках.",{"$f":"strCheckDateOnDP(AD169:AL169,List06_9_DP)","v":""},{"$f":"IF(AND(COUNTIF(AP165:AP165,AP169)>1,AP169<>\"\"),\"ErrUnique:HasDoubleConn\",\"\")","v":""}]
[null,null,null,null,null,null,null,null,null,null,null,null,null,null,null,null,null,null,null,null,null,null,null,null,null,null,null,null,null,null,null,null,{"$f":"AH169 & \"-\" & AJ169","v":"-"},null,null,null,"нет"]
[]
[]
[null,null,null,null,null,null,null,null,null,null,null,null,null,null,null,null,"Добавить подключаемую нагрузку"]
[null,null,null,null,null,null,null,null,null,null,null,null,"Добавить строку"]
[null,null,null,null,null,null,null,null,null,null,null,null,"Добавить наименование системы водоснабжения"]
[null,null,null,null,null,null,null,null,null,null,null,null,"Добавить территорию действия тарифа"]
[null,null,null,null,null,null,null,null,null,null,null,null,"Добавить наименование тарифа"]
[]
["et_List06(_1,_2,_3)",null,"10"]
[]
[1,null,null,null,null,null,null,null,null,null,null,{"$f":"mergeValue(A181)","v":1},"Наименование тарифа",null,null,null,null,null,null,null,null,null,null,null,null,null,null,null,null,null,null,null,null,null,null,null,null,"Указывается наименование тарифа в случае подачи предложения по нескольким тарифам.\nВ случае наличия нескольких тарифов информация по ним указывается в отдельных строках."]
[null,1,null,null,null,null,null,null,null,null,null,{"$f":"mergeValue(A182) &\".\"& mergeValue(B182)","v":"1.1"},"Территория действия тарифа",null,null,null,null,null,null,null,null,null,null,null,null,null,null,null,null,null,null,null,null,null,null,null,null,"Указывается наименование территории действия тарифа при наличии дифференциации тарифа по территориальному признаку.\nВ случае дифференциации тарифов по территориальному признаку информация по ним указывается в отдельных строках."]
[null,null,1,null,null,null,null,null,null,null,null,{"$f":"mergeValue(A183) &\".\"& mergeValue(B183)&\".\"& mergeValue(C183)","v":"1.1.1"},"Наименование централизованной системы холодного водоснабжения",null,null,null,null,null,null,null,null,null,null,null,null,null,null,null,null,null,null,null,null,null,null,null,null,"Указывается наименование централизованной системы холодного водоснабжения при наличии дифференциации тарифа по централизованным системам холодного водоснабжения.\nВ случае дифференциации тарифов по централизованным системам холодного водоснабжения информация по ним указывается в отдельных строках."]
[null,null,null,1,null,null,null,null,null,null,null,{"$f":"mergeValue(A184) &\".\"& mergeValue(B184)&\".\"& mergeValue(C184)&\".\"& mergeValue(D184)","v":"1.1.1.1"},null,null,"1",null,"нет",null,1,null,"нет",null,"1",null,"нет",null,1,null,null,null,null,null,null,"да",null,"нет",null,"В колодке «Параметр дифференциации тарифа/Заявитель» указывается наименование категории потребителей/заявителя, к которой относится тариф.\nДаты начала и окончания указываются в виде «ДД.ММ.ГГГГ».\nВ случае отсутствия даты окончания тарифа в колонке «Дата окончания» указывается «Нет».\nВ случае дифференциации по категориям потребителей/заявителям, подключаемой нагрузке, диапазону диаметров, протяженности, условиям прокладки водопроводной сети информация по ним указывается в отдельных строках.\nВ случае дифференциации тарифов по периодам действия тарифа информация по ним указывается в отдельных колонках.",{"$f":"strCheckDateOnDP(AC184:AK184,List06_10_DP)","v":""},{"$f":"IF(AND(COUNTIF(AO180:AO180,AO184)>1,AO184<>\"\"),\"ErrUnique:HasDoubleConn\",\"\")","v":""}]
[null,null,null,null,null,null,null,null,null,null,null,null,null,null,null,null,null,null,null,null,null,null,null,null,null,null,null,null,null,null,null,{"$f":"AG184 & \"-\" & AI184","v":"-"},null,null,null,"нет"]
[]
[]
[null,null,null,null,null,null,null,null,null,null,null,null,null,null,null,"Добавить подключаемую нагрузку"]
[null,null,null,null,null,null,null,null,null,null,null,null,"Добавить строку"]
[null,null,null,null,null,null,null,null,null,null,null,null,"Добавить наименование системы водоснабжения"]
[null,null,null,null,null,null,null,null,null,null,null,null,"Добавить территорию действия тарифа"]
[null,null,null,null,null,null,null,null,null,null,null,null,"Добавить наименование тарифа"]
[]
[]
[]
[]
[]
[]
[]
[null,null,null,null,null,null,null,null,null,null,null,null,null,null,null,null,"нет",null,1,null,"да",null,1,null,"да",null,1]
[null,null,null,null,null,null,null,null,null,null,null,null,null,null,null,null,null,null,null,null,null,null,null,null,null,null,null,"Добавить условия прокладки сетей"]
[null,null,null,null,null,null,null,null,null,null,null,null,null,null,null,null,null,null,null,null,null,null,null,"Добавить протяженность водопроводной сети"]
[]
[]
[]
["et_List07"]
[]
[]
[]
["et_List06"]
[]
[null,null,null,null,1]
[]
["et_List07"]
[]
[null,null,null,null,"1"]
[]
["et_List08"]
[]
[null,null,null,null,"1"]
[]
["et_List00_01","et_List00_02","et_List00_03"]
[]
[null,null,null,null,null,"Адрес регулируемой организации"]
[null,null,null,null,"Юридический адрес"]
[null,null,null,null,"Почтовый адрес"]
[]
[null,null,null,null,null,"Руководитель"]
[null,null,null,null,"Фамилия, имя, отчество"]
[null,null,null,null,"(код) номер телефона"]
[]
[null,null,null,null,null,"Главный бухгалтер"]
[null,null,null,null,"Фамилия, имя, отчество"]
[null,null,null,null,"(код) номер телефона"]
[]
[null,null,null,null,null,"Должностное лицо, ответственное за составление формы"]
[null,null,null,null,"Фамилия, имя, отчество"]
[null,null,null,null,"Должность"]
[null,null,null,null,"(код) номер телефона"]
[null,null,null,null,"e-mail"]
[]
["et_List03"]
[]
["3","",null,null,null,"","","",null,null,null,null,{"$f":"IF(ISERROR(INDEX(kind_of_nameforms,MATCH(E244,kind_of_forms,0),1)),\"\",INDEX(kind_of_nameforms,MATCH(E244,kind_of_forms,0),1))","v":""}]
[]
[]
["et_List01_0"]
[]
[null,"auto",null,1,null,null,0,null,null,"0",null,null,{"$f":"mergeValue(H249)","v":0},null,null,{"$f":"IF(ISERROR(MATCH(Q249,MODesc,0)),\"n\",\"y\")","v":"n"},null,{"$f":"K249&\"(\"&L249&\")\"","v":"()"}]
[null,null,null,null,null,null,null,"Добавить МР"]
[]
["et_List01_1"]
[]
[null,"auto",null,null,null,null,0,null,null,"0",null,null,{"$f":"mergeValue(H254)","v":0},null,null,null,null,{"$f":"K254&\"(\"&L254&\")\"","v":"()"}]
[null,null,null,null,null,null,null,null,null,null,"Добавить МО"]
[]
["et_List01_2"]
[]
[null,"auto",null,null,null,null,null,null,null,0,null,null,{"$f":"mergeValue(H259)","v":0},null,null,null,null,{"$f":"K259&\" (\"&L259&\")\"","v":" ()"}]
[]
[]
["et_List13_1"]
[]
[]
[]
[]
["et_List14_1_1"]
[]
[null,null,null,null,null,null,null,null,null,null,"x","Значение в колонке «Вид тарифа» выбирается из перечня видов тарифов в сфере холодного водоснабжения, предусмотренных законодательством в сфере водоснабжения и водоотведения.\nЗначение в колонке «Информация» выбирается из перечня: Метод экономически обоснованных расходов (затрат); Метод индексации установленных тарифов; Метод обеспечения доходности инвестированного капитала; Метод сравнения аналогов.\nДаты начала и окончания периода действия тарифов указывается в виде «ДД.ММ.ГГГГ».\nВ случае дифференциации предлагаемых методов регулирования видам тарифов и (или) по периодам действия тарифов информация по каждому из них указывается в отдельной строке."]
[null,null,null,null,null,null,null,"Добавить период"]
[]
[]
["et_List14_1_4"]
[]
[null,null,null,null,null,null,null,null,null,null,"x","Значение в колонке «Вид тарифа» выбирается из перечня видов тарифов в сфере холодного водоснабжения, предусмотренных законодательством в сфере водоснабжения и водоотведения.\nЗначение в колонке «Информация» выбирается из перечня: Метод экономически обоснованных расходов (затрат); Метод индексации установленных тарифов; Метод обеспечения доходности инвестированного капитала; Метод сравнения аналогов.\nДаты начала и окончания периода действия тарифов указывается в виде «ДД.ММ.ГГГГ».\nВ случае дифференциации предлагаемых методов регулирования видам тарифов и (или) по периодам действия тарифов информация по каждому из них указывается в отдельной строке."]
[null,null,null,null,null,null,null,"Добавить период"]
[]
[]
["et_List14_1_2"]
[]
[null,null,null,null,null,null,null,null,null,null,"x"]
[]
[]
["et_List14_1_3"]
[]
[null,null,null,null,null,null,null,null,null,null,"x"]
[]
[]
["et_List05(_1,_2,_3,_4)"]
[]
[1,null,null,null,null,{"$f":"\"2.\" &mergeValue(A291)","v":"2.1"},"Наименование централизованной системы коммунальной инфраструктуры",null,"Указывается наименование централизованной системы холодного водоснабжения/горячего водоснабжения/водоотведения/теплоснабжения, к которой относится размещаемая информация.\nВ случае наличия нескольких централизованных систем коммунальной инфраструктуры, информация по каждой из них указывается в отдельной строке."]
[null,null,null,null,null,{"$f":"\"3.\" &mergeValue(A292)","v":"3.1"},"Наименование регулируемого вида деятельности",null,"Указывается наименование вида регулируемой деятельности."]
[null,null,null,null,null,{"$f":"\"4.\"&mergeValue(A293)","v":"4.1"},"Территория оказания услуги по регулируемому виду деятельности","x"]
[null,1,null,null,null,{"$f":"\"4.\"&mergeValue(A294) &\".\"&mergeValue(B294)","v":"4.1.1"},"Субъект Российской Федерации",{"$f":"IF(region_name=\"\",\"\",region_name)","v":"Ленинградская область"},"Указывается наименование субъекта Российской Федерации"]
[null,null,1,null,null,{"$f":"\"4.\"&mergeValue(A295) &\".\"&mergeValue(B295)&\".\"&mergeValue(C295)","v":"4.1.1.1"},"муниципальный район",null,"Указывается наименование муниципального района, на территории которого организация оказывает услуги по регулируемому виду деятельности."]
[null,null,null,1,null,{"$f":"\"4.\"&mergeValue(A296) &\".\"&mergeValue(B296)&\".\"&mergeValue(C296)&\".\"&mergeValue(D296)","v":"4.1.1.1.1"},"муниципальное образование",null,"Указывается наименование и код муниципального района, муниципального образования в соответствии с Общероссийским классификатором территорий муниципальных образований (далее - ОКТМО), входящего в муниципальный район, на территории которого организация оказывает услуги по регулируемому виду деятельности.\nВ случае оказания услуг по регулируемому виду деятельности на территории нескольких муниципальных районов (муниципальных образований) данные по каждому их них указываются в отдельной строке."]
[null,null,null,null,null,null,"Добавить МО"]
[null,null,null,null,null,null,"Добавить МР"]
[null,null,null,null,null,null,"Добавить территорию"]
[null,null,null,null,null,null,"Добавить ЦС"]

{"sheet":"modInfo","index":56,"n_rows":36,"n_cols":2,"rows_kept":36,"cut":false,"hidden":true,"merged":[]}
[null,"Титульный"]
[null,"Для выбора того или иного источника публикации выполните двойной щелчок по синей ячейке напротив соответствующего источника.\nВНИМАНИЕ! Если Вы снимаете галочку с пункта, то будут скрыты и очищены соответствующие строки на листе \"Форма 1.0.2\"!\n\nОпубликование перечисленных в шаблоне показателей на сайте организации в сети Интернет и в печатных изданиях не обязательно, если данный шаблон предоставлен по системе ЕИАС (региональный сегмент)."]
[null,"Обязательное опубликование на официальном сайте органа исполнительной власти субъекта Российской Федерации в области государственного регулирования цен (тарифов), и (или) на официальном сайте органа местного самоуправления поселения или городского округа в случае их наделения в соответствии с законом субъекта Российской Федерации полномочиями по государственному регулированию цен (тарифов)предусмотрено пунктом 3 (а) постановления Правительства №6 от 17.01.2013г."]
[null,"Задайте период регулирования, выбрав даты начала и окончания периода регулирования из календаря (иконка справа от указанной ячейки), либо введите дату непосредственно в ячейку в формате - 'ДД.ММ.ГГГГ'"]
[null,"Шаблон заполняется раздельно по каждому виду тарифа"]
[null,"В зависимости от указанного вида деятельности будут доступны для заполнения поля 'Производство', 'Передача' и 'Сбыт'"]
[null,"Если выбрано 'да', на листах с разбивкой по потребителям доступны для заполнения графы для двухставочного ставочного тарифа по группам потребителей"]
[null,"Если выбрано 'да', значения тарифов для групп потребителей на листах с разбивкой по потребителям заполнятся автоматически значениями первой группы"]
[null,"Если выбрано значение «да» - в шаблоне будет сформирован лист «Форма 1.0.2» для уведомления органа регулирования о публикации информации в печатных изданиях"]
[null,"По умолчанию установлено значение «первичное раскрытие информации» Это означает, что информация раскрывается в соответствии с установленными сроком и периодичностью. В случае, если в уже отправленном шаблоне обнаружена ошибка или произошло изменение информации, исправленный шаблон необходимо отправить с типом отчета «изменения в раскрытой ранее информации». "]
[null,"Укажите является ли данное юридическое лицо подразделением(филиалом) другой организации"]
[null,"Ссылки на публикации"]
[null,"Вводите адрес сайта, не нарушая цвет ячейки /если копируете гиперссылку из браузера, то выполните двойной щелчок по ячейке и только после этого можете вставить скопированный элемент/"]
[null,"Обосновывающие материалы необходимо загружать с помощью \"ЕИАС Мониторинг\". Ссылка на инструкцию по загрузке обосновывающих материалов расположена на листе 'Инструкция' в п.'Методология заполнения'.\n\nВвводите ссылку, не нарушая цвет ячейки /если копируете гиперссылку из браузера, то выполните двойной щелчок по ячейке и только после этого можете вставить скопированный элемент/."]
[null,"Если для какого-либо пункта графы 'Наименование источника (сайта или печатного издания)' информация не раскрывалась, то в соответствующем поле укажите - 'не раскрывалась'"]
[null,"Список МО"]
[null,"В случае, если тариф не дифференцируется по системам теплоснабжения, перечислите все муниципальные районы, в которых организация осуществляет услуги теплоснабжения и сфере оказания услуг по передаче тепловой энергии"]
[null,"В случае, если тариф не дифференцируется по системам теплоснабжения, перечислите все муниципальные образования, в которых организация осуществляет услуги теплоснабжения и сфере оказания услуг по передаче тепловой энергии"]
[null,"Признак дифференциации тарифа"]
[null,"В случае, если тариф не дифференцируется по системам теплоснабжения, укажите \"1\".\nВведите значение от 1 до 100, чтобы указать очередной условный порядковый номер системы теплоснабжения"]
[null,"Стандарты"]
[null,"В качестве примечания Вы можете указать единицу измерения"]
[]
[null,"Для корректного формирования Таблицы 25 Формы 1.10 необходимо задать разбивку по диаметрам и способу прокладки тепловых сетей"]
[]
[null,"Перечень тарифов"]
[null,"Указывается наименование тарифа в случае утверждения нескольких тарифов.\nВ случае наличия нескольких тарифов информация по ним указывается в отдельных строках."]
[null,"Укажите «Да» в поле «Да/Нет», если дифференциация используется.\nВ поле «Описание» указывается наименование территории действия тарифа при наличии дифференциации тарифа по территориальному признаку.\nВ случае дифференциации тарифов по территориальному признаку информация по ним указывается в отдельных строках."]
[null,"Признаки дифференциации указываются в соответствии с п.6 ст.32 ФЗ РФ от 07.12.2011 №416-ФЗ"]
[null,"Укажите «Да» в поле «Да/Нет», если дифференциация используется. В поле «Описание» укажите название ЦС ХВС или любое другое описание"]
[]
[null,"Территории"]
[1,"Наименование территории действия тарифа для целей идентификации"]
[2,"Муниципальные районы и муниципальные образования, на территории которых действует тариф"]
[null,"Инструкция"]
[null,"Нет доступных обновлений, версия отчёта актуальна"]

{"sheet":"modList05","index":57,"n_rows":0,"n_cols":0,"rows_kept":0,"cut":false,"hidden":true,"merged":[]}

{"sheet":"modList06","index":58,"n_rows":0,"n_cols":0,"rows_kept":0,"cut":false,"hidden":true,"merged":[]}

{"sheet":"modList07","index":59,"n_rows":0,"n_cols":0,"rows_kept":0,"cut":false,"hidden":true,"merged":[]}

{"sheet":"modList13","index":60,"n_rows":0,"n_cols":0,"rows_kept":0,"cut":false,"hidden":true,"merged":[]}

{"sheet":"modfrmDateChoose","index":61,"n_rows":0,"n_cols":0,"rows_kept":0,"cut":false,"hidden":true,"merged":[]}

{"sheet":"modComm","index":62,"n_rows":0,"n_cols":0,"rows_kept":0,"cut":false,"hidden":true,"merged":[]}

{"sheet":"modThisWorkbook","index":63,"n_rows":0,"n_cols":0,"rows_kept":0,"cut":false,"hidden":true,"merged":[]}

{"sheet":"modfrmReestrMR","index":64,"n_rows":0,"n_cols":0,"rows_kept":0,"cut":false,"hidden":true,"merged":[]}

{"sheet":"modfrmCheckUpdates","index":65,"n_rows":0,"n_cols":0,"rows_kept":0,"cut":false,"hidden":true,"merged":[]}